Workbook

Sheet Manual
C3: MANUAL DE USO
C5: La calculadora desarrollada en 2018 por el Instituto Mexicano para la Competitividad (IMCO) permite calcular ex ante externalidades asociadas a la generación de energía eléctrica a partir de diversas tecnlogías. Para obtener un cálculo más detallado se ha divido el territorio nacional en 2,133 zonas, lo que permite hacer un análisis in situ detallado.
C9: La calculadora está compuesta por seis hojas, las cuales contienen el manual de uso, menú, bases de datos, cálculos, supuestos, fuente de la información, fórmulas e imágenes de referencia, todo esto para crear una herramienta transparente, fácil de usar y con una metodología robusta. De las seis hojas sólo la pestaña "Principal" requiere de ingresar información por parte del usuario, en el caso de las pestañas "Manual" y "Cálculos&Supuestos" su función es de consulta y el resto de las hojas son de soporte para la operación.
C14: Para hacer una consulta se deben seguir los siguientes pasos:
C16: a) Habilitar el contenido Para que la calculadora pueda funcioanr se debe dar click en el botón "Habilitar contenido" al abrir el archivo.
C19: b) Características de la planta En la pestaña "Principal" la sección "Tipo de planta" permite seleccionar entre trece tipos de tecnologías, en "Capacidad bruta" el usuario debe escribir los MW a instalar, así como el año de entrada de operación y la vida útil de la planta.
C23: c) Factores de emisión Para estimar el impacto de cada planta es necesario considerar sus propias características de opeación. El usuario podrá ingresar las emisión esperada por unidad de energía generada para CO2e, NOx, SO2, PM10 y PM2.5, una vez terminado esto deberá presionar el botón "USAR FACTORES PROPIOS". Si no se cuenta con esta información deberá presionar el botón "USAR FACTORES PRECARGADOS", con esta opción se llenarán los factores de emisión correspondientes a cada tecnología. En el caso de las plantas existentes se usó la emisión promedio de las plantas registraron operaciones en 2015 en el sistema eléctrico nacional, además de las emisiones calculadas según el modelo Thermoflow 25 y para el resto de las tecnologías se basaron las emisiones en los factores promedio reportados por planta por la United States Environmental Protection Agency en 2016.
C31: c) Lugar de la construcción Permite seleccionar la zona de análisis, despliega los resultados de todos los cuadros del estado o cuadro seleccionado, para seleccionar este último se incluyó el botón "VER MAPA", que despliga el mapa del estado seleccionado con las zonas numeradas.
C35: d) Despliegue de resultados Una vez seleccionado el lugar a analizar y las características de la planta se debe dar click en el botón "CALCULAR EXTERNALIDADES" para que se desplieguen los resultados, a nivel estatal de todos los cuadros o a nivel individual del cuadro seleccionado con sus "vecinos", lo cual permite hacer una análisis de sensibilidad.

Sheet Principal
BL3: Termoeléctrica convencional (plantas existentes) | BM3: Aguascalientes | BP3: Aguascalientes | BQ3: Baja_California | BR3: Baja_California_Sur | BS3: Campeche | BT3: Coahuila | BU3: Colima | BV3: Chiapas | BW3: Chihuahua | BX3: Distrito_Federal | BY3: Durango | BZ3: Estado_de_Mexico | CA3: Guanajuato | CB3: Guerrero | CC3: Hidalgo | CD3: Jalisco | CE3: Michoacan | CF3: Morelos | CG3: Nayarit | CH3: Nuevo_Leon | CI3: Oaxaca | CJ3: Puebla | CK3: Queretaro | CL3: Quintana_Roo | CM3: San_Luis_Potosi | CN3: Sinaloa | CO3: Sonora | CP3: Tabasco | CQ3: Tamaulipas | CR3: Tlaxcala | CS3: Veracruz | CT3: Yucatan | CU3: Zacatecas
BL4: Termoeléctrica con desulfurador y equipo para control de partículas (modelo Thermoflow 25) | BM4: Baja_California | BP4: 1 | BQ4: 1 | BR4: 1 | BS4: 1 | BT4: 1 | BU4: 1 | BV4: 1 | BW4: 1 | BX4: 1 | BY4: 1 | BZ4: 1 | CA4: 1 | CB4: 1 | CC4: 1 | CD4: 1 | CE4: 1 | CF4: 1 | CG4: 1 | CH4: 1 | CI4: 1 | CJ4: 1 | CK4: 1 | CL4: 1 | CM4: 1 | CN4: 1 | CO4: 1 | CP4: 1 | CQ4: 1 | CR4: 1 | CS4: 1 | CT4: 1 | CU4: 1
BL5: Turbogas aeroderivada gas (plantas existentes) | BM5: Baja_California_Sur | BP5: 2 | BQ5: 2 | BR5: 2 | BS5: 2 | BT5: 2 | BU5: 2 | BV5: 2 | BW5: 2 | BX5: 2 | BY5: 2 | BZ5: 2 | CA5: 2 | CB5: 2 | CC5: 2 | CD5: 2 | CE5: 2 | CF5: 2 | CG5: 2 | CH5: 2 | CI5: 2 | CJ5: 2 | CK5: 2 | CL5: 2 | CM5: 2 | CN5: 2 | CO5: 2 | CP5: 2 | CQ5: 2 | CR5: 2 | CS5: 2 | CT5: 2 | CU5: 2
BL6: Turbogas aeroderivada gas (modelo Thermoflow 25) | BM6: Campeche | BP6: 3 | BQ6: 3 | BR6: 3 | BS6: 3 | BT6: 3 | BU6: 3 | BV6: 3 | BW6: 3 | BY6: 3 | BZ6: 3 | CA6: 3 | CB6: 3 | CC6: 3 | CD6: 3 | CE6: 3 | CF6: 3 | CG6: 3 | CH6: 3 | CI6: 3 | CJ6: 3 | CK6: 3 | CL6: 3 | CM6: 3 | CN6: 3 | CO6: 3 | CP6: 3 | CQ6: 3 | CR6: 3 | CS6: 3 | CT6: 3 | CU6: 3
BL7: Turbogás aeroderivada diesel (plantas existentes) | BM7: Coahuila | BP7: 4 | BQ7: 4 | BR7: 4 | BS7: 4 | BT7: 4 | BU7: 4 | BV7: 4 | BW7: 4 | BY7: 4 | BZ7: 4 | CA7: 4 | CB7: 4 | CC7: 4 | CD7: 4 | CE7: 4 | CF7: 4 | CG7: 4 | CH7: 4 | CI7: 4 | CJ7: 4 | CK7: 4 | CL7: 4 | CM7: 4 | CN7: 4 | CO7: 4 | CP7: 4 | CQ7: 4 | CR7: 4 | CS7: 4 | CT7: 4 | CU7: 4
BL8: Turbogás aeroderivada diesel (modelo Thermoflow 25) | BM8: Colima | BP8: 5 | BQ8: 5 | BR8: 5 | BS8: 5 | BT8: 5 | BU8: 5 | BV8: 5 | BW8: 5 | BY8: 5 | BZ8: 5 | CA8: 5 | CB8: 5 | CC8: 5 | CD8: 5 | CE8: 5 | CG8: 5 | CH8: 5 | CI8: 5 | CJ8: 5 | CK8: 5 | CL8: 5 | CM8: 5 | CN8: 5 | CO8: 5 | CP8: 5 | CQ8: 5 | CR8: 5 | CS8: 5 | CT8: 5 | CU8: 5
BL9: Ciclo combinado (plantas existentes) | BM9: Chiapas | BQ9: 6 | BR9: 6 | BS9: 6 | BT9: 6 | BU9: 6 | BV9: 6 | BW9: 6 | BY9: 6 | BZ9: 6 | CA9: 6 | CB9: 6 | CC9: 6 | CD9: 6 | CE9: 6 | CG9: 6 | CH9: 6 | CI9: 6 | CJ9: 6 | CK9: 6 | CL9: 6 | CM9: 6 | CN9: 6 | CO9: 6 | CP9: 6 | CQ9: 6 | CR9: 6 | CS9: 6 | CT9: 6 | CU9: 6
BL10: Ciclo combinado (modelo Thermoflow 25) | BM10: Chihuahua | BQ10: 7 | BR10: 7 | BS10: 7 | BT10: 7 | BV10: 7 | BW10: 7 | BY10: 7 | BZ10: 7 | CA10: 7 | CB10: 7 | CC10: 7 | CD10: 7 | CE10: 7 | CG10: 7 | CH10: 7 | CI10: 7 | CJ10: 7 | CK10: 7 | CL10: 7 | CM10: 7 | CN10: 7 | CO10: 7 | CP10: 7 | CQ10: 7 | CS10: 7 | CT10: 7 | CU10: 7
C11: CARACTERÍSTICAS DE LA PLANTA | BL11: Combustión interna (plantas existentes) | BM11: Distrito_Federal | BQ11: 8 | BR11: 8 | BS11: 8 | BT11: 8 | BV11: 8 | BW11: 8 | BY11: 8 | BZ11: 8 | CA11: 8 | CB11: 8 | CC11: 8 | CD11: 8 | CE11: 8 | CG11: 8 | CH11: 8 | CI11: 8 | CJ11: 8 | CK11: 8 | CL11: 8 | CM11: 8 | CN11: 8 | CO11: 8 | CP11: 8 | CQ11: 8 | CS11: 8 | CT11: 8 | CU11: 8
C12: Tipo de planta | I12: Capacidad bruta (Mw) | BL12: Carboeléctrica (plantas existentes) | BM12: Durango | BQ12: 9 | BR12: 9 | BS12: 9 | BT12: 9 | BV12: 9 | BW12: 9 | BY12: 9 | BZ12: 9 | CA12: 9 | CB12: 9 | CC12: 9 | CD12: 9 | CE12: 9 | CG12: 9 | CH12: 9 | CI12: 9 | CJ12: 9 | CK12: 9 | CL12: 9 | CM12: 9 | CN12: 9 | CO12: 9 | CP12: 9 | CQ12: 9 | CS12: 9 | CT12: 9 | CU12: 9
C13: Carboeléctrica supercrítica con desulfurador (modelo Thermoflow 25) | I13: 500 | BL13: Carboeléctrica supercrítica (plantas existentes) | BM13: Estado_de_Mexico | BQ13: 10 | BR13: 10 | BS13: 10 | BT13: 10 | BV13: 10 | BW13: 10 | BY13: 10 | BZ13: 10 | CA13: 10 | CB13: 10 | CC13: 10 | CD13: 10 | CE13: 10 | CG13: 10 | CH13: 10 | CI13: 10 | CJ13: 10 | CK13: 10 | CL13: 10 | CM13: 10 | CN13: 10 | CO13: 10 | CP13: 10 | CQ13: 10 | CS13: 10 | CT13: 10 | CU13: 10
BL14: Carboeléctrica sin desulfurador (modelo Thermoflow 25) | BM14: Guanajuato | BQ14: 11 | BR14: 11 | BS14: 11 | BT14: 11 | BV14: 11 | BW14: 11 | BY14: 11 | BZ14: 11 | CA14: 11 | CB14: 11 | CC14: 11 | CD14: 11 | CE14: 11 | CG14: 11 | CH14: 11 | CI14: 11 | CJ14: 11 | CK14: 11 | CL14: 11 | CM14: 11 | CN14: 11 | CO14: 11 | CP14: 11 | CQ14: 11 | CS14: 11 | CT14: 11 | CU14: 11
C15: Año de entrada en operación | I15: Vida útil (años) | BL15: Carboeléctrica supercrítica sin desulfurador (modelo Thermoflow 25) | BM15: Guerrero | BQ15: 12 | BR15: 12 | BS15: 12 | BT15: 12 | BV15: 12 | BW15: 12 | BY15: 12 | BZ15: 12 | CA15: 12 | CB15: 12 | CC15: 12 | CD15: 12 | CE15: 12 | CG15: 12 | CH15: 12 | CI15: 12 | CJ15: 12 | CK15: 12 | CL15: 12 | CM15: 12 | CN15: 12 | CO15: 12 | CP15: 12 | CQ15: 12 | CS15: 12 | CT15: 12 | CU15: 12
C16: 2019 | I16: 40 | BL16: Carboeléctrica supercrítica con desulfurador (modelo Thermoflow 25) | BM16: Hidalgo | BQ16: 13 | BR16: 13 | BS16: 13 | BT16: 13 | BV16: 13 | BW16: 13 | BY16: 13 | BZ16: 13 | CA16: 13 | CB16: 13 | CC16: 13 | CD16: 13 | CE16: 13 | CG16: 13 | CH16: 13 | CI16: 13 | CJ16: 13 | CK16: 13 | CL16: 13 | CM16: 13 | CN16: 13 | CO16: 13 | CP16: 13 | CQ16: 13 | CS16: 13 | CT16: 13 | CU16: 13
BL17: Cogeneración eficiente con gas | BM17: Jalisco | BQ17: 14 | BR17: 14 | BS17: 14 | BT17: 14 | BV17: 14 | BW17: 14 | BY17: 14 | BZ17: 14 | CA17: 14 | CB17: 14 | CC17: 14 | CD17: 14 | CE17: 14 | CG17: 14 | CH17: 14 | CI17: 14 | CJ17: 14 | CL17: 14 | CM17: 14 | CN17: 14 | CO17: 14 | CP17: 14 | CQ17: 14 | CS17: 14 | CT17: 14 | CU17: 14
C18: FACTORES DE EMISIÓN | BL18: Cogeneración eficiente con biomasa | BM18: Michoacan | BQ18: 15 | BR18: 15 | BS18: 15 | BT18: 15 | BV18: 15 | BW18: 15 | BY18: 15 | BZ18: 15 | CA18: 15 | CB18: 15 | CC18: 15 | CD18: 15 | CE18: 15 | CG18: 15 | CH18: 15 | CI18: 15 | CJ18: 15 | CL18: 15 | CM18: 15 | CN18: 15 | CO18: 15 | CP18: 15 | CQ18: 15 | CS18: 15 | CT18: 15 | CU18: 15
C19: CO2e (t/Mwh) | I19: SO2 (t/Mwh) | BL19: Rellenos sanitarios | BM19: Morelos | BQ19: 16 | BR19: 16 | BS19: 16 | BT19: 16 | BV19: 16 | BW19: 16 | BY19: 16 | BZ19: 16 | CA19: 16 | CB19: 16 | CC19: 16 | CD19: 16 | CE19: 16 | CG19: 16 | CH19: 16 | CI19: 16 | CJ19: 16 | CL19: 16 | CM19: 16 | CN19: 16 | CO19: 16 | CP19: 16 | CQ19: 16 | CS19: 16 | CT19: 16 | CU19: 16
C20: 0.752 | I20: 0.00255 | BL20: Incineración de residuos sólidos urbanos | BM20: Nayarit | BQ20: 17 | BR20: 17 | BS20: 17 | BT20: 17 | BV20: 17 | BW20: 17 | BY20: 17 | BZ20: 17 | CA20: 17 | CB20: 17 | CC20: 17 | CD20: 17 | CE20: 17 | CG20: 17 | CH20: 17 | CI20: 17 | CJ20: 17 | CL20: 17 | CM20: 17 | CN20: 17 | CO20: 17 | CP20: 17 | CQ20: 17 | CS20: 17 | CT20: 17 | CU20: 17
BL21: Biodigestores | BM21: Nuevo_Leon | BQ21: 18 | BR21: 18 | BS21: 18 | BT21: 18 | BV21: 18 | BW21: 18 | BY21: 18 | BZ21: 18 | CA21: 18 | CB21: 18 | CC21: 18 | CD21: 18 | CE21: 18 | CG21: 18 | CH21: 18 | CI21: 18 | CJ21: 18 | CL21: 18 | CM21: 18 | CN21: 18 | CO21: 18 | CP21: 18 | CQ21: 18 | CS21: 18 | CT21: 18 | CU21: 18
C22: PM2.5 (t/Mwh) | I22: PM10 (t/Mwh) | BL22: Biocombustibles agrícolas | BM22: Oaxaca | BQ22: 19 | BR22: 19 | BS22: 19 | BT22: 19 | BV22: 19 | BW22: 19 | BY22: 19 | BZ22: 19 | CA22: 19 | CB22: 19 | CC22: 19 | CD22: 19 | CE22: 19 | CG22: 19 | CH22: 19 | CI22: 19 | CJ22: 19 | CL22: 19 | CM22: 19 | CN22: 19 | CO22: 19 | CP22: 19 | CQ22: 19 | CS22: 19 | CT22: 19 | CU22: 19
C23: 5e-06 | I23: 5e-06 | BL23: Quema de residuos forestales y agrícolas | BM23: Puebla | BQ23: 20 | BR23: 20 | BS23: 20 | BT23: 20 | BV23: 20 | BW23: 20 | BY23: 20 | BZ23: 20 | CA23: 20 | CB23: 20 | CC23: 20 | CD23: 20 | CE23: 20 | CG23: 20 | CH23: 20 | CI23: 20 | CJ23: 20 | CL23: 20 | CM23: 20 | CN23: 20 | CO23: 20 | CP23: 20 | CQ23: 20 | CS23: 20 | CT23: 20 | CU23: 20
BM24: Queretaro | BQ24: 21 | BR24: 21 | BS24: 21 | BT24: 21 | BV24: 21 | BW24: 21 | BY24: 21 | BZ24: 21 | CA24: 21 | CB24: 21 | CC24: 21 | CD24: 21 | CE24: 21 | CG24: 21 | CH24: 21 | CI24: 21 | CJ24: 21 | CL24: 21 | CM24: 21 | CN24: 21 | CO24: 21 | CP24: 21 | CQ24: 21 | CS24: 21 | CT24: 21 | CU24: 21
C25: NOx (t/Mwh) | I25: Factores de emisión usados | BM25: Quintana_Roo | BQ25: 22 | BR25: 22 | BS25: 22 | BT25: 22 | BV25: 22 | BW25: 22 | BY25: 22 | BZ25: 22 | CA25: 22 | CB25: 22 | CC25: 22 | CD25: 22 | CE25: 22 | CG25: 22 | CH25: 22 | CI25: 22 | CJ25: 22 | CL25: 22 | CM25: 22 | CN25: 22 | CO25: 22 | CP25: 22 | CQ25: 22 | CS25: 22 | CT25: 22 | CU25: 22
C26: 0 | I26: Precargados | BM26: San_Luis_Potosi | BQ26: 23 | BR26: 23 | BS26: 23 | BT26: 23 | BV26: 23 | BW26: 23 | BY26: 23 | BZ26: 23 | CA26: 23 | CB26: 23 | CD26: 23 | CE26: 23 | CG26: 23 | CH26: 23 | CI26: 23 | CJ26: 23 | CL26: 23 | CM26: 23 | CN26: 23 | CO26: 23 | CP26: 23 | CQ26: 23 | CS26: 23 | CT26: 23 | CU26: 23
BM27: Sinaloa | BQ27: 24 | BR27: 24 | BS27: 24 | BT27: 24 | BV27: 24 | BW27: 24 | BY27: 24 | BZ27: 24 | CA27: 24 | CB27: 24 | CD27: 24 | CE27: 24 | CG27: 24 | CH27: 24 | CI27: 24 | CJ27: 24 | CL27: 24 | CM27: 24 | CN27: 24 | CO27: 24 | CP27: 24 | CQ27: 24 | CS27: 24 | CT27: 24 | CU27: 24
BM28: Sonora | BQ28: 25 | BR28: 25 | BS28: 25 | BT28: 25 | BV28: 25 | BW28: 25 | BY28: 25 | CA28: 25 | CB28: 25 | CD28: 25 | CE28: 25 | CG28: 25 | CH28: 25 | CI28: 25 | CJ28: 25 | CL28: 25 | CM28: 25 | CN28: 25 | CO28: 25 | CP28: 25 | CQ28: 25 | CS28: 25 | CT28: 25 | CU28: 25
BM29: Tabasco | BQ29: 26 | BR29: 26 | BS29: 26 | BT29: 26 | BV29: 26 | BW29: 26 | BY29: 26 | CA29: 26 | CB29: 26 | CD29: 26 | CE29: 26 | CG29: 26 | CH29: 26 | CI29: 26 | CJ29: 26 | CL29: 26 | CM29: 26 | CN29: 26 | CO29: 26 | CP29: 26 | CQ29: 26 | CS29: 26 | CT29: 26 | CU29: 26
BM30: Tamaulipas | BQ30: 27 | BR30: 27 | BS30: 27 | BT30: 27 | BV30: 27 | BW30: 27 | BY30: 27 | CA30: 27 | CB30: 27 | CD30: 27 | CE30: 27 | CG30: 27 | CH30: 27 | CI30: 27 | CJ30: 27 | CL30: 27 | CM30: 27 | CN30: 27 | CO30: 27 | CP30: 27 | CQ30: 27 | CS30: 27 | CT30: 27 | CU30: 27
BM31: Tlaxcala | BQ31: 28 | BR31: 28 | BS31: 28 | BT31: 28 | BV31: 28 | BW31: 28 | BY31: 28 | CA31: 28 | CB31: 28 | CD31: 28 | CE31: 28 | CG31: 28 | CH31: 28 | CI31: 28 | CJ31: 28 | CL31: 28 | CM31: 28 | CN31: 28 | CO31: 28 | CQ31: 28 | CS31: 28 | CT31: 28 | CU31: 28
BM32: Veracruz | BQ32: 29 | BR32: 29 | BS32: 29 | BT32: 29 | BV32: 29 | BW32: 29 | BY32: 29 | CA32: 29 | CB32: 29 | CD32: 29 | CE32: 29 | CG32: 29 | CH32: 29 | CI32: 29 | CJ32: 29 | CL32: 29 | CM32: 29 | CN32: 29 | CO32: 29 | CQ32: 29 | CS32: 29 | CT32: 29 | CU32: 29
C33: ZONA DE ANÁLISIS | BM33: Yucatan | BQ33: 30 | BR33: 30 | BS33: 30 | BT33: 30 | BV33: 30 | BW33: 30 | BY33: 30 | CA33: 30 | CB33: 30 | CD33: 30 | CE33: 30 | CH33: 30 | CI33: 30 | CJ33: 30 | CL33: 30 | CM33: 30 | CN33: 30 | CO33: 30 | CQ33: 30 | CS33: 30 | CT33: 30 | CU33: 30
C34: Estado analizado | I34: Area de análisis | BM34: Zacatecas | BQ34: 31 | BR34: 31 | BS34: 31 | BT34: 31 | BV34: 31 | BW34: 31 | BY34: 31 | CA34: 31 | CB34: 31 | CD34: 31 | CE34: 31 | CH34: 31 | CI34: 31 | CJ34: 31 | CL34: 31 | CM34: 31 | CN34: 31 | CO34: 31 | CQ34: 31 | CS34: 31 | CT34: 31 | CU34: 31
C35: Coahuila | BQ35: 32 | BR35: 32 | BS35: 32 | BT35: 32 | BV35: 32 | BW35: 32 | BY35: 32 | CA35: 32 | CB35: 32 | CD35: 32 | CE35: 32 | CH35: 32 | CI35: 32 | CJ35: 32 | CL35: 32 | CM35: 32 | CN35: 32 | CO35: 32 | CQ35: 32 | CS35: 32 | CT35: 32 | CU35: 32
BQ36: 33 | BR36: 33 | BS36: 33 | BT36: 33 | BV36: 33 | BW36: 33 | BY36: 33 | CB36: 33 | CD36: 33 | CE36: 33 | CH36: 33 | CI36: 33 | CJ36: 33 | CL36: 33 | CM36: 33 | CN36: 33 | CO36: 33 | CQ36: 33 | CS36: 33 | CT36: 33 | CU36: 33
BQ37: 34 | BR37: 34 | BS37: 34 | BT37: 34 | BV37: 34 | BW37: 34 | BY37: 34 | CB37: 34 | CD37: 34 | CE37: 34 | CH37: 34 | CI37: 34 | CJ37: 34 | CL37: 34 | CM37: 34 | CN37: 34 | CO37: 34 | CQ37: 34 | CS37: 34 | CT37: 34 | CU37: 34
BQ38: 35 | BR38: 35 | BS38: 35 | BT38: 35 | BV38: 35 | BW38: 35 | BY38: 35 | CB38: 35 | CD38: 35 | CE38: 35 | CH38: 35 | CI38: 35 | CJ38: 35 | CL38: 35 | CM38: 35 | CN38: 35 | CO38: 35 | CQ38: 35 | CS38: 35 | CT38: 35 | CU38: 35
BQ39: 36 | BR39: 36 | BS39: 36 | BT39: 36 | BV39: 36 | BW39: 36 | BY39: 36 | CB39: 36 | CD39: 36 | CE39: 36 | CH39: 36 | CI39: 36 | CJ39: 36 | CL39: 36 | CM39: 36 | CN39: 36 | CO39: 36 | CQ39: 36 | CS39: 36 | CT39: 36 | CU39: 36
BQ40: 37 | BR40: 37 | BS40: 37 | BT40: 37 | BV40: 37 | BW40: 37 | BY40: 37 | CB40: 37 | CD40: 37 | CE40: 37 | CH40: 37 | CI40: 37 | CJ40: 37 | CL40: 37 | CM40: 37 | CN40: 37 | CO40: 37 | CQ40: 37 | CS40: 37 | CT40: 37 | CU40: 37
BQ41: 38 | BR41: 38 | BS41: 38 | BT41: 38 | BV41: 38 | BW41: 38 | BY41: 38 | CB41: 38 | CD41: 38 | CE41: 38 | CH41: 38 | CI41: 38 | CL41: 38 | CM41: 38 | CN41: 38 | CO41: 38 | CQ41: 38 | CS41: 38 | CT41: 38 | CU41: 38
BQ42: 39 | BR42: 39 | BS42: 39 | BT42: 39 | BV42: 39 | BW42: 39 | BY42: 39 | CB42: 39 | CD42: 39 | CE42: 39 | CH42: 39 | CI42: 39 | CL42: 39 | CM42: 39 | CN42: 39 | CO42: 39 | CQ42: 39 | CS42: 39 | CT42: 39 | CU42: 39
BQ43: 40 | BR43: 40 | BS43: 40 | BT43: 40 | BV43: 40 | BW43: 40 | BY43: 40 | CB43: 40 | CD43: 40 | CE43: 40 | CH43: 40 | CI43: 40 | CL43: 40 | CM43: 40 | CN43: 40 | CO43: 40 | CQ43: 40 | CS43: 40 | CT43: 40 | CU43: 40
BQ44: 41 | BR44: 41 | BS44: 41 | BT44: 41 | BV44: 41 | BW44: 41 | BY44: 41 | CB44: 41 | CD44: 41 | CE44: 41 | CH44: 41 | CI44: 41 | CL44: 41 | CM44: 41 | CN44: 41 | CO44: 41 | CQ44: 41 | CS44: 41 | CT44: 41 | CU44: 41
BQ45: 42 | BR45: 42 | BS45: 42 | BT45: 42 | BV45: 42 | BW45: 42 | BY45: 42 | CB45: 42 | CD45: 42 | CE45: 42 | CH45: 42 | CI45: 42 | CL45: 42 | CM45: 42 | CN45: 42 | CO45: 42 | CQ45: 42 | CS45: 42 | CT45: 42 | CU45: 42
BQ46: 43 | BR46: 43 | BS46: 43 | BT46: 43 | BV46: 43 | BW46: 43 | BY46: 43 | CB46: 43 | CD46: 43 | CE46: 43 | CH46: 43 | CI46: 43 | CL46: 43 | CM46: 43 | CN46: 43 | CO46: 43 | CQ46: 43 | CS46: 43 | CT46: 43 | CU46: 43
BQ47: 44 | BR47: 44 | BS47: 44 | BT47: 44 | BV47: 44 | BW47: 44 | BY47: 44 | CB47: 44 | CD47: 44 | CE47: 44 | CH47: 44 | CI47: 44 | CL47: 44 | CM47: 44 | CN47: 44 | CO47: 44 | CQ47: 44 | CS47: 44 | CT47: 44 | CU47: 44
BQ48: 45 | BR48: 45 | BS48: 45 | BT48: 45 | BV48: 45 | BW48: 45 | BY48: 45 | CB48: 45 | CD48: 45 | CE48: 45 | CH48: 45 | CI48: 45 | CL48: 45 | CM48: 45 | CN48: 45 | CO48: 45 | CQ48: 45 | CS48: 45 | CT48: 45 | CU48: 45
BQ49: 46 | BR49: 46 | BS49: 46 | BT49: 46 | BV49: 46 | BW49: 46 | BY49: 46 | CB49: 46 | CD49: 46 | CE49: 46 | CH49: 46 | CI49: 46 | CL49: 46 | CM49: 46 | CN49: 46 | CO49: 46 | CQ49: 46 | CS49: 46 | CT49: 46 | CU49: 46
BQ50: 47 | BR50: 47 | BS50: 47 | BT50: 47 | BV50: 47 | BW50: 47 | BY50: 47 | CB50: 47 | CD50: 47 | CE50: 47 | CH50: 47 | CI50: 47 | CL50: 47 | CM50: 47 | CN50: 47 | CO50: 47 | CQ50: 47 | CS50: 47 | CU50: 47
BQ51: 48 | BR51: 48 | BS51: 48 | BT51: 48 | BV51: 48 | BW51: 48 | BY51: 48 | CB51: 48 | CD51: 48 | CE51: 48 | CH51: 48 | CI51: 48 | CL51: 48 | CM51: 48 | CN51: 48 | CO51: 48 | CQ51: 48 | CS51: 48 | CU51: 48
BQ52: 49 | BR52: 49 | BS52: 49 | BT52: 49 | BV52: 49 | BW52: 49 | BY52: 49 | CB52: 49 | CD52: 49 | CE52: 49 | CH52: 49 | CI52: 49 | CL52: 49 | CM52: 49 | CN52: 49 | CO52: 49 | CQ52: 49 | CS52: 49 | CU52: 49
BQ53: 50 | BR53: 50 | BS53: 50 | BT53: 50 | BV53: 50 | BW53: 50 | BY53: 50 | CB53: 50 | CD53: 50 | CE53: 50 | CH53: 50 | CI53: 50 | CL53: 50 | CM53: 50 | CN53: 50 | CO53: 50 | CQ53: 50 | CS53: 50 | CU53: 50
BQ54: 51 | BR54: 51 | BS54: 51 | BT54: 51 | BV54: 51 | BW54: 51 | BY54: 51 | CB54: 51 | CD54: 51 | CE54: 51 | CH54: 51 | CI54: 51 | CL54: 51 | CM54: 51 | CN54: 51 | CO54: 51 | CQ54: 51 | CS54: 51 | CU54: 51
BQ55: 52 | BR55: 52 | BS55: 52 | BT55: 52 | BV55: 52 | BW55: 52 | BY55: 52 | CB55: 52 | CD55: 52 | CE55: 52 | CH55: 52 | CI55: 52 | CL55: 52 | CM55: 52 | CN55: 52 | CO55: 52 | CQ55: 52 | CS55: 52 | CU55: 52
BQ56: 53 | BR56: 53 | BS56: 53 | BT56: 53 | BV56: 53 | BW56: 53 | BY56: 53 | CB56: 53 | CD56: 53 | CE56: 53 | CH56: 53 | CI56: 53 | CL56: 53 | CM56: 53 | CN56: 53 | CO56: 53 | CQ56: 53 | CS56: 53 | CU56: 53
BQ57: 54 | BR57: 54 | BS57: 54 | BT57: 54 | BV57: 54 | BW57: 54 | BY57: 54 | CB57: 54 | CD57: 54 | CE57: 54 | CH57: 54 | CI57: 54 | CL57: 54 | CM57: 54 | CN57: 54 | CO57: 54 | CQ57: 54 | CS57: 54 | CU57: 54
BQ58: 55 | BR58: 55 | BS58: 55 | BT58: 55 | BV58: 55 | BW58: 55 | BY58: 55 | CB58: 55 | CD58: 55 | CE58: 55 | CH58: 55 | CI58: 55 | CL58: 55 | CM58: 55 | CN58: 55 | CO58: 55 | CQ58: 55 | CS58: 55 | CU58: 55
BQ59: 56 | BR59: 56 | BS59: 56 | BT59: 56 | BV59: 56 | BW59: 56 | BY59: 56 | CB59: 56 | CD59: 56 | CE59: 56 | CH59: 56 | CI59: 56 | CL59: 56 | CM59: 56 | CN59: 56 | CO59: 56 | CQ59: 56 | CS59: 56 | CU59: 56
BQ60: 57 | BR60: 57 | BS60: 57 | BT60: 57 | BV60: 57 | BW60: 57 | BY60: 57 | CB60: 57 | CD60: 57 | CE60: 57 | CH60: 57 | CI60: 57 | CL60: 57 | CM60: 57 | CN60: 57 | CO60: 57 | CQ60: 57 | CS60: 57 | CU60: 57
BQ61: 58 | BR61: 58 | BS61: 58 | BT61: 58 | BV61: 58 | BW61: 58 | BY61: 58 | CB61: 58 | CD61: 58 | CE61: 58 | CH61: 58 | CI61: 58 | CL61: 58 | CM61: 58 | CN61: 58 | CO61: 58 | CQ61: 58 | CS61: 58 | CU61: 58
BQ62: 59 | BR62: 59 | BS62: 59 | BT62: 59 | BV62: 59 | BW62: 59 | BY62: 59 | CB62: 59 | CD62: 59 | CE62: 59 | CH62: 59 | CI62: 59 | CL62: 59 | CM62: 59 | CN62: 59 | CO62: 59 | CQ62: 59 | CS62: 59 | CU62: 59
BQ63: 60 | BR63: 60 | BS63: 60 | BT63: 60 | BV63: 60 | BW63: 60 | BY63: 60 | CB63: 60 | CD63: 60 | CE63: 60 | CH63: 60 | CI63: 60 | CL63: 60 | CM63: 60 | CN63: 60 | CO63: 60 | CQ63: 60 | CS63: 60 | CU63: 60
BQ64: 61 | BR64: 61 | BS64: 61 | BT64: 61 | BV64: 61 | BW64: 61 | BY64: 61 | CB64: 61 | CD64: 61 | CE64: 61 | CH64: 61 | CI64: 61 | CL64: 61 | CM64: 61 | CN64: 61 | CO64: 61 | CQ64: 61 | CS64: 61 | CU64: 61
BQ65: 62 | BR65: 62 | BS65: 62 | BT65: 62 | BV65: 62 | BW65: 62 | BY65: 62 | CB65: 62 | CD65: 62 | CE65: 62 | CH65: 62 | CI65: 62 | CL65: 62 | CM65: 62 | CN65: 62 | CO65: 62 | CQ65: 62 | CS65: 62 | CU65: 62
BQ66: 63 | BR66: 63 | BS66: 63 | BT66: 63 | BV66: 63 | BW66: 63 | BY66: 63 | CB66: 63 | CD66: 63 | CE66: 63 | CH66: 63 | CI66: 63 | CL66: 63 | CM66: 63 | CO66: 63 | CQ66: 63 | CS66: 63 | CU66: 63
BQ67: 64 | BR67: 64 | BS67: 64 | BT67: 64 | BV67: 64 | BW67: 64 | BY67: 64 | CB67: 64 | CD67: 64 | CH67: 64 | CI67: 64 | CM67: 64 | CO67: 64 | CQ67: 64 | CS67: 64 | CU67: 64
BQ68: 65 | BR68: 65 | BS68: 65 | BT68: 65 | BV68: 65 | BW68: 65 | BY68: 65 | CB68: 65 | CD68: 65 | CH68: 65 | CI68: 65 | CM68: 65 | CO68: 65 | CQ68: 65 | CS68: 65 | CU68: 65
BQ69: 66 | BR69: 66 | BS69: 66 | BT69: 66 | BV69: 66 | BW69: 66 | BY69: 66 | CB69: 66 | CD69: 66 | CH69: 66 | CI69: 66 | CM69: 66 | CO69: 66 | CQ69: 66 | CS69: 66 | CU69: 66
BQ70: 67 | BR70: 67 | BT70: 67 | BV70: 67 | BW70: 67 | BY70: 67 | CB70: 67 | CD70: 67 | CH70: 67 | CI70: 67 | CM70: 67 | CO70: 67 | CQ70: 67 | CS70: 67 | CU70: 67
BQ71: 68 | BR71: 68 | BT71: 68 | BV71: 68 | BW71: 68 | BY71: 68 | CB71: 68 | CD71: 68 | CH71: 68 | CI71: 68 | CM71: 68 | CO71: 68 | CQ71: 68 | CS71: 68 | CU71: 68
BQ72: 69 | BR72: 69 | BT72: 69 | BV72: 69 | BW72: 69 | BY72: 69 | CB72: 69 | CD72: 69 | CI72: 69 | CM72: 69 | CO72: 69 | CQ72: 69 | CS72: 69 | CU72: 69
BQ73: 70 | BR73: 70 | BT73: 70 | BV73: 70 | BW73: 70 | BY73: 70 | CB73: 70 | CD73: 70 | CI73: 70 | CM73: 70 | CO73: 70 | CQ73: 70 | CS73: 70 | CU73: 70
BQ74: 71 | BR74: 71 | BT74: 71 | BV74: 71 | BW74: 71 | BY74: 71 | CD74: 71 | CI74: 71 | CO74: 71 | CQ74: 71 | CS74: 71 | CU74: 71
BQ75: 72 | BR75: 72 | BT75: 72 | BV75: 72 | BW75: 72 | BY75: 72 | CD75: 72 | CI75: 72 | CO75: 72 | CQ75: 72 | CS75: 72 | CU75: 72
BQ76: 73 | BR76: 73 | BT76: 73 | BV76: 73 | BW76: 73 | BY76: 73 | CD76: 73 | CI76: 73 | CO76: 73 | CQ76: 73 | CS76: 73 | CU76: 73
BQ77: 74 | BR77: 74 | BT77: 74 | BV77: 74 | BW77: 74 | BY77: 74 | CD77: 74 | CI77: 74 | CO77: 74 | CQ77: 74 | CS77: 74 | CU77: 74
BQ78: 75 | BR78: 75 | BT78: 75 | BV78: 75 | BW78: 75 | BY78: 75 | CD78: 75 | CI78: 75 | CO78: 75 | CQ78: 75 | CS78: 75 | CU78: 75
BQ79: 76 | BR79: 76 | BT79: 76 | BV79: 76 | BW79: 76 | BY79: 76 | CD79: 76 | CI79: 76 | CO79: 76 | CQ79: 76 | CS79: 76 | CU79: 76
BQ80: 77 | BR80: 77 | BT80: 77 | BV80: 77 | BW80: 77 | BY80: 77 | CD80: 77 | CI80: 77 | CO80: 77 | CQ80: 77 | CS80: 77 | CU80: 77
BQ81: 78 | BR81: 78 | BT81: 78 | BV81: 78 | BW81: 78 | BY81: 78 | CD81: 78 | CI81: 78 | CO81: 78 | CQ81: 78 | CS81: 78 | CU81: 78
BQ82: 79 | BR82: 79 | BT82: 79 | BV82: 79 | BW82: 79 | BY82: 79 | CD82: 79 | CI82: 79 | CO82: 79 | CQ82: 79 | CS82: 79 | CU82: 79
BQ83: 80 | BT83: 80 | BV83: 80 | BW83: 80 | BY83: 80 | CD83: 80 | CI83: 80 | CO83: 80 | CQ83: 80 | CS83: 80 | CU83: 80
BQ84: 81 | BT84: 81 | BW84: 81 | BY84: 81 | CD84: 81 | CI84: 81 | CO84: 81 | CQ84: 81 | CS84: 81
BQ85: 82 | BT85: 82 | BW85: 82 | BY85: 82 | CD85: 82 | CI85: 82 | CO85: 82 | CQ85: 82
BQ86: 83 | BT86: 83 | BW86: 83 | BY86: 83 | CD86: 83 | CI86: 83 | CO86: 83 | CQ86: 83
BT87: 84 | BW87: 84 | BY87: 84 | CI87: 84 | CO87: 84 | CQ87: 84
BT88: 85 | BW88: 85 | BY88: 85 | CI88: 85 | CO88: 85 | CQ88: 85
BT89: 86 | BW89: 86 | BY89: 86 | CI89: 86 | CO89: 86 | CQ89: 86
BT90: 87 | BW90: 87 | BY90: 87 | CI90: 87 | CO90: 87 | CQ90: 87
BT91: 88 | BW91: 88 | BY91: 88 | CI91: 88 | CO91: 88 | CQ91: 88
BT92: 89 | BW92: 89 | BY92: 89 | CI92: 89 | CO92: 89 | CQ92: 89
BT93: 90 | BW93: 90 | BY93: 90 | CI93: 90 | CO93: 90 | CQ93: 90
BT94: 91 | BW94: 91 | BY94: 91 | CI94: 91 | CO94: 91
BT95: 92 | BW95: 92 | BY95: 92 | CI95: 92 | CO95: 92
BT96: 93 | BW96: 93 | BY96: 93 | CI96: 93 | CO96: 93
BT97: 94 | BW97: 94 | BY97: 94 | CI97: 94 | CO97: 94
BT98: 95 | BW98: 95 | BY98: 95 | CI98: 95 | CO98: 95
BT99: 96 | BW99: 96 | BY99: 96 | CI99: 96 | CO99: 96
BT100: 97 | BW100: 97 | BY100: 97 | CI100: 97 | CO100: 97
BT101: 98 | BW101: 98 | BY101: 98 | CO101: 98
BT102: 99 | BW102: 99 | BY102: 99 | CO102: 99
BT103: 100 | BW103: 100 | BY103: 100 | CO103: 100
BT104: 101 | BW104: 101 | BY104: 101 | CO104: 101
BT105: 102 | BW105: 102 | BY105: 102 | CO105: 102
BT106: 103 | BW106: 103 | BY106: 103 | CO106: 103
BT107: 104 | BW107: 104 | BY107: 104 | CO107: 104
BT108: 105 | BW108: 105 | BY108: 105 | CO108: 105
BT109: 106 | BW109: 106 | BY109: 106 | CO109: 106
BT110: 107 | BW110: 107 | BY110: 107 | CO110: 107
BT111: 108 | BW111: 108 | BY111: 108 | CO111: 108
BT112: 109 | BW112: 109 | BY112: 109 | CO112: 109
BT113: 110 | BW113: 110 | BY113: 110 | CO113: 110
BT114: 111 | BW114: 111 | BY114: 111 | CO114: 111
BT115: 112 | BW115: 112 | BY115: 112 | CO115: 112
BT116: 113 | BW116: 113 | BY116: 113 | CO116: 113
BT117: 114 | BW117: 114 | BY117: 114 | CO117: 114
BT118: 115 | BW118: 115 | BY118: 115 | CO118: 115
BT119: 116 | BW119: 116 | BY119: 116 | CO119: 116
BT120: 117 | BW120: 117 | BY120: 117 | CO120: 117
BT121: 118 | BW121: 118 | BY121: 118 | CO121: 118
BT122: 119 | BW122: 119 | BY122: 119 | CO122: 119
BT123: 120 | BW123: 120 | BY123: 120 | CO123: 120
BT124: 121 | BW124: 121 | BY124: 121 | CO124: 121
BT125: 122 | BW125: 122 | BY125: 122 | CO125: 122
BT126: 123 | BW126: 123 | BY126: 123 | CO126: 123
BT127: 124 | BW127: 124 | BY127: 124 | CO127: 124
BT128: 125 | BW128: 125 | BY128: 125 | CO128: 125
BT129: 126 | BW129: 126 | BY129: 126 | CO129: 126
BT130: 127 | BW130: 127 | BY130: 127 | CO130: 127
BT131: 128 | BW131: 128 | BY131: 128 | CO131: 128
BT132: 129 | BW132: 129 | BY132: 129 | CO132: 129
BT133: 130 | BW133: 130 | BY133: 130 | CO133: 130
BT134: 131 | BW134: 131 | BY134: 131 | CO134: 131
BT135: 132 | BW135: 132 | BY135: 132 | CO135: 132
BT136: 133 | BW136: 133 | BY136: 133 | CO136: 133
BT137: 134 | BW137: 134 | BY137: 134 | CO137: 134
BT138: 135 | BW138: 135 | BY138: 135 | CO138: 135
BT139: 136 | BW139: 136 | CO139: 136
BT140: 137 | BW140: 137 | CO140: 137
BT141: 138 | BW141: 138 | CO141: 138
BT142: 139 | BW142: 139 | CO142: 139
BT143: 140 | BW143: 140 | CO143: 140
BT144: 141 | BW144: 141 | CO144: 141
BT145: 142 | BW145: 142 | CO145: 142
BT146: 143 | BW146: 143 | CO146: 143
BT147: 144 | BW147: 144 | CO147: 144
BT148: 145 | BW148: 145 | CO148: 145
BT149: 146 | BW149: 146 | CO149: 146
BT150: 147 | BW150: 147 | CO150: 147
BT151: 148 | BW151: 148 | CO151: 148
BT152: 149 | BW152: 149 | CO152: 149
BT153: 150 | BW153: 150 | CO153: 150
BT154: 151 | BW154: 151 | CO154: 151
BT155: 152 | BW155: 152 | CO155: 152
BT156: 153 | BW156: 153 | CO156: 153
BT157: 154 | BW157: 154 | CO157: 154
BT158: 155 | BW158: 155 | CO158: 155
BT159: 156 | BW159: 156 | CO159: 156
BT160: 157 | BW160: 157 | CO160: 157
BT161: 158 | BW161: 158 | CO161: 158
BT162: 159 | BW162: 159 | CO162: 159
BT163: 160 | BW163: 160 | CO163: 160
BT164: 161 | BW164: 161 | CO164: 161
BT165: 162 | BW165: 162 | CO165: 162
BT166: 163 | BW166: 163 | CO166: 163
BT167: 164 | BW167: 164 | CO167: 164
BT168: 165 | BW168: 165 | CO168: 165
BT169: 166 | BW169: 166 | CO169: 166
BT170: 167 | BW170: 167 | CO170: 167
BW171: 168 | CO171: 168
BW172: 169 | CO172: 169
BW173: 170 | CO173: 170
BW174: 171 | CO174: 171
BW175: 172 | CO175: 172
BW176: 173 | CO176: 173
BW177: 174 | CO177: 174
BW178: 175 | CO178: 175
BW179: 176 | CO179: 176
BW180: 177 | CO180: 177
BW181: 178 | CO181: 178
BW182: 179 | CO182: 179
BW183: 180 | CO183: 180
BW184: 181 | CO184: 181
BW185: 182 | CO185: 182
BW186: 183 | CO186: 183
BW187: 184 | CO187: 184
BW188: 185 | CO188: 185
BW189: 186 | CO189: 186
BW190: 187 | CO190: 187
BW191: 188 | CO191: 188
BW192: 189 | CO192: 189
BW193: 190 | CO193: 190
BW194: 191 | CO194: 191
BW195: 192 | CO195: 192
BW196: 193 | CO196: 193
BW197: 194 | CO197: 194
BW198: 195 | CO198: 195
BW199: 196 | CO199: 196
BW200: 197 | CO200: 197
BW201: 198 | CO201: 198
BW202: 199 | CO202: 199
... 76 more rows

Sheet Base Localidades
A1: Estado | B1: OID | C1: Cuadro local | D1: Cuadro vegetación | E1: Cuadro regional | F1: Porcentaje de vegetación* | G1: Población en zona de impacto local** | K1: 2010 | L1: Densidad local | M1: Población en zona de impacto regional ** | P1: 2010 | Q1: Densidad regional | R1: Clasificación por densidad poblacional | AC1: Concentración base de SO2 (μg/m3)*** | AD1: Constantes usadas de acuerdo a la clasificación por densidad poblacional | AK1: Vecinos de cada cuadro local | AS1: Estado perteneciente
G2: (habitantes en un radio de 50 km del centro del cuadro local) | L2: (ρ local) | M2: (habitantes en un radio de 1,000 km del centro del cuadro regional) | Q2: (ρ regional) | R2: x | S2: Rural (x<=2) | T2: Ciudad pequeña (2<x<=6) | W2: Ciudad mediana (6<x<=10) | Z2: Ciudad grande (10<x) | AB2: Clasificación general | AD2: Valores para el factor CF | AE2: Valores para el factor CT | AG2: Valores para el factor FS | AI2: Valores para el factor Fρ | AK2: Norte | AL2: Noreste | AM2: Este | AN2: Sureste | AO2: Sur | AP2: Suroeste | AQ2: Oeste | AR2: Noroeste | AS2: Norte | AT2: Noreste | AU2: Este | AV2: Sureste | AW2: Sur | AX2: Suroeste | AY2: Oeste | AZ2: Noroeste
F3: (%) | G3: México | H3: Estados Unidos | I3: Guatemala | J3: Belice | K3: TOTAL | L3: (personas/m2) | M3: México | N3: Estados Unidos | O3: Centroamérica-Caribe | P3: TOTAL | Q3: (personas/m2) | R3: (ρ local/ρ regional) | S3: 1705 | T3: 357 | W3: 60 | Z3: 46 | AB3: =S3+T3+W3+Z3 -> 2168 | AD3: b | AE3: a | AF3: b | AG3: a | AH3: b | AI3: a | AJ3: b
A4: 1 | B4: AGUASCALIENTES | E4: 0
A5: 1 | B5: 1178 | C5: 1 | D5: 76 | E5: 70 | F5: 0.3426 | G5: 1248439.833 | H5: 0 | I5: 0 | J5: 0 | K5: =SUM(G5:J5) -> 1248439.833 | L5: =K5/(PI()*50000^2) -> 0.0001589562964 | M5: 97355109.87 | N5: 6141243.804 | O5: 0 | P5: =SUM(M5:O5) -> 103496353.7 | Q5: =P5/(PI()*1000000^2) -> 3.294391256e-05 | R5: =L5/Q5 -> 4.82505823 | S5: =IF(R5<=2,1,0) -> 0 | T5: =IF(R5>2,1,0) -> 1 | U5: =IF(R5<=6,2,0) -> 2 | V5: =T5*U5 -> 2 | W5: =IF(R5>6,1,0) -> 0 | X5: =IF(R5<=10,3,0) -> 3 | Y5: =W5*X5 -> 0 | Z5: =IF(R5>10,4,0) -> 0 | AA5: =IF(Z5=4,AB5,0) -> 0 | AB5: 2 | AC5: 10 | AD5: -0.1034 | AE5: 1.035 | AF5: -0.4288 | AG5: 1.52 | AH5: -0.076 | AI5: 4.35 | AJ5: -0.153 | AK5: 65 | AL5: 66 | AM5: 2 | AN5: 5 | AO5: 4 | AP5: 3 | AQ5: 69 | AR5: 64 | AS5: 32 | AT5: 32 | AU5: 1 | AV5: 1 | AW5: 1 | AX5: 1 | AY5: 32 | AZ5: 32
A6: 1 | B6: 1177 | C6: 2 | D6: 76 | E6: 70 | F6: 0.3426 | G6: 1361214.683 | H6: 0 | I6: 0 | J6: 0 | K6: =SUM(G6:J6) -> 1361214.683 | L6: =K6/(PI()*50000^2) -> 0.0001733152363 | M6: 97355109.87 | N6: 6141243.804 | O6: 0 | P6: =SUM(M6:O6) -> 103496353.7 | Q6: =P6/(PI()*1000000^2) -> 3.294391256e-05 | R6: =L6/Q6 -> 5.260918418 | S6: 0 | T6: =IF(R6>2,1,0) -> 1 | U6: 2 | V6: =T6*U6 -> 2 | W6: 0 | X6: 3 | Y6: =W6*X6 -> 0 | Z6: 0 | AA6: =IF(Z6=4,AB6,0) -> 0 | AB6: 2 | AC6: 10 | AD6: -0.1034 | AE6: 1.035 | AF6: -0.4288 | AG6: 1.52 | AH6: -0.076 | AI6: 4.35 | AJ6: -0.153 | AK6: 66 | AL6: 67 | AM6: 70 | AN6: 10 | AO6: 5 | AP6: 4 | AQ6: 1 | AR6: 65 | AS6: 32 | AT6: 32 | AU6: 32 | AV6: 15 | AW6: 1 | AX6: 1 | AY6: 1 | AZ6: 32
A7: 1 | B7: 1150 | C7: 3 | D7: 81 | E7: 74 | F7: 0.3448 | G7: 202407.5494 | H7: 0 | I7: 0 | J7: 0 | K7: =SUM(G7:J7) -> 202407.5494 | L7: 2.577132961e-05 | M7: 98405036.66 | N7: 4347645.375 | O7: 0 | P7: 102752682 | Q7: 3.270719452e-05 | R7: =L7/Q7 -> 0.7879406957 | S7: 1 | T7: 0 | U7: 2 | V7: 0 | W7: 0 | X7: 3 | Y7: 0 | Z7: 0 | AA7: 0 | AB7: 1 | AC7: 10 | AD7: -0.0568 | AE7: 1.02 | AF7: -0.2446 | AG7: 2.94 | AH7: -0.206 | AI7: 4.35 | AJ7: -0.153 | AK7: 69 | AL7: 1 | AM7: 4 | AN7: 12 | AO7: 76 | AP7: 75 | AQ7: 72 | AR7: 6 | AS7: 32 | AT7: 1 | AU7: 1 | AV7: 15 | AW7: 32 | AX7: 32 | AY7: 32 | AZ7: 15
A8: 1 | B8: 1149 | C8: 4 | D8: 81 | E8: 74 | F8: 0.3448 | G8: 1275102.377 | H8: 0 | I8: 0 | J8: 0 | K8: =SUM(G8:J8) -> 1275102.377 | L8: 0.0001623510769 | M8: 98405036.66 | N8: 4347645.375 | O8: 0 | P8: 102752682 | Q8: 3.270719452e-05 | R8: =L8/Q8 -> 4.963772629 | S8: 0 | T8: 1 | U8: 2 | V8: 2 | W8: 0 | X8: 3 | Y8: 0 | Z8: 0 | AA8: 0 | AB8: 2 | AC8: 10 | AD8: -0.1034 | AE8: 1.035 | AF8: -0.4288 | AG8: 1.52 | AH8: -0.076 | AI8: 4.35 | AJ8: -0.153 | AK8: 1 | AL8: 2 | AM8: 5 | AN8: 13 | AO8: 12 | AP8: 76 | AQ8: 3 | AR8: 69 | AS8: 1 | AT8: 1 | AU8: 1 | AV8: 15 | AW8: 15 | AX8: 32 | AY8: 1 | AZ8: 32
A9: 1 | B9: 1148 | C9: 5 | D9: 81 | E9: 74 | F9: 0.3448 | G9: 1306276.039 | H9: 0 | I9: 0 | J9: 0 | K9: =SUM(G9:J9) -> 1306276.039 | L9: 0.0001663202309 | M9: 98405036.66 | N9: 4347645.375 | O9: 0 | P9: 102752682 | Q9: 3.270719452e-05 | R9: =L9/Q9 -> 5.085126784 | S9: 0 | T9: 1 | U9: 2 | V9: 2 | W9: 0 | X9: 3 | Y9: 0 | Z9: 0 | AA9: 0 | AB9: 2 | AC9: 10 | AD9: -0.1034 | AE9: 1.035 | AF9: -0.4288 | AG9: 1.52 | AH9: -0.076 | AI9: 4.35 | AJ9: -0.153 | AK9: 2 | AL9: 70 | AM9: 10 | AN9: 14 | AO9: 13 | AP9: 12 | AQ9: 4 | AR9: 1 | AS9: 1 | AT9: 32 | AU9: 15 | AV9: 15 | AW9: 15 | AX9: 15 | AY9: 1 | AZ9: 1
A10: 2 | B10: BAJA CALIFORNIA | E10: 0 | AB10: 0
A11: 2 | B11: 2301 | C11: 1 | D11: 1 | E11: 1 | F11: 0.6094 | G11: 101133.8228 | H11: 91803.23448 | I11: 0 | J11: 0 | K11: =SUM(G11:J11) -> 192937.0573 | L11: =K11/(PI()*50000^2) -> 2.45655091e-05 | M11: 7880567.3 | N11: 48093358.03 | O11: 0 | P11: 55973925.33 | Q11: 1.78170538e-05 | R11: =L11/Q11 -> 1.378763817 | S11: 1 | T11: 0 | U11: 2 | V11: 0 | W11: 0 | X11: 3 | Y11: 0 | Z11: 0 | AA11: 0 | AB11: 1 | AC11: 10 | AD11: -0.0568 | AE11: 1.02 | AF11: -0.2446 | AG11: 2.94 | AH11: -0.206 | AI11: 4.35 | AJ11: -0.153 | AK11: 0 | AL11: 0 | AM11: 2 | AN11: 9 | AO11: 8 | AP11: 7 | AQ11: 0 | AR11: 0 | AS11: 0 | AT11: 0 | AU11: 2 | AV11: 2 | AW11: 2 | AX11: 2 | AY11: 0 | AZ11: 0
A12: 2 | B12: 2300 | C12: 2 | D12: 2 | E12: 2 | F12: 0.7738 | G12: 805780.254 | H12: 182151.3627 | I12: 0 | J12: 0 | K12: =SUM(G12:J12) -> 987931.6167 | L12: 0.0001257873602 | M12: 10440176.69 | N12: 49348500.86 | O12: 0 | P12: 59788677.56 | Q12: 1.903132715e-05 | R12: 6.60948967 | S12: 0 | T12: 1 | U12: 0 | V12: 0 | W12: 1 | X12: 3 | Y12: 3 | Z12: 0 | AA12: 0 | AB12: 3 | AC12: 10 | AD12: -0.1034 | AE12: 1.035 | AF12: -0.4288 | AG12: 1.38 | AH12: -0.056 | AI12: 4.35 | AJ12: -0.153 | AK12: 0 | AL12: 0 | AM12: 3 | AN12: 10 | AO12: 9 | AP12: 8 | AQ12: 1 | AR12: 0 | AS12: 0 | AT12: 0 | AU12: 2 | AV12: 2 | AW12: 2 | AX12: 2 | AY12: 2 | AZ12: 0
A13: 2 | B13: 2299 | C13: 3 | D13: 2 | E13: 2 | F13: 0.7738 | G13: 865690.1444 | H13: 157331.9611 | I13: 0 | J13: 0 | K13: 1023022.106 | L13: 0.00013025522 | M13: 10440176.69 | N13: 49348500.86 | O13: 0 | P13: 59788677.56 | Q13: 1.903132715e-05 | R13: 6.844253108 | S13: 0 | T13: 1 | U13: 0 | V13: 0 | W13: 1 | X13: 3 | Y13: 3 | Z13: 0 | AA13: 0 | AB13: 3 | AC13: 10 | AD13: -0.1034 | AE13: 1.035 | AF13: -0.4288 | AG13: 1.38 | AH13: -0.056 | AI13: 4.35 | AJ13: -0.153 | AK13: 0 | AL13: 0 | AM13: 4 | AN13: 11 | AO13: 10 | AP13: 9 | AQ13: 2 | AR13: 0 | AS13: 0 | AT13: 0 | AU13: 2 | AV13: 2 | AW13: 2 | AX13: 2 | AY13: 2 | AZ13: 0
A14: 2 | B14: 2298 | C14: 4 | D14: 2 | E14: 2 | F14: 0.7738 | G14: 1114898.086 | H14: 327257.1683 | I14: 0 | J14: 0 | K14: 1442155.254 | L14: 0.0001836209099 | M14: 10440176.69 | N14: 49348500.86 | O14: 0 | P14: 59788677.56 | Q14: 1.903132715e-05 | R14: 9.648350242 | S14: 0 | T14: 1 | U14: 0 | V14: 0 | W14: 1 | X14: 3 | Y14: 3 | Z14: 0 | AA14: 0 | AB14: 3 | AC14: 10 | AD14: -0.1034 | AE14: 1.035 | AF14: -0.4288 | AG14: 1.38 | AH14: -0.056 | AI14: 4.35 | AJ14: -0.153 | AK14: 0 | AL14: 0 | AM14: 5 | AN14: 1 | AO14: 11 | AP14: 10 | AQ14: 3 | AR14: 0 | AS14: 0 | AT14: 0 | AU14: 2 | AV14: 26 | AW14: 2 | AX14: 2 | AY14: 2 | AZ14: 0
A15: 2 | B15: 2297 | C15: 5 | D15: 2 | E15: 2 | F15: 0.7738 | G15: 325667.926 | H15: 236388.9951 | I15: 0 | J15: 0 | K15: =SUM(G15:J15) -> 562056.9211 | L15: 7.156330983e-05 | M15: 10440176.69 | N15: 49348500.86 | O15: 0 | P15: 59788677.56 | Q15: 1.903132715e-05 | R15: 3.760290035 | S15: 0 | T15: 1 | U15: 2 | V15: 2 | W15: 0 | X15: 3 | Y15: 0 | Z15: 0 | AA15: 0 | AB15: 2 | AC15: 10 | AD15: -0.1034 | AE15: 1.035 | AF15: -0.4288 | AG15: 1.52 | AH15: -0.076 | AI15: 4.35 | AJ15: -0.153 | AK15: 0 | AL15: 0 | AM15: 0 | AN15: 2 | AO15: 1 | AP15: 11 | AQ15: 4 | AR15: 0 | AS15: 0 | AT15: 0 | AU15: 0 | AV15: 26 | AW15: 26 | AX15: 2 | AY15: 2 | AZ15: 0
A16: 2 | B16: 2296 | C16: 6 | D16: 1 | E16: 1 | F16: 0.6094 | G16: 1815138.067 | H16: 77491.80056 | I16: 0 | J16: 0 | K16: 1892629.868 | L16: 0.0002409771191 | M16: 7880567.3 | N16: 48093358.03 | O16: 0 | P16: 55973925.33 | Q16: 1.78170538e-05 | R16: 13.52508231 | S16: 0 | T16: 1 | U16: 0 | V16: 0 | W16: 1 | X16: 0 | Y16: 0 | Z16: 4 | AA16: 5 | AB16: 5 | AC16: 15 | AD16: -0.1034 | AE16: 1.035 | AF16: -0.4288 | AG16: 1.4 | AH16: -0.06 | AI16: 11.9 | AJ16: -0.248 | AK16: 0 | AL16: 0 | AM16: 7 | AN16: 13 | AO16: 12 | AP16: 0 | AQ16: 0 | AR16: 0 | AS16: 0 | AT16: 0 | AU16: 2 | AV16: 2 | AW16: 2 | AX16: 0 | AY16: 0 | AZ16: 0
A17: 2 | B17: 2295 | C17: 7 | D17: 1 | E17: 1 | F17: 0.6094 | G17: 344083.4035 | H17: 48195.93333 | I17: 0 | J17: 0 | K17: 392279.3368 | L17: 4.994655642e-05 | M17: 7880567.3 | N17: 48093358.03 | O17: 0 | P17: 55973925.33 | Q17: 1.78170538e-05 | R17: 2.803300533 | S17: 0 | T17: 1 | U17: 2 | V17: 2 | W17: 0 | X17: 3 | Y17: 0 | Z17: 0 | AA17: 0 | AB17: 2 | AC17: 10 | AD17: -0.1034 | AE17: 1.035 | AF17: -0.4288 | AG17: 1.52 | AH17: -0.076 | AI17: 4.35 | AJ17: -0.153 | AK17: 0 | AL17: 0 | AM17: 8 | AN17: 14 | AO17: 13 | AP17: 12 | AQ17: 6 | AR17: 0 | AS17: 0 | AT17: 0 | AU17: 2 | AV17: 2 | AW17: 2 | AX17: 2 | AY17: 2 | AZ17: 0
A18: 2 | B18: 2294 | C18: 8 | D18: 1 | E18: 1 | F18: 0.6094 | G18: 40293.31344 | H18: 42666.12171 | I18: 0 | J18: 0 | K18: 82959.43515 | L18: 1.056272334e-05 | M18: 7880567.3 | N18: 48093358.03 | O18: 0 | P18: 55973925.33 | Q18: 1.78170538e-05 | R18: 0.5928434332 | S18: 1 | T18: 0 | U18: 2 | V18: 0 | W18: 0 | X18: 3 | Y18: 0 | Z18: 0 | AA18: 0 | AB18: 1 | AC18: 10 | AD18: -0.0568 | AE18: 1.02 | AF18: -0.2446 | AG18: 2.94 | AH18: -0.206 | AI18: 4.35 | AJ18: -0.153 | AK18: 1 | AL18: 2 | AM18: 9 | AN18: 15 | AO18: 14 | AP18: 13 | AQ18: 7 | AR18: 0 | AS18: 2 | AT18: 2 | AU18: 2 | AV18: 2 | AW18: 2 | AX18: 2 | AY18: 2 | AZ18: 0
A19: 2 | B19: 2293 | C19: 9 | D19: 2 | E19: 2 | F19: 0.7738 | G19: 782785.2608 | H19: 79534.25173 | I19: 0 | J19: 0 | K19: 862319.5125 | L19: 0.0001097939303 | M19: 10440176.69 | N19: 49348500.86 | O19: 0 | P19: 59788677.56 | Q19: 1.903132715e-05 | R19: 5.769115811 | S19: 0 | T19: 1 | U19: 2 | V19: 2 | W19: 0 | X19: 3 | Y19: 0 | Z19: 0 | AA19: 0 | AB19: 2 | AC19: 10 | AD19: -0.1034 | AE19: 1.035 | AF19: -0.4288 | AG19: 1.52 | AH19: -0.076 | AI19: 4.35 | AJ19: -0.153 | AK19: 2 | AL19: 3 | AM19: 10 | AN19: 16 | AO19: 15 | AP19: 14 | AQ19: 8 | AR19: 1 | AS19: 2 | AT19: 2 | AU19: 2 | AV19: 2 | AW19: 2 | AX19: 2 | AY19: 2 | AZ19: 2
A20: 2 | B20: 2292 | C20: 10 | D20: 2 | E20: 2 | F20: 0.7738 | G20: 894177.6549 | H20: 74069.70065 | I20: 0 | J20: 0 | K20: 968247.3555 | L20: 0.0001232810822 | M20: 10440176.69 | N20: 49348500.86 | O20: 0 | P20: 59788677.56 | Q20: 1.903132715e-05 | R20: 6.477797436 | S20: 0 | T20: 1 | U20: 0 | V20: 0 | W20: 1 | X20: 3 | Y20: 3 | Z20: 0 | AA20: 0 | AB20: 3 | AC20: 10 | AD20: -0.1034 | AE20: 1.035 | AF20: -0.4288 | AG20: 1.38 | AH20: -0.056 | AI20: 4.35 | AJ20: -0.153 | AK20: 3 | AL20: 4 | AM20: 11 | AN20: 17 | AO20: 16 | AP20: 15 | AQ20: 9 | AR20: 2 | AS20: 2 | AT20: 2 | AU20: 2 | AV20: 2 | AW20: 2 | AX20: 2 | AY20: 2 | AZ20: 2
A21: 2 | B21: 2291 | C21: 11 | D21: 2 | E21: 2 | F21: 0.7738 | G21: 1125647.875 | H21: 82725.90033 | I21: 0 | J21: 0 | K21: 1208373.775 | L21: 0.0001538549275 | M21: 10440176.69 | N21: 49348500.86 | O21: 0 | P21: 59788677.56 | Q21: 1.903132715e-05 | R21: 8.084298394 | S21: 0 | T21: 1 | U21: 0 | V21: 0 | W21: 1 | X21: 3 | Y21: 3 | Z21: 0 | AA21: 0 | AB21: 3 | AC21: 10 | AD21: -0.1034 | AE21: 1.035 | AF21: -0.4288 | AG21: 1.38 | AH21: -0.056 | AI21: 4.35 | AJ21: -0.153 | AK21: 4 | AL21: 5 | AM21: 1 | AN21: 3 | AO21: 17 | AP21: 16 | AQ21: 10 | AR21: 3 | AS21: 2 | AT21: 2 | AU21: 26 | AV21: 26 | AW21: 2 | AX21: 2 | AY21: 2 | AZ21: 2
A22: 2 | B22: 2287 | C22: 12 | D22: 1 | E22: 1 | F22: 0.6094 | G22: 702696.0694 | H22: 0 | I22: 0 | J22: 0 | K22: 702696.0694 | L22: 8.947004235e-05 | M22: 7880567.3 | N22: 48093358.03 | O22: 0 | P22: 55973925.33 | Q22: 1.78170538e-05 | R22: 5.02159579 | S22: 0 | T22: 1 | U22: 2 | V22: 2 | W22: 0 | X22: 3 | Y22: 0 | Z22: 0 | AA22: 0 | AB22: 2 | AC22: 10 | AD22: -0.1034 | AE22: 1.035 | AF22: -0.4288 | AG22: 1.52 | AH22: -0.076 | AI22: 4.35 | AJ22: -0.153 | AK22: 6 | AL22: 7 | AM22: 13 | AN22: 18 | AO22: 0 | AP22: 0 | AQ22: 0 | AR22: 0 | AS22: 2 | AT22: 2 | AU22: 2 | AV22: 2 | AW22: 0 | AX22: 0 | AY22: 0 | AZ22: 0
A23: 2 | B23: 2286 | C23: 13 | D23: 1 | E23: 1 | F23: 0.6094 | G23: 480920.6607 | H23: 0 | I23: 0 | J23: 0 | K23: 480920.6607 | L23: 6.123272031e-05 | M23: 7880567.3 | N23: 48093358.03 | O23: 0 | P23: 55973925.33 | Q23: 1.78170538e-05 | R23: 3.436747792 | S23: 0 | T23: 1 | U23: 2 | V23: 2 | W23: 0 | X23: 3 | Y23: 0 | Z23: 0 | AA23: 0 | AB23: 2 | AC23: 10 | AD23: -0.1034 | AE23: 1.035 | AF23: -0.4288 | AG23: 1.52 | AH23: -0.076 | AI23: 4.35 | AJ23: -0.153 | AK23: 7 | AL23: 8 | AM23: 14 | AN23: 19 | AO23: 18 | AP23: 0 | AQ23: 12 | AR23: 6 | AS23: 2 | AT23: 2 | AU23: 2 | AV23: 2 | AW23: 2 | AX23: 0 | AY23: 2 | AZ23: 2
A24: 2 | B24: 2285 | C24: 14 | D24: 1 | E24: 1 | F24: 0.6094 | G24: 33934.42938 | H24: 0 | I24: 0 | J24: 0 | K24: 33934.42938 | L24: 4.320665741e-06 | M24: 7880567.3 | N24: 48093358.03 | O24: 0 | P24: 55973925.33 | Q24: 1.78170538e-05 | R24: 0.2425016947 | S24: 1 | T24: 0 | U24: 2 | V24: 0 | W24: 0 | X24: 3 | Y24: 0 | Z24: 0 | AA24: 0 | AB24: 1 | AC24: 10 | AD24: -0.0568 | AE24: 1.02 | AF24: -0.2446 | AG24: 2.94 | AH24: -0.206 | AI24: 4.35 | AJ24: -0.153 | AK24: 8 | AL24: 9 | AM24: 15 | AN24: 20 | AO24: 19 | AP24: 18 | AQ24: 13 | AR24: 7 | AS24: 2 | AT24: 2 | AU24: 2 | AV24: 2 | AW24: 2 | AX24: 2 | AY24: 2 | AZ24: 2
A25: 2 | B25: 2284 | C25: 15 | D25: 2 | E25: 2 | F25: 0.7738 | G25: 6277.014468 | H25: 0 | I25: 0 | J25: 0 | K25: 6277.014468 | L25: 7.992143044e-07 | M25: 10440176.69 | N25: 49348500.86 | O25: 0 | P25: 59788677.56 | Q25: 1.903132715e-05 | R25: 0.04199467006 | S25: 1 | T25: 0 | U25: 2 | V25: 0 | W25: 0 | X25: 3 | Y25: 0 | Z25: 0 | AA25: 0 | AB25: 1 | AC25: 10 | AD25: -0.0568 | AE25: 1.02 | AF25: -0.2446 | AG25: 2.94 | AH25: -0.206 | AI25: 4.35 | AJ25: -0.153 | AK25: 9 | AL25: 10 | AM25: 16 | AN25: 21 | AO25: 20 | AP25: 19 | AQ25: 14 | AR25: 8 | AS25: 2 | AT25: 2 | AU25: 2 | AV25: 2 | AW25: 2 | AX25: 2 | AY25: 2 | AZ25: 2
A26: 2 | B26: 2283 | C26: 16 | D26: 2 | E26: 2 | F26: 0.7738 | G26: 86603.52403 | H26: 0 | I26: 0 | J26: 0 | K26: 86603.52403 | L26: 1.102670315e-05 | M26: 10440176.69 | N26: 49348500.86 | O26: 0 | P26: 59788677.56 | Q26: 1.903132715e-05 | R26: 0.5793974884 | S26: 1 | T26: 0 | U26: 2 | V26: 0 | W26: 0 | X26: 3 | Y26: 0 | Z26: 0 | AA26: 0 | AB26: 1 | AC26: 10 | AD26: -0.0568 | AE26: 1.02 | AF26: -0.2446 | AG26: 2.94 | AH26: -0.206 | AI26: 4.35 | AJ26: -0.153 | AK26: 10 | AL26: 11 | AM26: 17 | AN26: 22 | AO26: 21 | AP26: 20 | AQ26: 15 | AR26: 9 | AS26: 2 | AT26: 2 | AU26: 2 | AV26: 2 | AW26: 2 | AX26: 2 | AY26: 2 | AZ26: 2
A27: 2 | B27: 2282 | C27: 17 | D27: 2 | E27: 2 | F27: 0.7738 | G27: 131881.5559 | H27: 0 | I27: 0 | J27: 0 | K27: 131881.5559 | L27: 1.679168122e-05 | M27: 10440176.69 | N27: 49348500.86 | O27: 0 | P27: 59788677.56 | Q27: 1.903132715e-05 | R27: 0.8823179325 | S27: 1 | T27: 0 | U27: 2 | V27: 0 | W27: 0 | X27: 3 | Y27: 0 | Z27: 0 | AA27: 0 | AB27: 1 | AC27: 10 | AD27: -0.0568 | AE27: 1.02 | AF27: -0.2446 | AG27: 2.94 | AH27: -0.206 | AI27: 4.35 | AJ27: -0.153 | AK27: 11 | AL27: 1 | AM27: 3 | AN27: 8 | AO27: 22 | AP27: 21 | AQ27: 16 | AR27: 10 | AS27: 2 | AT27: 26 | AU27: 26 | AV27: 26 | AW27: 2 | AX27: 2 | AY27: 2 | AZ27: 2
A28: 2 | B28: 2392 | C28: 18 | D28: 4 | E28: 3 | F28: 0.9165 | G28: 368361.3658 | H28: 0 | I28: 0 | J28: 0 | K28: 368361.3658 | L28: 4.690122577e-05 | M28: 8970970.832 | N28: 45589480.13 | O28: 0 | P28: 54560450.96 | Q28: 1.736713093e-05 | R28: 2.700574202 | S28: 0 | T28: 1 | U28: 2 | V28: 2 | W28: 0 | X28: 3 | Y28: 0 | Z28: 0 | AA28: 0 | AB28: 2 | AC28: 10 | AD28: -0.1034 | AE28: 1.035 | AF28: -0.4288 | AG28: 1.52 | AH28: -0.076 | AI28: 4.35 | AJ28: -0.153 | AK28: 13 | AL28: 14 | AM28: 19 | AN28: 24 | AO28: 23 | AP28: 0 | AQ28: 0 | AR28: 12 | AS28: 2 | AT28: 2 | AU28: 2 | AV28: 2 | AW28: 2 | AX28: 0 | AY28: 0 | AZ28: 2
A29: 2 | B29: 2391 | C29: 19 | D29: 4 | E29: 3 | F29: 0.9165 | G29: 354450.7887 | H29: 0 | I29: 0 | J29: 0 | K29: 354450.7887 | L29: 4.513007609e-05 | M29: 8970970.832 | N29: 45589480.13 | O29: 0 | P29: 54560450.96 | Q29: 1.736713093e-05 | R29: 2.598591342 | S29: 0 | T29: 1 | U29: 2 | V29: 2 | W29: 0 | X29: 3 | Y29: 0 | Z29: 0 | AA29: 0 | AB29: 2 | AC29: 10 | AD29: -0.1034 | AE29: 1.035 | AF29: -0.4288 | AG29: 1.52 | AH29: -0.076 | AI29: 4.35 | AJ29: -0.153 | AK29: 14 | AL29: 15 | AM29: 20 | AN29: 25 | AO29: 24 | AP29: 23 | AQ29: 18 | AR29: 13 | AS29: 2 | AT29: 2 | AU29: 2 | AV29: 2 | AW29: 2 | AX29: 2 | AY29: 2 | AZ29: 2
A30: 2 | B30: 2390 | C30: 20 | D30: 5 | E30: 4 | F30: 0.8321 | G30: 7228.3599 | H30: 0 | I30: 0 | J30: 0 | K30: 7228.3599 | L30: 9.203433668e-07 | M30: 11136474.5 | N30: 39901365.79 | O30: 0 | P30: 51037840.29 | Q30: 1.624584913e-05 | R30: 0.05665098569 | S30: 1 | T30: 0 | U30: 2 | V30: 0 | W30: 0 | X30: 3 | Y30: 0 | Z30: 0 | AA30: 0 | AB30: 1 | AC30: 10 | AD30: -0.0568 | AE30: 1.02 | AF30: -0.2446 | AG30: 2.94 | AH30: -0.206 | AI30: 4.35 | AJ30: -0.153 | AK30: 15 | AL30: 16 | AM30: 21 | AN30: 26 | AO30: 25 | AP30: 24 | AQ30: 19 | AR30: 14 | AS30: 2 | AT30: 2 | AU30: 2 | AV30: 2 | AW30: 2 | AX30: 2 | AY30: 2 | AZ30: 2
A31: 2 | B31: 2389 | C31: 21 | D31: 5 | E31: 4 | F31: 0.8321 | G31: 4748.436568 | H31: 0 | I31: 0 | J31: 0 | K31: 4748.436568 | L31: 6.045897214e-07 | M31: 11136474.5 | N31: 39901365.79 | O31: 0 | P31: 51037840.29 | Q31: 1.624584913e-05 | R31: 0.03721502745 | S31: 1 | T31: 0 | U31: 2 | V31: 0 | W31: 0 | X31: 3 | Y31: 0 | Z31: 0 | AA31: 0 | AB31: 1 | AC31: 10 | AD31: -0.0568 | AE31: 1.02 | AF31: -0.2446 | AG31: 2.94 | AH31: -0.206 | AI31: 4.35 | AJ31: -0.153 | AK31: 16 | AL31: 17 | AM31: 22 | AN31: 27 | AO31: 26 | AP31: 25 | AQ31: 20 | AR31: 15 | AS31: 2 | AT31: 2 | AU31: 2 | AV31: 2 | AW31: 2 | AX31: 2 | AY31: 2 | AZ31: 2
A32: 2 | B32: 2388 | C32: 22 | D32: 5 | E32: 4 | F32: 0.8321 | G32: 58788.58787 | H32: 0 | I32: 0 | J32: 0 | K32: 58788.58787 | L32: 7.485195486e-06 | M32: 11136474.5 | N32: 39901365.79 | O32: 0 | P32: 51037840.29 | Q32: 1.624584913e-05 | R32: 0.4607451063 | S32: 1 | T32: 0 | U32: 2 | V32: 0 | W32: 0 | X32: 3 | Y32: 0 | Z32: 0 | AA32: 0 | AB32: 1 | AC32: 10 | AD32: -0.0568 | AE32: 1.02 | AF32: -0.2446 | AG32: 2.94 | AH32: -0.206 | AI32: 4.35 | AJ32: -0.153 | AK32: 17 | AL32: 3 | AM32: 8 | AN32: 28 | AO32: 27 | AP32: 26 | AQ32: 21 | AR32: 16 | AS32: 2 | AT32: 26 | AU32: 26 | AV32: 2 | AW32: 2 | AX32: 2 | AY32: 2 | AZ32: 2
A33: 2 | B33: 2383 | C33: 23 | D33: 4 | E33: 3 | F33: 0.9165 | G33: 365270.0113 | H33: 0 | I33: 0 | J33: 0 | K33: 365270.0113 | L33: 4.650762229e-05 | M33: 8970970.832 | N33: 45589480.13 | O33: 0 | P33: 54560450.96 | Q33: 1.736713093e-05 | R33: 2.6779105 | S33: 0 | T33: 1 | U33: 2 | V33: 2 | W33: 0 | X33: 3 | Y33: 0 | Z33: 0 | AA33: 0 | AB33: 2 | AC33: 10 | AD33: -0.1034 | AE33: 1.035 | AF33: -0.4288 | AG33: 1.52 | AH33: -0.076 | AI33: 4.35 | AJ33: -0.153 | AK33: 18 | AL33: 19 | AM33: 24 | AN33: 30 | AO33: 29 | AP33: 0 | AQ33: 0 | AR33: 0 | AS33: 2 | AT33: 2 | AU33: 2 | AV33: 2 | AW33: 2 | AX33: 0 | AY33: 0 | AZ33: 0
A34: 2 | B34: 2382 | C34: 24 | D34: 4 | E34: 3 | F34: 0.9165 | G34: 355183.4698 | H34: 0 | I34: 0 | J34: 0 | K34: 355183.4698 | L34: 4.522336394e-05 | M34: 8970970.832 | N34: 45589480.13 | O34: 0 | P34: 54560450.96 | Q34: 1.736713093e-05 | R34: 2.60396286 | S34: 0 | T34: 1 | U34: 2 | V34: 2 | W34: 0 | X34: 3 | Y34: 0 | Z34: 0 | AA34: 0 | AB34: 2 | AC34: 10 | AD34: -0.1034 | AE34: 1.035 | AF34: -0.4288 | AG34: 1.52 | AH34: -0.076 | AI34: 4.35 | AJ34: -0.153 | AK34: 19 | AL34: 20 | AM34: 25 | AN34: 31 | AO34: 30 | AP34: 29 | AQ34: 23 | AR34: 18 | AS34: 2 | AT34: 2 | AU34: 2 | AV34: 2 | AW34: 2 | AX34: 2 | AY34: 2 | AZ34: 2
A35: 2 | B35: 2381 | C35: 25 | D35: 5 | E35: 4 | F35: 0.8321 | G35: 6006.533904 | H35: 0 | I35: 0 | J35: 0 | K35: 6006.533904 | L35: 7.647756493e-07 | M35: 11136474.5 | N35: 39901365.79 | O35: 0 | P35: 51037840.29 | Q35: 1.624584913e-05 | R35: 0.04707514166 | S35: 1 | T35: 0 | U35: 2 | V35: 0 | W35: 0 | X35: 3 | Y35: 0 | Z35: 0 | AA35: 0 | AB35: 1 | AC35: 10 | AD35: -0.0568 | AE35: 1.02 | AF35: -0.2446 | AG35: 2.94 | AH35: -0.206 | AI35: 4.35 | AJ35: -0.153 | AK35: 20 | AL35: 21 | AM35: 26 | AN35: 32 | AO35: 31 | AP35: 30 | AQ35: 24 | AR35: 19 | AS35: 2 | AT35: 2 | AU35: 2 | AV35: 2 | AW35: 2 | AX35: 2 | AY35: 2 | AZ35: 2
A36: 2 | B36: 2380 | C36: 26 | D36: 5 | E36: 4 | F36: 0.8321 | G36: 5329.814332 | H36: 0 | I36: 0 | J36: 0 | K36: 5329.814332 | L36: 6.786130374e-07 | M36: 11136474.5 | N36: 39901365.79 | O36: 0 | P36: 51037840.29 | Q36: 1.624584913e-05 | R36: 0.04177147232 | S36: 1 | T36: 0 | U36: 2 | V36: 0 | W36: 0 | X36: 3 | Y36: 0 | Z36: 0 | AA36: 0 | AB36: 1 | AC36: 10 | AD36: -0.0568 | AE36: 1.02 | AF36: -0.2446 | AG36: 2.94 | AH36: -0.206 | AI36: 4.35 | AJ36: -0.153 | AK36: 21 | AL36: 22 | AM36: 27 | AN36: 33 | AO36: 32 | AP36: 31 | AQ36: 25 | AR36: 20 | AS36: 2 | AT36: 2 | AU36: 2 | AV36: 2 | AW36: 2 | AX36: 2 | AY36: 2 | AZ36: 2
A37: 2 | B37: 2379 | C37: 27 | D37: 5 | E37: 4 | F37: 0.8321 | G37: 1336.85796 | H37: 0 | I37: 0 | J37: 0 | K37: 1336.85796 | L37: 1.70214042e-07 | M37: 11136474.5 | N37: 39901365.79 | O37: 0 | P37: 51037840.29 | Q37: 1.624584913e-05 | R37: 0.0104773866 | S37: 1 | T37: 0 | U37: 2 | V37: 0 | W37: 0 | X37: 3 | Y37: 0 | Z37: 0 | AA37: 0 | AB37: 1 | AC37: 10 | AD37: -0.0568 | AE37: 1.02 | AF37: -0.2446 | AG37: 2.94 | AH37: -0.206 | AI37: 4.35 | AJ37: -0.153 | AK37: 22 | AL37: 8 | AM37: 28 | AN37: 0 | AO37: 33 | AP37: 32 | AQ37: 26 | AR37: 21 | AS37: 2 | AT37: 26 | AU37: 2 | AV37: 0 | AW37: 2 | AX37: 2 | AY37: 2 | AZ37: 2
A38: 2 | B38: 2378 | C38: 28 | D38: 5 | E38: 4 | F38: 0.8321 | G38: 5246.908412 | H38: 0 | I38: 0 | J38: 0 | K38: 5246.908412 | L38: 6.680571278e-07 | M38: 11136474.5 | N38: 39901365.79 | O38: 0 | P38: 51037840.29 | Q38: 1.624584913e-05 | R38: 0.04112171191 | S38: 1 | T38: 0 | U38: 2 | V38: 0 | W38: 0 | X38: 3 | Y38: 0 | Z38: 0 | AA38: 0 | AB38: 1 | AC38: 10 | AD38: -0.0568 | AE38: 1.02 | AF38: -0.2446 | AG38: 2.94 | AH38: -0.206 | AI38: 4.35 | AJ38: -0.153 | AK38: 8 | AL38: 9 | AM38: 0 | AN38: 0 | AO38: 0 | AP38: 33 | AQ38: 27 | AR38: 22 | AS38: 26 | AT38: 26 | AU38: 0 | AV38: 0 | AW38: 0 | AX38: 2 | AY38: 2 | AZ38: 2
A39: 2 | B39: 2375 | C39: 29 | D39: 4 | E39: 3 | F39: 0.9165 | G39: 54610.1295 | H39: 0 | I39: 0 | J39: 0 | K39: 54610.1295 | L39: 6.953177643e-06 | M39: 8970970.832 | N39: 45589480.13 | O39: 0 | P39: 54560450.96 | Q39: 1.736713093e-05 | R39: 0.4003642092 | S39: 1 | T39: 0 | U39: 2 | V39: 0 | W39: 0 | X39: 3 | Y39: 0 | Z39: 0 | AA39: 0 | AB39: 1 | AC39: 10 | AD39: -0.0568 | AE39: 1.02 | AF39: -0.2446 | AG39: 2.94 | AH39: -0.206 | AI39: 4.35 | AJ39: -0.153 | AK39: 23 | AL39: 24 | AM39: 30 | AN39: 34 | AO39: 0 | AP39: 0 | AQ39: 0 | AR39: 0 | AS39: 2 | AT39: 2 | AU39: 2 | AV39: 2 | AW39: 0 | AX39: 0 | AY39: 0 | AZ39: 0
A40: 2 | B40: 2374 | C40: 30 | D40: 4 | E40: 3 | F40: 0.9165 | G40: 32712.60338 | H40: 0 | I40: 0 | J40: 0 | K40: 32712.60338 | L40: 4.165098024e-06 | M40: 8970970.832 | N40: 45589480.13 | O40: 0 | P40: 54560450.96 | Q40: 1.736713093e-05 | R40: 0.2398264883 | S40: 1 | T40: 0 | U40: 2 | V40: 0 | W40: 0 | X40: 3 | Y40: 0 | Z40: 0 | AA40: 0 | AB40: 1 | AC40: 10 | AD40: -0.0568 | AE40: 1.02 | AF40: -0.2446 | AG40: 2.94 | AH40: -0.206 | AI40: 4.35 | AJ40: -0.153 | AK40: 24 | AL40: 25 | AM40: 31 | AN40: 35 | AO40: 34 | AP40: 0 | AQ40: 29 | AR40: 23 | AS40: 2 | AT40: 2 | AU40: 2 | AV40: 2 | AW40: 2 | AX40: 0 | AY40: 2 | AZ40: 2
A41: 2 | B41: 2373 | C41: 31 | D41: 5 | E41: 4 | F41: 0.8321 | G41: 15816.37689 | H41: 0 | I41: 0 | J41: 0 | K41: 15816.37689 | L41: 2.013803651e-06 | M41: 11136474.5 | N41: 39901365.79 | O41: 0 | P41: 51037840.29 | Q41: 1.624584913e-05 | R41: 0.1239580421 | S41: 1 | T41: 0 | U41: 2 | V41: 0 | W41: 0 | X41: 3 | Y41: 0 | Z41: 0 | AA41: 0 | AB41: 1 | AC41: 10 | AD41: -0.0568 | AE41: 1.02 | AF41: -0.2446 | AG41: 2.94 | AH41: -0.206 | AI41: 4.35 | AJ41: -0.153 | AK41: 25 | AL41: 26 | AM41: 32 | AN41: 36 | AO41: 35 | AP41: 34 | AQ41: 30 | AR41: 24 | AS41: 2 | AT41: 2 | AU41: 2 | AV41: 2 | AW41: 2 | AX41: 2 | AY41: 2 | AZ41: 2
A42: 2 | B42: 2372 | C42: 32 | D42: 5 | E42: 4 | F42: 0.8321 | G42: 5308.051528 | H42: 0 | I42: 0 | J42: 0 | K42: 5308.051528 | L42: 6.758421111e-07 | M42: 11136474.5 | N42: 39901365.79 | O42: 0 | P42: 51037840.29 | Q42: 1.624584913e-05 | R42: 0.04160091021 | S42: 1 | T42: 0 | U42: 2 | V42: 0 | W42: 0 | X42: 3 | Y42: 0 | Z42: 0 | AA42: 0 | AB42: 1 | AC42: 10 | AD42: -0.0568 | AE42: 1.02 | AF42: -0.2446 | AG42: 2.94 | AH42: -0.206 | AI42: 4.35 | AJ42: -0.153 | AK42: 26 | AL42: 27 | AM42: 33 | AN42: 37 | AO42: 36 | AP42: 35 | AQ42: 31 | AR42: 25 | AS42: 2 | AT42: 2 | AU42: 2 | AV42: 2 | AW42: 2 | AX42: 2 | AY42: 2 | AZ42: 2
A43: 2 | B43: 2371 | C43: 33 | D43: 5 | E43: 4 | F43: 0.8321 | G43: 1285.04176 | H43: 0 | I43: 0 | J43: 0 | K43: 1285.04176 | L43: 1.636165985e-07 | M43: 11136474.5 | N43: 39901365.79 | O43: 0 | P43: 51037840.29 | Q43: 1.624584913e-05 | R43: =L43/Q43 -> 0.01007128635 | S43: 1 | T43: 0 | U43: 2 | V43: 0 | W43: 0 | X43: 3 | Y43: 0 | Z43: 0 | AA43: 0 | AB43: 1 | AC43: 10 | AD43: -0.0568 | AE43: 1.02 | AF43: -0.2446 | AG43: 2.94 | AH43: -0.206 | AI43: 4.35 | AJ43: -0.153 | AK43: 27 | AL43: 28 | AM43: 0 | AN43: 0 | AO43: 37 | AP43: 36 | AQ43: 32 | AR43: 26 | AS43: 2 | AT43: 2 | AU43: 0 | AV43: 0 | AW43: 2 | AX43: 2 | AY43: 2 | AZ43: 2
A44: 2 | B44: 2367 | C44: 34 | D44: 4 | E44: 3 | F44: 0.9165 | G44: 56846.5167 | H44: 0 | I44: 0 | J44: 0 | K44: 56846.5167 | L44: 7.237923304e-06 | M44: 8970970.832 | N44: 45589480.13 | O44: 0 | P44: 54560450.96 | Q44: 1.736713093e-05 | R44: 0.4167598742 | S44: 1 | T44: 0 | U44: 2 | V44: 0 | W44: 0 | X44: 3 | Y44: 0 | Z44: 0 | AA44: 0 | AB44: 1 | AC44: 10 | AD44: -0.0568 | AE44: 1.02 | AF44: -0.2446 | AG44: 2.94 | AH44: -0.206 | AI44: 4.35 | AJ44: -0.153 | AK44: 30 | AL44: 31 | AM44: 35 | AN44: 39 | AO44: 38 | AP44: 0 | AQ44: 0 | AR44: 0 | AS44: 2 | AT44: 2 | AU44: 2 | AV44: 2 | AW44: 2 | AX44: 0 | AY44: 0 | AZ44: 0
A45: 2 | B45: 2366 | C45: 35 | D45: 5 | E45: 4 | F45: 0.8321 | G45: 59149.22862 | H45: 0 | I45: 0 | J45: 0 | K45: 59149.22862 | L45: 7.531113692e-06 | M45: 11136474.5 | N45: 39901365.79 | O45: 0 | P45: 51037840.29 | Q45: 1.624584913e-05 | R45: 0.4635715641 | S45: 1 | T45: 0 | U45: 2 | V45: 0 | W45: 0 | X45: 3 | Y45: 0 | Z45: 0 | AA45: 0 | AB45: 1 | AC45: 10 | AD45: -0.0568 | AE45: 1.02 | AF45: -0.2446 | AG45: 2.94 | AH45: -0.206 | AI45: 4.35 | AJ45: -0.153 | AK45: 31 | AL45: 32 | AM45: 36 | AN45: 40 | AO45: 39 | AP45: 38 | AQ45: 34 | AR45: 30 | AS45: 2 | AT45: 2 | AU45: 2 | AV45: 2 | AW45: 2 | AX45: 2 | AY45: 2 | AZ45: 2
A46: 2 | B46: 2365 | C46: 36 | D46: 5 | E46: 4 | F46: 0.8321 | G46: 4225.092948 | H46: 0 | I46: 0 | J46: 0 | K46: 4225.092948 | L46: 5.379555422e-07 | M46: 11136474.5 | N46: 39901365.79 | O46: 0 | P46: 51037840.29 | Q46: 1.624584913e-05 | R46: 0.03311341486 | S46: 1 | T46: 0 | U46: 2 | V46: 0 | W46: 0 | X46: 3 | Y46: 0 | Z46: 0 | AA46: 0 | AB46: 1 | AC46: 10 | AD46: -0.0568 | AE46: 1.02 | AF46: -0.2446 | AG46: 2.94 | AH46: -0.206 | AI46: 4.35 | AJ46: -0.153 | AK46: 32 | AL46: 33 | AM46: 37 | AN46: 41 | AO46: 40 | AP46: 39 | AQ46: 35 | AR46: 31 | AS46: 2 | AT46: 2 | AU46: 2 | AV46: 2 | AW46: 2 | AX46: 2 | AY46: 2 | AZ46: 2
A47: 2 | B47: 2364 | C47: 37 | D47: 5 | E47: 4 | F47: 0.8321 | G47: 18984.41936 | H47: 0 | I47: 0 | J47: 0 | K47: 18984.41936 | L47: 2.417171346e-06 | M47: 11136474.5 | N47: 39901365.79 | O47: 0 | P47: 51037840.29 | Q47: 1.624584913e-05 | R47: 0.1487870117 | S47: 1 | T47: 0 | U47: 2 | V47: 0 | W47: 0 | X47: 3 | Y47: 0 | Z47: 0 | AA47: 0 | AB47: 1 | AC47: 10 | AD47: -0.0568 | AE47: 1.02 | AF47: -0.2446 | AG47: 2.94 | AH47: -0.206 | AI47: 4.35 | AJ47: -0.153 | AK47: 33 | AL47: 0 | AM47: 0 | AN47: 42 | AO47: 41 | AP47: 40 | AQ47: 36 | AR47: 32 | AS47: 2 | AT47: 0 | AU47: 0 | AV47: 2 | AW47: 2 | AX47: 2 | AY47: 2 | AZ47: 2
A48: 2 | B48: 2361 | C48: 38 | D48: 11 | E48: 9 | F48: 0.7788 | G48: 89045.10338 | H48: 0 | I48: 0 | J48: 0 | K48: 89045.10338 | L48: 1.133757469e-05 | M48: 12431701.25 | N48: 27453119.45 | O48: 0 | P48: 39884820.7 | Q48: 1.269573274e-05 | R48: 0.8930224763 | S48: 1 | T48: 0 | U48: 2 | V48: 0 | W48: 0 | X48: 3 | Y48: 0 | Z48: 0 | AA48: 0 | AB48: 1 | AC48: 10 | AD48: -0.0568 | AE48: 1.02 | AF48: -0.2446 | AG48: 2.94 | AH48: -0.206 | AI48: 4.35 | AJ48: -0.153 | AK48: 34 | AL48: 35 | AM48: 39 | AN48: 43 | AO48: 0 | AP48: 0 | AQ48: 0 | AR48: 0 | AS48: 2 | AT48: 2 | AU48: 2 | AV48: 2 | AW48: 0 | AX48: 0 | AY48: 0 | AZ48: 0
A49: 2 | B49: 2360 | C49: 39 | D49: 11 | E49: 9 | F49: 0.7788 | G49: 91905.35762 | H49: 0 | I49: 0 | J49: 0 | K49: 91905.35762 | L49: 1.170175357e-05 | M49: 12431701.25 | N49: 27453119.45 | O49: 0 | P49: 39884820.7 | Q49: 1.269573274e-05 | R49: 0.921707617 | S49: 1 | T49: 0 | U49: 2 | V49: 0 | W49: 0 | X49: 3 | Y49: 0 | Z49: 0 | AA49: 0 | AB49: 1 | AC49: 10 | AD49: -0.0568 | AE49: 1.02 | AF49: -0.2446 | AG49: 2.94 | AH49: -0.206 | AI49: 4.35 | AJ49: -0.153 | AK49: 35 | AL49: 36 | AM49: 40 | AN49: 44 | AO49: 43 | AP49: 0 | AQ49: 38 | AR49: 34 | AS49: 2 | AT49: 2 | AU49: 2 | AV49: 2 | AW49: 2 | AX49: 0 | AY49: 2 | AZ49: 2
A50: 2 | B50: 2359 | C50: 40 | D50: 11 | E50: 9 | F50: 0.7788 | G50: 12771.65698 | H50: 0 | I50: 0 | J50: 0 | K50: 12771.65698 | L50: 1.626137871e-06 | M50: 12431701.25 | N50: 27453119.45 | O50: 0 | P50: 39884820.7 | Q50: 1.269573274e-05 | R50: 0.1280853894 | S50: 1 | T50: 0 | U50: 2 | V50: 0 | W50: 0 | X50: 3 | Y50: 0 | Z50: 0 | AA50: 0 | AB50: 1 | AC50: 10 | AD50: -0.0568 | AE50: 1.02 | AF50: -0.2446 | AG50: 2.94 | AH50: -0.206 | AI50: 4.35 | AJ50: -0.153 | AK50: 36 | AL50: 37 | AM50: 41 | AN50: 45 | AO50: 44 | AP50: 43 | AQ50: 39 | AR50: 35 | AS50: 2 | AT50: 2 | AU50: 2 | AV50: 2 | AW50: 2 | AX50: 2 | AY50: 2 | AZ50: 2
A51: 2 | B51: 2358 | C51: 41 | D51: 11 | E51: 9 | F51: 0.7788 | G51: 18834.15238 | H51: 0 | I51: 0 | J51: 0 | K51: 18834.15238 | L51: 2.39803876e-06 | M51: 12431701.25 | N51: 27453119.45 | O51: 0 | P51: 39884820.7 | Q51: 1.269573274e-05 | R51: 0.188885416 | S51: 1 | T51: 0 | U51: 2 | V51: 0 | W51: 0 | X51: 3 | Y51: 0 | Z51: 0 | AA51: 0 | AB51: 1 | AC51: 10 | AD51: -0.0568 | AE51: 1.02 | AF51: -0.2446 | AG51: 2.94 | AH51: -0.206 | AI51: 4.35 | AJ51: -0.153 | AK51: 37 | AL51: 0 | AM51: 42 | AN51: 46 | AO51: 45 | AP51: 44 | AQ51: 40 | AR51: 36 | AS51: 2 | AT51: 0 | AU51: 2 | AV51: 2 | AW51: 2 | AX51: 2 | AY51: 2 | AZ51: 2
A52: 2 | B52: 2357 | C52: 42 | D52: 11 | E52: 9 | F52: 0.7788 | G52: 18883.89593 | H52: 0 | I52: 0 | J52: 0 | K52: 18883.89593 | L52: 2.404372305e-06 | M52: 12431701.25 | N52: 27453119.45 | O52: 0 | P52: 39884820.7 | Q52: 1.269573274e-05 | R52: 0.189384288 | S52: 1 | T52: 0 | U52: 2 | V52: 0 | W52: 0 | X52: 3 | Y52: 0 | Z52: 0 | AA52: 0 | AB52: 1 | AC52: 10 | AD52: -0.0568 | AE52: 1.02 | AF52: -0.2446 | AG52: 2.94 | AH52: -0.206 | AI52: 4.35 | AJ52: -0.153 | AK52: 0 | AL52: 0 | AM52: 0 | AN52: 0 | AO52: 46 | AP52: 45 | AQ52: 41 | AR52: 37 | AS52: 0 | AT52: 0 | AU52: 0 | AV52: 0 | AW52: 2 | AX52: 2 | AY52: 2 | AZ52: 2
A53: 2 | B53: 2355 | C53: 43 | D53: 11 | E53: 9 | F53: 0.7788 | G53: 90767.47386 | H53: 0 | I53: 0 | J53: 0 | K53: 90767.47386 | L53: 1.155687371e-05 | M53: 12431701.25 | N53: 27453119.45 | O53: 0 | P53: 39884820.7 | Q53: 1.269573274e-05 | R53: 0.9102959197 | S53: 1 | T53: 0 | U53: 2 | V53: 0 | W53: 0 | X53: 3 | Y53: 0 | Z53: 0 | AA53: 0 | AB53: 1 | AC53: 10 | AD53: -0.0568 | AE53: 1.02 | AF53: -0.2446 | AG53: 2.94 | AH53: -0.206 | AI53: 4.35 | AJ53: -0.153 | AK53: 39 | AL53: 40 | AM53: 44 | AN53: 48 | AO53: 47 | AP53: 0 | AQ53: 0 | AR53: 0 | AS53: 2 | AT53: 2 | AU53: 2 | AV53: 2 | AW53: 2 | AX53: 0 | AY53: 0 | AZ53: 0
A54: 2 | B54: 2354 | C54: 44 | D54: 11 | E54: 9 | F54: 0.7788 | G54: 64315.30376 | H54: 0 | I54: 0 | J54: 0 | K54: 64315.30376 | L54: 8.188878808e-06 | M54: 12431701.25 | N54: 27453119.45 | O54: 0 | P54: 39884820.7 | Q54: 1.269573274e-05 | R54: 0.6450103336 | S54: 1 | T54: 0 | U54: 2 | V54: 0 | W54: 0 | X54: 3 | Y54: 0 | Z54: 0 | AA54: 0 | AB54: 1 | AC54: 10 | AD54: -0.0568 | AE54: 1.02 | AF54: -0.2446 | AG54: 2.94 | AH54: -0.206 | AI54: 4.35 | AJ54: -0.153 | AK54: 40 | AL54: 41 | AM54: 45 | AN54: 49 | AO54: 48 | AP54: 47 | AQ54: 43 | AR54: 39 | AS54: 2 | AT54: 2 | AU54: 2 | AV54: 2 | AW54: 2 | AX54: 2 | AY54: 2 | AZ54: 2
A55: 2 | B55: 2353 | C55: 45 | D55: 11 | E55: 9 | F55: 0.7788 | G55: 243.53614 | H55: 0 | I55: 0 | J55: 0 | K55: 243.53614 | L55: 3.10079844e-08 | M55: 12431701.25 | N55: 27453119.45 | O55: 0 | P55: 39884820.7 | Q55: 1.269573274e-05 | R55: 0.002442394231 | S55: 1 | T55: 0 | U55: 2 | V55: 0 | W55: 0 | X55: 3 | Y55: 0 | Z55: 0 | AA55: 0 | AB55: 1 | AC55: 10 | AD55: -0.0568 | AE55: 1.02 | AF55: -0.2446 | AG55: 2.94 | AH55: -0.206 | AI55: 4.35 | AJ55: -0.153 | AK55: 41 | AL55: 42 | AM55: 46 | AN55: 50 | AO55: 49 | AP55: 48 | AQ55: 44 | AR55: 40 | AS55: 2 | AT55: 2 | AU55: 2 | AV55: 2 | AW55: 2 | AX55: 2 | AY55: 2 | AZ55: 2
A56: 2 | B56: 2352 | C56: 46 | D56: 11 | E56: 9 | F56: 0.7788 | G56: 18101.47131 | H56: 0 | I56: 0 | J56: 0 | K56: 18101.47131 | L56: 2.304750909e-06 | M56: 12431701.25 | N56: 27453119.45 | O56: 0 | P56: 39884820.7 | Q56: 1.269573274e-05 | R56: 0.181537447 | S56: 1 | T56: 0 | U56: 2 | V56: 0 | W56: 0 | X56: 3 | Y56: 0 | Z56: 0 | AA56: 0 | AB56: 1 | AC56: 10 | AD56: -0.0568 | AE56: 1.02 | AF56: -0.2446 | AG56: 2.94 | AH56: -0.206 | AI56: 4.35 | AJ56: -0.153 | AK56: 42 | AL56: 0 | AM56: 0 | AN56: 0 | AO56: 50 | AP56: 49 | AQ56: 45 | AR56: 41 | AS56: 2 | AT56: 0 | AU56: 0 | AV56: 0 | AW56: 2 | AX56: 2 | AY56: 2 | AZ56: 2
A57: 2 | B57: 2349 | C57: 47 | D57: 11 | E57: 9 | F57: 0.7788 | G57: 75298.26552 | H57: 0 | I57: 0 | J57: 0 | K57: 75298.26552 | L57: 9.58727293e-06 | M57: 12431701.25 | N57: 27453119.45 | O57: 0 | P57: 39884820.7 | Q57: 1.269573274e-05 | R57: 0.7551571168 | S57: 1 | T57: 0 | U57: 2 | V57: 0 | W57: 0 | X57: 3 | Y57: 0 | Z57: 0 | AA57: 0 | AB57: 1 | AC57: 10 | AD57: -0.0568 | AE57: 1.02 | AF57: -0.2446 | AG57: 2.94 | AH57: -0.206 | AI57: 4.35 | AJ57: -0.153 | AK57: 43 | AL57: 44 | AM57: 48 | AN57: 51 | AO57: 0 | AP57: 0 | AQ57: 0 | AR57: 0 | AS57: 2 | AT57: 2 | AU57: 2 | AV57: 2 | AW57: 0 | AX57: 0 | AY57: 0 | AZ57: 0
A58: 2 | B58: 2348 | C58: 48 | D58: 11 | E58: 9 | F58: 0.7788 | G58: 42536.9549 | H58: 0 | I58: 0 | J58: 0 | K58: 42536.9549 | L58: 5.41597331e-06 | M58: 12431701.25 | N58: 27453119.45 | O58: 0 | P58: 39884820.7 | Q58: 1.269573274e-05 | R58: 0.4265979303 | S58: 1 | T58: 0 | U58: 2 | V58: 0 | W58: 0 | X58: 3 | Y58: 0 | Z58: 0 | AA58: 0 | AB58: 1 | AC58: 10 | AD58: -0.0568 | AE58: 1.02 | AF58: -0.2446 | AG58: 2.94 | AH58: -0.206 | AI58: 4.35 | AJ58: -0.153 | AK58: 44 | AL58: 45 | AM58: 49 | AN58: 52 | AO58: 51 | AP58: 0 | AQ58: 47 | AR58: 43 | AS58: 2 | AT58: 2 | AU58: 2 | AV58: 2 | AW58: 2 | AX58: 0 | AY58: 2 | AZ58: 2
A59: 2 | B59: 2347 | C59: 49 | D59: 11 | E59: 9 | F59: 0.7788 | G59: 102.596076 | H59: 0 | I59: 0 | J59: 0 | K59: 102.596076 | L59: 1.306293811e-08 | M59: 12431701.25 | N59: 27453119.45 | O59: 0 | P59: 39884820.7 | Q59: 1.269573274e-05 | R59: 0.001028923527 | S59: 1 | T59: 0 | U59: 2 | V59: 0 | W59: 0 | X59: 3 | Y59: 0 | Z59: 0 | AA59: 0 | AB59: 1 | AC59: 10 | AD59: -0.0568 | AE59: 1.02 | AF59: -0.2446 | AG59: 2.94 | AH59: -0.206 | AI59: 4.35 | AJ59: -0.153 | AK59: 45 | AL59: 46 | AM59: 50 | AN59: 53 | AO59: 52 | AP59: 51 | AQ59: 48 | AR59: 44 | AS59: 2 | AT59: 2 | AU59: 2 | AV59: 2 | AW59: 2 | AX59: 2 | AY59: 2 | AZ59: 2
A60: 2 | B60: 2346 | C60: 50 | D60: 11 | E60: 9 | F60: 0.7788 | G60: 292.243368 | H60: 0 | I60: 0 | J60: 0 | K60: 292.243368 | L60: 3.720958128e-08 | M60: 12431701.25 | N60: 27453119.45 | O60: 0 | P60: 39884820.7 | Q60: 1.269573274e-05 | R60: 0.002930873078 | S60: 1 | T60: 0 | U60: 2 | V60: 0 | W60: 0 | X60: 3 | Y60: 0 | Z60: 0 | AA60: 0 | AB60: 1 | AC60: 10 | AD60: -0.0568 | AE60: 1.02 | AF60: -0.2446 | AG60: 2.94 | AH60: -0.206 | AI60: 4.35 | AJ60: -0.153 | AK60: 46 | AL60: 0 | AM60: 0 | AN60: 0 | AO60: 53 | AP60: 52 | AQ60: 49 | AR60: 45 | AS60: 2 | AT60: 0 | AU60: 0 | AV60: 0 | AW60: 2 | AX60: 2 | AY60: 2 | AZ60: 2
A61: 2 | B61: 2343 | C61: 51 | D61: 11 | E61: 9 | F61: 0.7788 | G61: 8309.245832 | H61: 0 | I61: 0 | J61: 0 | K61: 8309.245832 | L61: 1.057966038e-06 | M61: 12431701.25 | N61: 27453119.45 | O61: 0 | P61: 39884820.7 | Q61: 1.269573274e-05 | R61: 0.08333241254 | S61: 1 | T61: 0 | U61: 2 | V61: 0 | W61: 0 | X61: 3 | Y61: 0 | Z61: 0 | AA61: 0 | AB61: 1 | AC61: 10 | AD61: -0.0568 | AE61: 1.02 | AF61: -0.2446 | AG61: 2.94 | AH61: -0.206 | AI61: 4.35 | AJ61: -0.153 | AK61: 48 | AL61: 49 | AM61: 52 | AN61: 55 | AO61: 54 | AP61: 0 | AQ61: 0 | AR61: 47 | AS61: 2 | AT61: 2 | AU61: 2 | AV61: 2 | AW61: 2 | AX61: 0 | AY61: 0 | AZ61: 2
A62: 2 | B62: 2342 | C62: 52 | D62: 11 | E62: 9 | F62: 0.7788 | G62: 94.305484 | H62: 0 | I62: 0 | J62: 0 | K62: 94.305484 | L62: 1.200734715e-08 | M62: 12431701.25 | N62: 27453119.45 | O62: 0 | P62: 39884820.7 | Q62: 1.269573274e-05 | R62: 0.0009457781917 | S62: 1 | T62: 0 | U62: 2 | V62: 0 | W62: 0 | X62: 3 | Y62: 0 | Z62: 0 | AA62: 0 | AB62: 1 | AC62: 10 | AD62: -0.0568 | AE62: 1.02 | AF62: -0.2446 | AG62: 2.94 | AH62: -0.206 | AI62: 4.35 | AJ62: -0.153 | AK62: 49 | AL62: 50 | AM62: 53 | AN62: 56 | AO62: 55 | AP62: 54 | AQ62: 51 | AR62: 48 | AS62: 2 | AT62: 2 | AU62: 2 | AV62: 2 | AW62: 2 | AX62: 2 | AY62: 2 | AZ62: 2
A63: 2 | B63: 2341 | C63: 53 | D63: 11 | E63: 9 | F63: 0.7788 | G63: 355.459132 | H63: 0 | I63: 0 | J63: 0 | K63: 355.459132 | L63: 4.525846234e-08 | M63: 12431701.25 | N63: 27453119.45 | O63: 0 | P63: 39884820.7 | Q63: 1.269573274e-05 | R63: 0.003564856261 | S63: 1 | T63: 0 | U63: 2 | V63: 0 | W63: 0 | X63: 3 | Y63: 0 | Z63: 0 | AA63: 0 | AB63: 1 | AC63: 10 | AD63: -0.0568 | AE63: 1.02 | AF63: -0.2446 | AG63: 2.94 | AH63: -0.206 | AI63: 4.35 | AJ63: -0.153 | AK63: 50 | AL63: 0 | AM63: 0 | AN63: 57 | AO63: 56 | AP63: 55 | AQ63: 52 | AR63: 49 | AS63: 2 | AT63: 0 | AU63: 0 | AV63: 2 | AW63: 2 | AX63: 2 | AY63: 2 | AZ63: 2
A64: 2 | B64: 2334 | C64: 54 | D64: 17 | E64: 15 | F64: 0.7788 | G64: 3224.003964 | H64: 0 | I64: 0 | J64: 0 | K64: 3224.003964 | L64: 4.104929339e-07 | M64: 12593643.46 | N64: 25172152.2 | O64: 0 | P64: 37765795.66 | Q64: 1.202122612e-05 | R64: 0.0341473432 | S64: 1 | T64: 0 | U64: 2 | V64: 0 | W64: 0 | X64: 3 | Y64: 0 | Z64: 0 | AA64: 0 | AB64: 1 | AC64: 10 | AD64: -0.0568 | AE64: 1.02 | AF64: -0.2446 | AG64: 2.94 | AH64: -0.206 | AI64: 4.35 | AJ64: -0.153 | AK64: 51 | AL64: 52 | AM64: 55 | AN64: 58 | AO64: 0 | AP64: 0 | AQ64: 0 | AR64: 0 | AS64: 2 | AT64: 2 | AU64: 2 | AV64: 2 | AW64: 0 | AX64: 0 | AY64: 0 | AZ64: 0
A65: 2 | B65: 2333 | C65: 55 | D65: 17 | E65: 15 | F65: 0.7788 | G65: 273.589536 | H65: 0 | I65: 0 | J65: 0 | K65: 273.589536 | L65: 3.483450163e-08 | M65: 12593643.46 | N65: 25172152.2 | O65: 0 | P65: 37765795.66 | Q65: 1.202122612e-05 | R65: 0.002897749471 | S65: 1 | T65: 0 | U65: 2 | V65: 0 | W65: 0 | X65: 3 | Y65: 0 | Z65: 0 | AA65: 0 | AB65: 1 | AC65: 10 | AD65: -0.0568 | AE65: 1.02 | AF65: -0.2446 | AG65: 2.94 | AH65: -0.206 | AI65: 4.35 | AJ65: -0.153 | AK65: 52 | AL65: 53 | AM65: 56 | AN65: 59 | AO65: 58 | AP65: 0 | AQ65: 54 | AR65: 51 | AS65: 2 | AT65: 2 | AU65: 2 | AV65: 2 | AW65: 2 | AX65: 0 | AY65: 2 | AZ65: 2
A66: 2 | B66: 2332 | C66: 56 | D66: 17 | E66: 15 | F66: 0.7788 | G66: 323.333088 | H66: 0 | I66: 0 | J66: 0 | K66: 323.333088 | L66: 4.116804738e-08 | M66: 12593643.46 | N66: 25172152.2 | O66: 0 | P66: 37765795.66 | Q66: 1.202122612e-05 | R66: 0.003424613011 | S66: 1 | T66: 0 | U66: 2 | V66: 0 | W66: 0 | X66: 3 | Y66: 0 | Z66: 0 | AA66: 0 | AB66: 1 | AC66: 10 | AD66: -0.0568 | AE66: 1.02 | AF66: -0.2446 | AG66: 2.94 | AH66: -0.206 | AI66: 4.35 | AJ66: -0.153 | AK66: 53 | AL66: 0 | AM66: 57 | AN66: 60 | AO66: 59 | AP66: 58 | AQ66: 55 | AR66: 52 | AS66: 2 | AT66: 0 | AU66: 2 | AV66: 2 | AW66: 2 | AX66: 2 | AY66: 2 | AZ66: 2
A67: 2 | B67: 2331 | C67: 57 | D67: 17 | E67: 15 | F67: 0.7788 | G67: 290.17072 | H67: 0 | I67: 0 | J67: 0 | K67: 290.17072 | L67: 3.694568354e-08 | M67: 12593643.46 | N67: 25172152.2 | O67: 0 | P67: 37765795.66 | Q67: 1.202122612e-05 | R67: 0.003073370651 | S67: 1 | T67: 0 | U67: 2 | V67: 0 | W67: 0 | X67: 3 | Y67: 0 | Z67: 0 | AA67: 0 | AB67: 1 | AC67: 10 | AD67: -0.0568 | AE67: 1.02 | AF67: -0.2446 | AG67: 2.94 | AH67: -0.206 | AI67: 4.35 | AJ67: -0.153 | AK67: 0 | AL67: 0 | AM67: 0 | AN67: 61 | AO67: 60 | AP67: 59 | AQ67: 56 | AR67: 53 | AS67: 0 | AT67: 0 | AU67: 0 | AV67: 2 | AW67: 2 | AX67: 2 | AY67: 2 | AZ67: 2
A68: 2 | B68: 2327 | C68: 58 | D68: 17 | E68: 15 | F68: 0.7788 | G68: 281.880128 | H68: 0 | I68: 0 | J68: 0 | K68: 281.880128 | L68: 3.589009258e-08 | M68: 12593643.46 | N68: 25172152.2 | O68: 0 | P68: 37765795.66 | Q68: 1.202122612e-05 | R68: 0.002985560061 | S68: 1 | T68: 0 | U68: 2 | V68: 0 | W68: 0 | X68: 3 | Y68: 0 | Z68: 0 | AA68: 0 | AB68: 1 | AC68: 10 | AD68: -0.0568 | AE68: 1.02 | AF68: -0.2446 | AG68: 2.94 | AH68: -0.206 | AI68: 4.35 | AJ68: -0.153 | AK68: 55 | AL68: 56 | AM68: 59 | AN68: 62 | AO68: 0 | AP68: 0 | AQ68: 0 | AR68: 54 | AS68: 2 | AT68: 2 | AU68: 2 | AV68: 2 | AW68: 0 | AX68: 0 | AY68: 0 | AZ68: 2
A69: 2 | B69: 2326 | C69: 59 | D69: 17 | E69: 15 | F69: 0.7788 | G69: 311.933524 | H69: 0 | I69: 0 | J69: 0 | K69: 311.933524 | L69: 3.971660981e-08 | M69: 12593643.46 | N69: 25172152.2 | O69: 0 | P69: 37765795.66 | Q69: 1.202122612e-05 | R69: 0.00330387345 | S69: =IF(R69<=2,1,0) -> 1 | T69: =IF(R69>2,1,0) -> 0 | U69: =IF(R69<=6,2,0) -> 2 | V69: 0 | W69: =IF(R69>6,1,0) -> 0 | X69: =IF(R69<=10,3,0) -> 3 | Y69: 0 | Z69: =IF(R69>10,4,0) -> 0 | AA69: 0 | AB69: 1 | AC69: 10 | AD69: -0.0568 | AE69: 1.02 | AF69: -0.2446 | AG69: 2.94 | AH69: -0.206 | AI69: 4.35 | AJ69: -0.153 | AK69: 56 | AL69: 57 | AM69: 60 | AN69: 63 | AO69: 62 | AP69: 0 | AQ69: 58 | AR69: 55 | AS69: 2 | AT69: 2 | AU69: 2 | AV69: 2 | AW69: 2 | AX69: 0 | AY69: 2 | AZ69: 2
A70: 2 | B70: 2325 | C70: 60 | D70: 17 | E70: 15 | F70: 0.7788 | G70: 270.480564 | H70: 0 | I70: 0 | J70: 0 | K70: 270.480564 | L70: 3.443865502e-08 | M70: 12593643.46 | N70: 25172152.2 | O70: 0 | P70: =SUM(M70:O70) -> 37765795.66 | Q70: =P70/(PI()*1000000^2) -> 1.202122612e-05 | R70: 0.0028648205 | S70: 1 | T70: 0 | U70: 2 | V70: =T70*U70 -> 0 | W70: 0 | X70: 3 | Y70: =W70*X70 -> 0 | Z70: 0 | AA70: =IF(Z70=4,AB70,0) -> 0 | AB70: 1 | AC70: 10 | AD70: -0.0568 | AE70: 1.02 | AF70: -0.2446 | AG70: 2.94 | AH70: -0.206 | AI70: 4.35 | AJ70: -0.153 | AK70: 57 | AL70: 0 | AM70: 61 | AN70: 64 | AO70: 63 | AP70: 62 | AQ70: 59 | AR70: 56 | AS70: 2 | AT70: 0 | AU70: 2 | AV70: 2 | AW70: 2 | AX70: 2 | AY70: 2 | AZ70: 2
A71: 2 | B71: 2324 | C71: 61 | D71: 17 | E71: 15 | F71: 0.7788 | G71: 88.08754 | H71: 0 | I71: 0 | J71: 0 | K71: 88.08754 | L71: 1.121565393e-08 | M71: 12593643.46 | N71: 25172152.2 | O71: 0 | P71: 37765795.66 | Q71: 1.202122612e-05 | R71: 0.0009329875191 | S71: 1 | T71: 0 | U71: 2 | V71: 0 | W71: 0 | X71: 3 | Y71: 0 | Z71: 0 | AA71: 0 | AB71: 1 | AC71: 10 | AD71: -0.0568 | AE71: 1.02 | AF71: -0.2446 | AG71: 2.94 | AH71: -0.206 | AI71: 4.35 | AJ71: -0.153 | AK71: 0 | AL71: 0 | AM71: 0 | AN71: 65 | AO71: 64 | AP71: 63 | AQ71: 60 | AR71: 57 | AS71: 0 | AT71: 0 | AU71: 0 | AV71: 2 | AW71: 2 | AX71: 2 | AY71: 2 | AZ71: 2
A72: 2 | B72: 2322 | C72: 62 | D72: 17 | E72: 15 | F72: 0.7788 | G72: 240.427168 | H72: 0 | I72: 0 | J72: 0 | K72: 240.427168 | L72: 3.061213779e-08 | M72: 12593643.46 | N72: 25172152.2 | O72: 0 | P72: 37765795.66 | Q72: 1.202122612e-05 | R72: 0.002546507111 | S72: 1 | T72: 0 | U72: 2 | V72: 0 | W72: 0 | X72: 3 | Y72: 0 | Z72: 0 | AA72: 0 | AB72: 1 | AC72: 10 | AD72: -0.0568 | AE72: 1.02 | AF72: -0.2446 | AG72: 2.94 | AH72: -0.206 | AI72: 4.35 | AJ72: -0.153 | AK72: 59 | AL72: 60 | AM72: 63 | AN72: 67 | AO72: 0 | AP72: 0 | AQ72: 0 | AR72: 58 | AS72: 2 | AT72: 2 | AU72: 2 | AV72: 2 | AW72: 0 | AX72: 0 | AY72: 0 | AZ72: 2
A73: 2 | B73: 2321 | C73: 63 | D73: 17 | E73: 15 | F73: 0.7788 | G73: 254.935704 | H73: 0 | I73: 0 | J73: 0 | K73: 254.935704 | L73: 3.245942197e-08 | M73: 12593643.46 | N73: 25172152.2 | O73: 0 | P73: 37765795.66 | Q73: 1.202122612e-05 | R73: 0.002700175644 | S73: 1 | T73: 0 | U73: 2 | V73: 0 | W73: 0 | X73: 3 | Y73: 0 | Z73: 0 | AA73: 0 | AB73: 1 | AC73: 10 | AD73: -0.0568 | AE73: 1.02 | AF73: -0.2446 | AG73: 2.94 | AH73: -0.206 | AI73: 4.35 | AJ73: -0.153 | AK73: 60 | AL73: 61 | AM73: 64 | AN73: 68 | AO73: 67 | AP73: 0 | AQ73: 62 | AR73: 59 | AS73: 2 | AT73: 2 | AU73: 2 | AV73: 2 | AW73: 2 | AX73: 0 | AY73: 2 | AZ73: 2
A74: 2 | B74: 2320 | C74: 64 | D74: 17 | E74: 15 | F74: 0.7788 | G74: 173.066108 | H74: 0 | I74: 0 | J74: 0 | K74: 173.066108 | L74: 2.203546126e-08 | M74: 12593643.46 | N74: 25172152.2 | O74: 0 | P74: 37765795.66 | Q74: 1.202122612e-05 | R74: 0.001833046067 | S74: 1 | T74: 0 | U74: 2 | V74: 0 | W74: 0 | X74: 3 | Y74: 0 | Z74: 0 | AA74: 0 | AB74: 1 | AC74: 10 | AD74: -0.0568 | AE74: 1.02 | AF74: -0.2446 | AG74: 2.94 | AH74: -0.206 | AI74: 4.35 | AJ74: -0.153 | AK74: 61 | AL74: 0 | AM74: 65 | AN74: 69 | AO74: 68 | AP74: 67 | AQ74: 63 | AR74: 60 | AS74: 2 | AT74: 0 | AU74: 2 | AV74: 2 | AW74: 2 | AX74: 2 | AY74: 2 | AZ74: 2
A75: 2 | B75: 2021 | C75: 65 | D75: 18 | E75: 15 | F75: 0.835 | G75: 13.472212 | H75: 0 | I75: 0 | J75: 0 | K75: 13.472212 | L75: =K75/(PI()*50000^2) -> 1.715335307e-09 | M75: 12593643.46 | N75: 25172152.2 | O75: 0 | P75: 37765795.66 | Q75: 1.202122612e-05 | R75: =L75/Q75 -> 0.0001426922088 | S75: 1 | T75: 0 | U75: 2 | V75: 0 | W75: 0 | X75: 3 | Y75: 0 | Z75: 0 | AA75: 0 | AB75: 1 | AC75: 10 | AD75: -0.0568 | AE75: 1.02 | AF75: -0.2446 | AG75: 2.94 | AH75: -0.206 | AI75: 4.35 | AJ75: -0.153 | AK75: 0 | AL75: 0 | AM75: 66 | AN75: 0 | AO75: 69 | AP75: 68 | AQ75: 64 | AR75: 61 | AS75: 0 | AT75: 0 | AU75: 2 | AV75: 0 | AW75: 2 | AX75: 2 | AY75: 2 | AZ75: 2
A76: 2 | B76: 2020 | C76: 66 | D76: 18 | E76: 15 | F76: 0.835 | G76: 628.012344 | H76: 0 | I76: 0 | J76: 0 | K76: =SUM(G76:J76) -> 628.012344 | L76: 7.99610151e-08 | M76: 12593643.46 | N76: 25172152.2 | O76: 0 | P76: 37765795.66 | Q76: 1.202122612e-05 | R76: 0.006651652195 | S76: 1 | T76: 0 | U76: 2 | V76: 0 | W76: 0 | X76: 3 | Y76: 0 | Z76: 0 | AA76: 0 | AB76: 1 | AC76: 10 | AD76: -0.0568 | AE76: 1.02 | AF76: -0.2446 | AG76: 2.94 | AH76: -0.206 | AI76: 4.35 | AJ76: -0.153 | AK76: 0 | AL76: 0 | AM76: 0 | AN76: 0 | AO76: 0 | AP76: 69 | AQ76: 65 | AR76: 0 | AS76: 0 | AT76: 0 | AU76: 0 | AV76: 0 | AW76: 0 | AX76: 2 | AY76: 2 | AZ76: 0
A77: 2 | B77: 2318 | C77: 67 | D77: 17 | E77: 15 | F77: 0.7788 | G77: 166.848164 | H77: 0 | I77: 0 | J77: 0 | K77: 166.848164 | L77: 2.124376804e-08 | M77: 12593643.46 | N77: 25172152.2 | O77: 0 | P77: 37765795.66 | Q77: 1.202122612e-05 | R77: 0.001767188124 | S77: 1 | T77: 0 | U77: 2 | V77: 0 | W77: 0 | X77: 3 | Y77: 0 | Z77: 0 | AA77: 0 | AB77: 1 | AC77: 10 | AD77: -0.0568 | AE77: 1.02 | AF77: -0.2446 | AG77: 2.94 | AH77: -0.206 | AI77: 4.35 | AJ77: -0.153 | AK77: 63 | AL77: 64 | AM77: 68 | AN77: 70 | AO77: 0 | AP77: 0 | AQ77: 0 | AR77: 62 | AS77: 2 | AT77: 2 | AU77: 2 | AV77: 2 | AW77: 0 | AX77: 0 | AY77: 0 | AZ77: 2
A78: 2 | B78: 2317 | C78: 68 | D78: 17 | E78: 15 | F78: 0.7788 | G78: 172.029784 | H78: 0 | I78: 0 | J78: 0 | K78: 172.029784 | L78: 2.190351239e-08 | M78: 12593643.46 | N78: 25172152.2 | O78: 0 | P78: 37765795.66 | Q78: 1.202122612e-05 | R78: 0.001822069743 | S78: 1 | T78: 0 | U78: 2 | V78: 0 | W78: 0 | X78: 3 | Y78: 0 | Z78: 0 | AA78: 0 | AB78: 1 | AC78: 10 | AD78: -0.0568 | AE78: 1.02 | AF78: -0.2446 | AG78: 2.94 | AH78: -0.206 | AI78: 4.35 | AJ78: -0.153 | AK78: 64 | AL78: 65 | AM78: 69 | AN78: 71 | AO78: 70 | AP78: 0 | AQ78: 67 | AR78: 63 | AS78: 2 | AT78: 2 | AU78: 2 | AV78: 2 | AW78: 2 | AX78: 0 | AY78: 2 | AZ78: 2
A79: 2 | B79: 2013 | C79: 69 | D79: 18 | E79: 15 | F79: 0.835 | G79: 779.315648 | H79: 0 | I79: 0 | J79: 0 | K79: 779.315648 | L79: 9.922555009e-08 | M79: 12593643.46 | N79: 25172152.2 | O79: 0 | P79: 37765795.66 | Q79: 1.202122612e-05 | R79: 0.008254195463 | S79: 1 | T79: 0 | U79: 2 | V79: 0 | W79: 0 | X79: 3 | Y79: 0 | Z79: 0 | AA79: 0 | AB79: 1 | AC79: 10 | AD79: -0.0568 | AE79: 1.02 | AF79: -0.2446 | AG79: 2.94 | AH79: -0.206 | AI79: 4.35 | AJ79: -0.153 | AK79: 65 | AL79: 66 | AM79: 0 | AN79: 72 | AO79: 71 | AP79: 70 | AQ79: 68 | AR79: 64 | AS79: 2 | AT79: 2 | AU79: 0 | AV79: 2 | AW79: 2 | AX79: 2 | AY79: 2 | AZ79: 2
A80: 2 | B80: 2315 | C80: 70 | D80: 25 | E80: 15 | F80: 0.9173 | G80: 444.582996 | H80: 0 | I80: 0 | J80: 0 | K80: 444.582996 | L80: 5.660606514e-08 | M80: 12593643.46 | N80: 25172152.2 | O80: 0 | P80: 37765795.66 | Q80: 1.202122612e-05 | R80: 0.004708842891 | S80: 1 | T80: 0 | U80: 2 | V80: 0 | W80: 0 | X80: 3 | Y80: 0 | Z80: 0 | AA80: 0 | AB80: 1 | AC80: 10 | AD80: -0.0568 | AE80: 1.02 | AF80: -0.2446 | AG80: 2.94 | AH80: -0.206 | AI80: 4.35 | AJ80: -0.153 | AK80: 68 | AL80: 69 | AM80: 71 | AN80: 74 | AO80: 73 | AP80: 0 | AQ80: 0 | AR80: 67 | AS80: 2 | AT80: 2 | AU80: 2 | AV80: 2 | AW80: 2 | AX80: 0 | AY80: 0 | AZ80: 2
A81: 2 | B81: 2005 | C81: 71 | D81: 26 | E81: 22 | F81: 0.8253 | G81: 1077.77696 | H81: 0 | I81: 0 | J81: 0 | K81: 1077.77696 | L81: 1.372268246e-07 | M81: 15755820.33 | N81: 17805271.49 | O81: 0 | P81: 33561091.82 | Q81: 1.068282732e-05 | R81: 0.01284555301 | S81: 1 | T81: 0 | U81: 2 | V81: 0 | W81: 0 | X81: 3 | Y81: 0 | Z81: 0 | AA81: 0 | AB81: 1 | AC81: 10 | AD81: -0.0568 | AE81: 1.02 | AF81: -0.2446 | AG81: 2.94 | AH81: -0.206 | AI81: 4.35 | AJ81: -0.153 | AK81: 69 | AL81: 0 | AM81: 72 | AN81: 75 | AO81: 74 | AP81: 73 | AQ81: 70 | AR81: 68 | AS81: 2 | AT81: 0 | AU81: 2 | AV81: 2 | AW81: 2 | AX81: 2 | AY81: 2 | AZ81: 2
A82: 2 | B82: 2004 | C82: 72 | D82: 26 | E82: 22 | F82: 0.8253 | G82: 644.593528 | H82: 0 | I82: 0 | J82: 0 | K82: 644.593528 | L82: 8.207219701e-08 | M82: 15755820.33 | N82: 17805271.49 | O82: 0 | P82: 33561091.82 | Q82: 1.068282732e-05 | R82: 0.007682628819 | S82: 1 | T82: 0 | U82: 2 | V82: 0 | W82: 0 | X82: 3 | Y82: 0 | Z82: 0 | AA82: 0 | AB82: 1 | AC82: 10 | AD82: -0.0568 | AE82: 1.02 | AF82: -0.2446 | AG82: 2.94 | AH82: -0.206 | AI82: 4.35 | AJ82: -0.153 | AK82: 0 | AL82: 0 | AM82: 0 | AN82: 76 | AO82: 75 | AP82: 74 | AQ82: 71 | AR82: 69 | AS82: 0 | AT82: 0 | AU82: 0 | AV82: 2 | AW82: 2 | AX82: 2 | AY82: 2 | AZ82: 2
A83: 2 | B83: 2312 | C83: 73 | D83: 25 | E83: 22 | F83: 0.9173 | G83: 923.364684 | H83: 0 | I83: 0 | J83: 0 | K83: 923.364684 | L83: 1.17566443e-07 | M83: 15755820.33 | N83: 17805271.49 | O83: 0 | P83: 33561091.82 | Q83: 1.068282732e-05 | R83: 0.01100518051 | S83: 1 | T83: 0 | U83: 2 | V83: 0 | W83: 0 | X83: 3 | Y83: 0 | Z83: 0 | AA83: 0 | AB83: 1 | AC83: 10 | AD83: -0.0568 | AE83: 1.02 | AF83: -0.2446 | AG83: 2.94 | AH83: -0.206 | AI83: 4.35 | AJ83: -0.153 | AK83: 70 | AL83: 71 | AM83: 74 | AN83: 77 | AO83: 0 | AP83: 0 | AQ83: 0 | AR83: 0 | AS83: 2 | AT83: 2 | AU83: 2 | AV83: 2 | AW83: 0 | AX83: 0 | AY83: 0 | AZ83: 0
A84: 2 | B84: 1996 | C84: 74 | D84: 26 | E84: 22 | F84: 0.8253 | G84: 1560.703944 | H84: 0 | I84: 0 | J84: 0 | K84: 1560.703944 | L84: 1.987149979e-07 | M84: 15755820.33 | N84: 17805271.49 | O84: 0 | P84: 33561091.82 | Q84: 1.068282732e-05 | R84: 0.01860134888 | S84: 1 | T84: 0 | U84: 2 | V84: 0 | W84: 0 | X84: 3 | Y84: 0 | Z84: 0 | AA84: 0 | AB84: 1 | AC84: 10 | AD84: -0.0568 | AE84: 1.02 | AF84: -0.2446 | AG84: 2.94 | AH84: -0.206 | AI84: 4.35 | AJ84: -0.153 | AK84: 71 | AL84: 72 | AM84: 75 | AN84: 78 | AO84: 77 | AP84: 0 | AQ84: 73 | AR84: 70 | AS84: 2 | AT84: 2 | AU84: 2 | AV84: 2 | AW84: 2 | AX84: 0 | AY84: 2 | AZ84: 2
A85: 2 | B85: 1995 | C85: 75 | D85: 26 | E85: 22 | F85: 0.8253 | G85: 666.356332 | H85: 0 | I85: 0 | J85: 0 | K85: 666.356332 | L85: 8.484312328e-08 | M85: 15755820.33 | N85: 17805271.49 | O85: 0 | P85: 33561091.82 | Q85: 1.068282732e-05 | R85: 0.007942010178 | S85: 1 | T85: 0 | U85: 2 | V85: 0 | W85: 0 | X85: 3 | Y85: 0 | Z85: 0 | AA85: 0 | AB85: 1 | AC85: 10 | AD85: -0.0568 | AE85: 1.02 | AF85: -0.2446 | AG85: 2.94 | AH85: -0.206 | AI85: 4.35 | AJ85: -0.153 | AK85: 72 | AL85: 0 | AM85: 76 | AN85: 79 | AO85: 78 | AP85: 77 | AQ85: 74 | AR85: 71 | AS85: 2 | AT85: 0 | AU85: 2 | AV85: 2 | AW85: 2 | AX85: 2 | AY85: 2 | AZ85: 2
A86: 2 | B86: 1994 | C86: 76 | D86: 26 | E86: 22 | F86: 0.8253 | G86: 106.741372 | H86: 0 | I86: 0 | J86: 0 | K86: 106.741372 | L86: 1.359073359e-08 | M86: 15755820.33 | N86: 17805271.49 | O86: 0 | P86: 33561091.82 | Q86: 1.068282732e-05 | R86: 0.001272203808 | S86: 1 | T86: 0 | U86: 2 | V86: 0 | W86: 0 | X86: 3 | Y86: 0 | Z86: 0 | AA86: 0 | AB86: 1 | AC86: 10 | AD86: -0.0568 | AE86: 1.02 | AF86: -0.2446 | AG86: 2.94 | AH86: -0.206 | AI86: 4.35 | AJ86: -0.153 | AK86: 0 | AL86: 0 | AM86: 0 | AN86: 0 | AO86: 79 | AP86: 78 | AQ86: 75 | AR86: 72 | AS86: 0 | AT86: 0 | AU86: 0 | AV86: 0 | AW86: 2 | AX86: 2 | AY86: 2 | AZ86: 2
A87: 2 | B87: 1987 | C87: 77 | D87: 26 | E87: 22 | F87: 0.8253 | G87: 1173.118768 | H87: 0 | I87: 0 | J87: 0 | K87: 1173.118768 | L87: 1.493661206e-07 | M87: 15755820.33 | N87: 17805271.49 | O87: 0 | P87: 33561091.82 | Q87: 1.068282732e-05 | R87: 0.01398189039 | S87: 1 | T87: 0 | U87: 2 | V87: 0 | W87: 0 | X87: 3 | Y87: 0 | Z87: 0 | AA87: 0 | AB87: 1 | AC87: 10 | AD87: -0.0568 | AE87: 1.02 | AF87: -0.2446 | AG87: 2.94 | AH87: -0.206 | AI87: 4.35 | AJ87: -0.153 | AK87: 74 | AL87: 75 | AM87: 78 | AN87: 81 | AO87: 80 | AP87: 0 | AQ87: 0 | AR87: 73 | AS87: 2 | AT87: 2 | AU87: 2 | AV87: 2 | AW87: 2 | AX87: 0 | AY87: 0 | AZ87: 2
A88: 2 | B88: 1986 | C88: 78 | D88: 26 | E88: 22 | F88: 0.8253 | G88: 67.36106 | H88: 0 | I88: 0 | J88: 0 | K88: 67.36106 | L88: 8.576676537e-09 | M88: 15755820.33 | N88: 17805271.49 | O88: 0 | P88: 33561091.82 | Q88: 1.068282732e-05 | R88: 0.0008028470631 | S88: 1 | T88: 0 | U88: 2 | V88: 0 | W88: 0 | X88: 3 | Y88: 0 | Z88: 0 | AA88: 0 | AB88: 1 | AC88: 10 | AD88: -0.0568 | AE88: 1.02 | AF88: -0.2446 | AG88: 2.94 | AH88: -0.206 | AI88: 4.35 | AJ88: -0.153 | AK88: 75 | AL88: 76 | AM88: 79 | AN88: 82 | AO88: 81 | AP88: 80 | AQ88: 77 | AR88: 74 | AS88: 2 | AT88: 2 | AU88: 2 | AV88: 2 | AW88: 2 | AX88: 2 | AY88: 2 | AZ88: 2
A89: 2 | B89: 1985 | C89: 79 | D89: 26 | E89: 22 | F89: 0.8253 | G89: 200.010532 | H89: 0 | I89: 0 | J89: 0 | K89: 200.010532 | L89: 2.546613187e-08 | M89: 15755820.33 | N89: 17805271.49 | O89: 0 | P89: 33561091.82 | Q89: 1.068282732e-05 | R89: 0.002383838203 | S89: 1 | T89: 0 | U89: 2 | V89: 0 | W89: 0 | X89: 3 | Y89: 0 | Z89: 0 | AA89: 0 | AB89: 1 | AC89: 10 | AD89: -0.0568 | AE89: 1.02 | AF89: -0.2446 | AG89: 2.94 | AH89: -0.206 | AI89: 4.35 | AJ89: -0.153 | AK89: 76 | AL89: 0 | AM89: 0 | AN89: 83 | AO89: 82 | AP89: 81 | AQ89: 78 | AR89: 75 | AS89: 2 | AT89: 0 | AU89: 0 | AV89: 2 | AW89: 2 | AX89: 2 | AY89: 2 | AZ89: 2
A90: 2 | B90: 1978 | C90: 80 | D90: 26 | E90: 22 | F90: 0.8253 | G90: 15101.31333 | H90: 0 | I90: 0 | J90: 0 | K90: 15101.31333 | L90: 1.922758931e-06 | M90: 15755820.33 | N90: 17805271.49 | O90: 0 | P90: 33561091.82 | Q90: 1.068282732e-05 | R90: 0.17998596 | S90: 1 | T90: 0 | U90: 2 | V90: 0 | W90: 0 | X90: 3 | Y90: 0 | Z90: 0 | AA90: 0 | AB90: 1 | AC90: 10 | AD90: -0.0568 | AE90: 1.02 | AF90: -0.2446 | AG90: 2.94 | AH90: -0.206 | AI90: 4.35 | AJ90: -0.153 | AK90: 77 | AL90: 78 | AM90: 81 | AN90: 3 | AO90: 2 | AP90: 1 | AQ90: 0 | AR90: 0 | AS90: 2 | AT90: 2 | AU90: 2 | AV90: 3 | AW90: 3 | AX90: 3 | AY90: 0 | AZ90: 0
A91: 2 | B91: 1977 | C91: 81 | D91: 26 | E91: 22 | F91: 0.8253 | G91: 851.858328 | H91: 0 | I91: 0 | J91: 0 | K91: 851.858328 | L91: 1.08461971e-07 | M91: 15755820.33 | N91: 17805271.49 | O91: 0 | P91: 33561091.82 | Q91: 1.068282732e-05 | R91: 0.01015292747 | S91: 1 | T91: 0 | U91: 2 | V91: 0 | W91: 0 | X91: 3 | Y91: 0 | Z91: 0 | AA91: 0 | AB91: 1 | AC91: 10 | AD91: -0.0568 | AE91: 1.02 | AF91: -0.2446 | AG91: 2.94 | AH91: -0.206 | AI91: 4.35 | AJ91: -0.153 | AK91: 78 | AL91: 79 | AM91: 82 | AN91: 4 | AO91: 3 | AP91: 2 | AQ91: 80 | AR91: 77 | AS91: 2 | AT91: 2 | AU91: 2 | AV91: 3 | AW91: 3 | AX91: 3 | AY91: 2 | AZ91: 2
A92: 2 | B92: 1976 | C92: 82 | D92: 26 | E92: 22 | F92: 0.8253 | G92: 262.189972 | H92: 0 | I92: 0 | J92: 0 | K92: 262.189972 | L92: 3.338306406e-08 | M92: 15755820.33 | N92: 17805271.49 | O92: 0 | P92: 33561091.82 | Q92: 1.068282732e-05 | R92: 0.003124927799 | S92: 1 | T92: 0 | U92: 2 | V92: 0 | W92: 0 | X92: 3 | Y92: 0 | Z92: 0 | AA92: 0 | AB92: 1 | AC92: 10 | AD92: -0.0568 | AE92: 1.02 | AF92: -0.2446 | AG92: 2.94 | AH92: -0.206 | AI92: 4.35 | AJ92: -0.153 | AK92: 79 | AL92: 0 | AM92: 83 | AN92: 5 | AO92: 4 | AP92: 3 | AQ92: 81 | AR92: 78 | AS92: 2 | AT92: 0 | AU92: 2 | AV92: 3 | AW92: 3 | AX92: 3 | AY92: 2 | AZ92: 2
A93: 2 | B93: 1975 | C93: 83 | D93: 26 | E93: 22 | F93: 0.8253 | G93: 202.08318 | H93: 0 | I93: 0 | J93: 0 | K93: 202.08318 | L93: 2.573002961e-08 | M93: 15755820.33 | N93: 17805271.49 | O93: 0 | P93: 33561091.82 | Q93: 1.068282732e-05 | R93: 0.002408541189 | S93: 1 | T93: 0 | U93: 2 | V93: 0 | W93: 0 | X93: 3 | Y93: 0 | Z93: 0 | AA93: 0 | AB93: 1 | AC93: 10 | AD93: -0.0568 | AE93: 1.02 | AF93: -0.2446 | AG93: 2.94 | AH93: -0.206 | AI93: 4.35 | AJ93: -0.153 | AK93: 0 | AL93: 0 | AM93: 0 | AN93: 0 | AO93: 5 | AP93: 4 | AQ93: 82 | AR93: 79 | AS93: 0 | AT93: 0 | AU93: 0 | AV93: 0 | AW93: 3 | AX93: 3 | AY93: 2 | AZ93: 2
A94: 3 | B94: BAJA CALIFORNIA SUR | E94: 0 | AB94: 0
A95: 3 | B95: 2404 | C95: 1 | D95: 33 | E95: 29 | F95: 0.9182 | G95: 15059.86037 | H95: 0 | I95: 0 | J95: 0 | K95: 15059.86037 | L95: 1.917480976e-06 | M95: 13288326.67 | N95: 16319240.92 | O95: 0 | P95: 29607567.59 | Q95: 9.424381468e-06 | R95: =L95/Q95 -> 0.2034596098 | S95: 1 | T95: 0 | U95: 2 | V95: 0 | W95: 0 | X95: 3 | Y95: 0 | Z95: 0 | AA95: 0 | AB95: 1 | AC95: 10 | AD95: -0.0568 | AE95: 1.02 | AF95: -0.2446 | AG95: 2.94 | AH95: -0.206 | AI95: 4.35 | AJ95: -0.153 | AK95: 0 | AL95: 80 | AM95: 2 | AN95: 9 | AO95: 8 | AP95: 7 | AQ95: 0 | AR95: 0 | AS95: 0 | AT95: 2 | AU95: 3 | AV95: 3 | AW95: 3 | AX95: 3 | AY95: 0 | AZ95: 0
A96: 3 | B96: 2255 | C96: 2 | D96: 34 | E96: 30 | F96: 0.9182 | G96: 21032.19558 | H96: 0 | I96: 0 | J96: 0 | K96: 21032.19558 | L96: 2.677902313e-06 | M96: 16482334.24 | N96: 16044007.62 | O96: 0 | P96: 32526341.86 | Q96: 1.035345617e-05 | R96: 0.2586481526 | S96: 1 | T96: 0 | U96: 2 | V96: 0 | W96: 0 | X96: 3 | Y96: 0 | Z96: 0 | AA96: 0 | AB96: 1 | AC96: 10 | AD96: -0.0568 | AE96: 1.02 | AF96: -0.2446 | AG96: 2.94 | AH96: -0.206 | AI96: 4.35 | AJ96: -0.153 | AK96: 80 | AL96: 91 | AM96: 3 | AN96: 10 | AO96: 9 | AP96: 8 | AQ96: 1 | AR96: 0 | AS96: 2 | AT96: 2 | AU96: 3 | AV96: 3 | AW96: 3 | AX96: 3 | AY96: 3 | AZ96: 0
A97: 3 | B97: 2254 | C97: 3 | D97: 34 | E97: 30 | F97: 0.9182 | G97: 16007.0605 | H97: 0 | I97: 0 | J97: 0 | K97: 16007.0605 | L97: 2.038082243e-06 | M97: 16482334.24 | N97: 16044007.62 | O97: 0 | P97: 32526341.86 | Q97: 1.035345617e-05 | R97: 0.1968504245 | S97: 1 | T97: 0 | U97: 2 | V97: 0 | W97: 0 | X97: 3 | Y97: 0 | Z97: 0 | AA97: 0 | AB97: 1 | AC97: 10 | AD97: -0.0568 | AE97: 1.02 | AF97: -0.2446 | AG97: 2.94 | AH97: -0.206 | AI97: 4.35 | AJ97: -0.153 | AK97: 81 | AL97: 82 | AM97: 4 | AN97: 11 | AO97: 10 | AP97: 9 | AQ97: 2 | AR97: 80 | AS97: 2 | AT97: 2 | AU97: 3 | AV97: 3 | AW97: 3 | AX97: 3 | AY97: 3 | AZ97: 2
A98: 3 | B98: 2253 | C98: 4 | D98: 34 | E98: 30 | F98: 0.9182 | G98: 15244.32604 | H98: 0 | I98: 0 | J98: 0 | K98: 15244.32604 | L98: 1.940967875e-06 | M98: 16482334.24 | N98: 16044007.62 | O98: 0 | P98: 32526341.86 | Q98: 1.035345617e-05 | R98: 0.187470526 | S98: 1 | T98: 0 | U98: 2 | V98: 0 | W98: 0 | X98: 3 | Y98: 0 | Z98: 0 | AA98: 0 | AB98: 1 | AC98: 10 | AD98: -0.0568 | AE98: 1.02 | AF98: -0.2446 | AG98: 2.94 | AH98: -0.206 | AI98: 4.35 | AJ98: -0.153 | AK98: 82 | AL98: 83 | AM98: 5 | AN98: 12 | AO98: 11 | AP98: 10 | AQ98: 3 | AR98: 81 | AS98: 2 | AT98: 2 | AU98: 3 | AV98: 3 | AW98: 3 | AX98: 3 | AY98: 3 | AZ98: 2
A99: 3 | B99: 2252 | C99: 5 | D99: 34 | E99: 30 | F99: 0.9182 | G99: 476.70904 | H99: 0 | I99: 0 | J99: 0 | K99: 476.70904 | L99: 6.069648011e-08 | M99: 16482334.24 | N99: 16044007.62 | O99: 0 | P99: 32526341.86 | Q99: 1.035345617e-05 | R99: 0.005862436571 | S99: 1 | T99: 0 | U99: 2 | V99: 0 | W99: 0 | X99: 3 | Y99: 0 | Z99: 0 | AA99: 0 | AB99: 1 | AC99: 10 | AD99: -0.0568 | AE99: 1.02 | AF99: -0.2446 | AG99: 2.94 | AH99: -0.206 | AI99: 4.35 | AJ99: -0.153 | AK99: 83 | AL99: 0 | AM99: 0 | AN99: 13 | AO99: 12 | AP99: 11 | AQ99: 4 | AR99: 82 | AS99: 2 | AT99: 0 | AU99: 0 | AV99: 3 | AW99: 3 | AX99: 3 | AY99: 3 | AZ99: 2
A100: 3 | B100: 2402 | C100: 6 | D100: 33 | E100: 29 | F100: 0.9182 | G100: 3119.33524 | H100: 0 | I100: 0 | J100: 0 | K100: 3119.33524 | L100: 3.971660981e-07 | M100: 13288326.67 | N100: 16319240.92 | O100: 0 | P100: 29607567.59 | Q100: 9.424381468e-06 | R100: 0.04214240472 | S100: 1 | T100: 0 | U100: 2 | V100: 0 | W100: 0 | X100: 3 | Y100: 0 | Z100: 0 | AA100: 0 | AB100: 1 | AC100: 10 | AD100: -0.0568 | AE100: 1.02 | AF100: -0.2446 | AG100: 2.94 | AH100: -0.206 | AI100: 4.35 | AJ100: -0.153 | AK100: 0 | AL100: 0 | AM100: 7 | AN100: 14 | AO100: 0 | AP100: 0 | AQ100: 0 | AR100: 0 | AS100: 0 | AT100: 0 | AU100: 3 | AV100: 3 | AW100: 0 | AX100: 0 | AY100: 0 | AZ100: 0
A101: 3 | B101: 2401 | C101: 7 | D101: 33 | E101: 29 | F101: 0.9182 | G101: 2789.784208 | H101: 0 | I101: 0 | J101: 0 | K101: 2789.784208 | L101: 3.552063575e-07 | M101: 13288326.67 | N101: 16319240.92 | O101: 0 | P101: 29607567.59 | Q101: 9.424381468e-06 | R101: 0.03769015067 | S101: 1 | T101: 0 | U101: 2 | V101: 0 | W101: 0 | X101: 3 | Y101: 0 | Z101: 0 | AA101: 0 | AB101: 1 | AC101: 10 | AD101: -0.0568 | AE101: 1.02 | AF101: -0.2446 | AG101: 2.94 | AH101: -0.206 | AI101: 4.35 | AJ101: -0.153 | AK101: 0 | AL101: 1 | AM101: 8 | AN101: 15 | AO101: 14 | AP101: 0 | AQ101: 6 | AR101: 0 | AS101: 0 | AT101: 3 | AU101: 3 | AV101: 3 | AW101: 3 | AX101: 0 | AY101: 3 | AZ101: 0
A102: 3 | B102: 2400 | C102: 8 | D102: 33 | E102: 29 | F102: 0.9182 | G102: 14555.17058 | H102: 0 | I102: 0 | J102: 0 | K102: 14555.17058 | L102: 1.853221876e-06 | M102: 13288326.67 | N102: 16319240.92 | O102: 0 | P102: 29607567.59 | Q102: 9.424381468e-06 | R102: 0.1966412207 | S102: 1 | T102: 0 | U102: 2 | V102: 0 | W102: 0 | X102: 3 | Y102: 0 | Z102: 0 | AA102: 0 | AB102: 1 | AC102: 10 | AD102: -0.0568 | AE102: 1.02 | AF102: -0.2446 | AG102: 2.94 | AH102: -0.206 | AI102: 4.35 | AJ102: -0.153 | AK102: 1 | AL102: 2 | AM102: 9 | AN102: 16 | AO102: 15 | AP102: 14 | AQ102: 7 | AR102: 0 | AS102: 3 | AT102: 3 | AU102: 3 | AV102: 3 | AW102: 3 | AX102: 3 | AY102: 3 | AZ102: 0
A103: 3 | B103: 2249 | C103: 9 | D103: 34 | E103: 30 | F103: 0.9182 | G103: 28302.00844 | H103: 0 | I103: 0 | J103: 0 | K103: 28302.00844 | L103: 3.603523634e-06 | M103: 16482334.24 | N103: 16044007.62 | O103: 0 | P103: 32526341.86 | Q103: 1.035345617e-05 | R103: 0.3480503103 | S103: 1 | T103: 0 | U103: 2 | V103: 0 | W103: 0 | X103: 3 | Y103: 0 | Z103: 0 | AA103: 0 | AB103: 1 | AC103: 10 | AD103: -0.0568 | AE103: 1.02 | AF103: -0.2446 | AG103: 2.94 | AH103: -0.206 | AI103: 4.35 | AJ103: -0.153 | AK103: 2 | AL103: 3 | AM103: 10 | AN103: 17 | AO103: 16 | AP103: 15 | AQ103: 8 | AR103: 1 | AS103: 3 | AT103: 3 | AU103: 3 | AV103: 3 | AW103: 3 | AX103: 3 | AY103: 3 | AZ103: 3
A104: 3 | B104: 2248 | C104: 10 | D104: 34 | E104: 30 | F104: 0.9182 | G104: 17495.22177 | H104: 0 | I104: 0 | J104: 0 | K104: 17495.22177 | L104: 2.22756082e-06 | M104: 16482334.24 | N104: 16044007.62 | O104: 0 | P104: 32526341.86 | Q104: 1.035345617e-05 | R104: 0.2151514221 | S104: 1 | T104: 0 | U104: 2 | V104: 0 | W104: 0 | X104: 3 | Y104: 0 | Z104: 0 | AA104: 0 | AB104: 1 | AC104: 10 | AD104: -0.0568 | AE104: 1.02 | AF104: -0.2446 | AG104: 2.94 | AH104: -0.206 | AI104: 4.35 | AJ104: -0.153 | AK104: 3 | AL104: 4 | AM104: 11 | AN104: 18 | AO104: 17 | AP104: 16 | AQ104: 9 | AR104: 2 | AS104: 3 | AT104: 3 | AU104: 3 | AV104: 3 | AW104: 3 | AX104: 3 | AY104: 3 | AZ104: 3
A105: 3 | B105: 2247 | C105: 11 | D105: 34 | E105: 30 | F105: 0.9182 | G105: 18854.87886 | H105: 0 | I105: 0 | J105: 0 | K105: 18854.87886 | L105: 2.400677737e-06 | M105: 16482334.24 | N105: 16044007.62 | O105: 0 | P105: 32526341.86 | Q105: 1.035345617e-05 | R105: 0.2318721108 | S105: 1 | T105: 0 | U105: 2 | V105: 0 | W105: 0 | X105: 3 | Y105: 0 | Z105: 0 | AA105: 0 | AB105: 1 | AC105: 10 | AD105: -0.0568 | AE105: 1.02 | AF105: -0.2446 | AG105: 2.94 | AH105: -0.206 | AI105: 4.35 | AJ105: -0.153 | AK105: 4 | AL105: 5 | AM105: 12 | AN105: 19 | AO105: 18 | AP105: 17 | AQ105: 10 | AR105: 3 | AS105: 3 | AT105: 3 | AU105: 3 | AV105: 3 | AW105: 3 | AX105: 3 | AY105: 3 | AZ105: 3
A106: 3 | B106: 2246 | C106: 12 | D106: 34 | E106: 30 | F106: 0.9182 | G106: 4925.647972 | H106: 0 | I106: 0 | J106: 0 | K106: 4925.647972 | L106: 6.271529781e-07 | M106: 16482334.24 | N106: 16044007.62 | O106: 0 | P106: 32526341.86 | Q106: 1.035345617e-05 | R106: 0.06057426309 | S106: 1 | T106: 0 | U106: 2 | V106: 0 | W106: 0 | X106: 3 | Y106: 0 | Z106: 0 | AA106: 0 | AB106: 1 | AC106: 10 | AD106: -0.0568 | AE106: 1.02 | AF106: -0.2446 | AG106: 2.94 | AH106: -0.206 | AI106: 4.35 | AJ106: -0.153 | AK106: 5 | AL106: 0 | AM106: 13 | AN106: 20 | AO106: 19 | AP106: 18 | AQ106: 11 | AR106: 4 | AS106: 3 | AT106: 0 | AU106: 3 | AV106: 3 | AW106: 3 | AX106: 3 | AY106: 3 | AZ106: 3
A107: 3 | B107: 2245 | C107: 13 | D107: 34 | E107: 30 | F107: 0.9182 | G107: 13116.75287 | H107: 0 | I107: 0 | J107: 0 | K107: 13116.75287 | L107: 1.670076845e-06 | M107: 16482334.24 | N107: 16044007.62 | O107: 0 | P107: 32526341.86 | Q107: 1.035345617e-05 | R107: 0.1613062167 | S107: 1 | T107: 0 | U107: 2 | V107: 0 | W107: 0 | X107: 3 | Y107: 0 | Z107: 0 | AA107: 0 | AB107: 1 | AC107: 10 | AD107: -0.0568 | AE107: 1.02 | AF107: -0.2446 | AG107: 2.94 | AH107: -0.206 | AI107: 4.35 | AJ107: -0.153 | AK107: 0 | AL107: 0 | AM107: 0 | AN107: 0 | AO107: 20 | AP107: 19 | AQ107: 12 | AR107: 5 | AS107: 0 | AT107: 0 | AU107: 0 | AV107: 0 | AW107: 3 | AX107: 3 | AY107: 3 | AZ107: 3
A108: 3 | B108: 2399 | C108: 14 | D108: 33 | E108: 29 | F108: 0.9182 | G108: 1559.66762 | H108: 0 | I108: 0 | J108: 0 | K108: 1559.66762 | L108: 1.98583049e-07 | M108: 13288326.67 | N108: 16319240.92 | O108: 0 | P108: 29607567.59 | Q108: 9.424381468e-06 | R108: 0.02107120236 | S108: 1 | T108: 0 | U108: 2 | V108: 0 | W108: 0 | X108: 3 | Y108: 0 | Z108: 0 | AA108: 0 | AB108: 1 | AC108: 10 | AD108: -0.0568 | AE108: 1.02 | AF108: -0.2446 | AG108: 2.94 | AH108: -0.206 | AI108: 4.35 | AJ108: -0.153 | AK108: 7 | AL108: 8 | AM108: 15 | AN108: 21 | AO108: 0 | AP108: 0 | AQ108: 0 | AR108: 6 | AS108: 3 | AT108: 3 | AU108: 3 | AV108: 3 | AW108: 0 | AX108: 0 | AY108: 0 | AZ108: 3
A109: 3 | B109: 2398 | C109: 15 | D109: 33 | E109: 29 | F109: 0.9182 | G109: 1821.857592 | H109: 0 | I109: 0 | J109: 0 | K109: 1821.857592 | L109: 2.319661131e-07 | M109: 13288326.67 | N109: 16319240.92 | O109: 0 | P109: 29607567.59 | Q109: 9.424381468e-06 | R109: 0.02461340448 | S109: 1 | T109: 0 | U109: 2 | V109: 0 | W109: 0 | X109: 3 | Y109: 0 | Z109: 0 | AA109: 0 | AB109: 1 | AC109: 10 | AD109: -0.0568 | AE109: 1.02 | AF109: -0.2446 | AG109: 2.94 | AH109: -0.206 | AI109: 4.35 | AJ109: -0.153 | AK109: 8 | AL109: 9 | AM109: 16 | AN109: 22 | AO109: 21 | AP109: 0 | AQ109: 14 | AR109: 7 | AS109: 3 | AT109: 3 | AU109: 3 | AV109: 3 | AW109: 3 | AX109: 0 | AY109: 3 | AZ109: 3
A110: 3 | B110: 2243 | C110: 16 | D110: 34 | E110: 30 | F110: 0.9182 | G110: 4648.949464 | H110: 0 | I110: 0 | J110: 0 | K110: 4648.949464 | L110: 5.919226299e-07 | M110: 16482334.24 | N110: 16044007.62 | O110: 0 | P110: 32526341.86 | Q110: 1.035345617e-05 | R110: 0.05717150099 | S110: 1 | T110: 0 | U110: 2 | V110: 0 | W110: 0 | X110: 3 | Y110: 0 | Z110: 0 | AA110: 0 | AB110: 1 | AC110: 10 | AD110: -0.0568 | AE110: 1.02 | AF110: -0.2446 | AG110: 2.94 | AH110: -0.206 | AI110: 4.35 | AJ110: -0.153 | AK110: 9 | AL110: 10 | AM110: 17 | AN110: 23 | AO110: 22 | AP110: 21 | AQ110: 15 | AR110: 8 | AS110: 3 | AT110: 3 | AU110: 3 | AV110: 3 | AW110: 3 | AX110: 3 | AY110: 3 | AZ110: 3
A111: 3 | B111: 2242 | C111: 17 | D111: 34 | E111: 30 | F111: 0.9182 | G111: 16783.26718 | H111: 0 | I111: 0 | J111: 0 | K111: 16783.26718 | L111: 2.136911946e-06 | M111: 16482334.24 | N111: 16044007.62 | O111: 0 | P111: 32526341.86 | Q111: 1.035345617e-05 | R111: 0.2063960006 | S111: 1 | T111: 0 | U111: 2 | V111: 0 | W111: 0 | X111: 3 | Y111: 0 | Z111: 0 | AA111: 0 | AB111: 1 | AC111: 10 | AD111: -0.0568 | AE111: 1.02 | AF111: -0.2446 | AG111: 2.94 | AH111: -0.206 | AI111: 4.35 | AJ111: -0.153 | AK111: 10 | AL111: 11 | AM111: 18 | AN111: 24 | AO111: 23 | AP111: 22 | AQ111: 16 | AR111: 9 | AS111: 3 | AT111: 3 | AU111: 3 | AV111: 3 | AW111: 3 | AX111: 3 | AY111: 3 | AZ111: 3
A112: 3 | B112: 2241 | C112: 18 | D112: 34 | E112: 30 | F112: 0.9182 | G112: 19250.75462 | H112: 0 | I112: 0 | J112: 0 | K112: 19250.75462 | L112: 2.451082205e-06 | M112: 16482334.24 | N112: 16044007.62 | O112: 0 | P112: 32526341.86 | Q112: 1.035345617e-05 | R112: 0.236740482 | S112: 1 | T112: 0 | U112: 2 | V112: 0 | W112: 0 | X112: 3 | Y112: 0 | Z112: 0 | AA112: 0 | AB112: 1 | AC112: 10 | AD112: -0.0568 | AE112: 1.02 | AF112: -0.2446 | AG112: 2.94 | AH112: -0.206 | AI112: 4.35 | AJ112: -0.153 | AK112: 11 | AL112: 12 | AM112: 19 | AN112: 25 | AO112: 24 | AP112: 23 | AQ112: 17 | AR112: 10 | AS112: 3 | AT112: 3 | AU112: 3 | AV112: 3 | AW112: 3 | AX112: 3 | AY112: 3 | AZ112: 3
A113: 3 | B113: 2240 | C113: 19 | D113: 34 | E113: 30 | F113: 0.9182 | G113: 5552.623992 | H113: 0 | I113: 0 | J113: 0 | K113: 5552.623992 | L113: 7.069820444e-07 | M113: 16482334.24 | N113: 16044007.62 | O113: 0 | P113: 32526341.86 | Q113: 1.035345617e-05 | R113: 0.06828464162 | S113: 1 | T113: 0 | U113: 2 | V113: 0 | W113: 0 | X113: 3 | Y113: 0 | Z113: 0 | AA113: 0 | AB113: 1 | AC113: 10 | AD113: -0.0568 | AE113: 1.02 | AF113: -0.2446 | AG113: 2.94 | AH113: -0.206 | AI113: 4.35 | AJ113: -0.153 | AK113: 12 | AL113: 13 | AM113: 20 | AN113: 26 | AO113: 25 | AP113: 24 | AQ113: 18 | AR113: 11 | AS113: 3 | AT113: 3 | AU113: 3 | AV113: 3 | AW113: 3 | AX113: 3 | AY113: 3 | AZ113: 3
A114: 3 | B114: 2239 | C114: 20 | D114: 34 | E114: 30 | F114: 0.9182 | G114: 17290.02962 | H114: 0 | I114: 0 | J114: 0 | K114: 17290.02962 | L114: 2.201434944e-06 | M114: 16482334.24 | N114: 16044007.62 | O114: 0 | P114: 32526341.86 | Q114: 1.035345617e-05 | R114: 0.2126280255 | S114: 1 | T114: 0 | U114: 2 | V114: 0 | W114: 0 | X114: 3 | Y114: 0 | Z114: 0 | AA114: 0 | AB114: 1 | AC114: 10 | AD114: -0.0568 | AE114: 1.02 | AF114: -0.2446 | AG114: 2.94 | AH114: -0.206 | AI114: 4.35 | AJ114: -0.153 | AK114: 13 | AL114: 0 | AM114: 0 | AN114: 27 | AO114: 26 | AP114: 25 | AQ114: 19 | AR114: 12 | AS114: 3 | AT114: 0 | AU114: 0 | AV114: 3 | AW114: 3 | AX114: 3 | AY114: 3 | AZ114: 3
A115: 3 | B115: 2396 | C115: 21 | D115: 33 | E115: 29 | F115: 0.9182 | G115: 1806.312732 | H115: 0 | I115: 0 | J115: 0 | K115: 1806.312732 | L115: 2.299868801e-07 | M115: 13288326.67 | N115: 16319240.92 | O115: 0 | P115: 29607567.59 | Q115: 9.424381468e-06 | R115: 0.0244033925 | S115: 1 | T115: 0 | U115: 2 | V115: 0 | W115: 0 | X115: 3 | Y115: 0 | Z115: 0 | AA115: 0 | AB115: 1 | AC115: 10 | AD115: -0.0568 | AE115: 1.02 | AF115: -0.2446 | AG115: 2.94 | AH115: -0.206 | AI115: 4.35 | AJ115: -0.153 | AK115: 15 | AL115: 16 | AM115: 22 | AN115: 0 | AO115: 0 | AP115: 0 | AQ115: 0 | AR115: 14 | AS115: 3 | AT115: 3 | AU115: 3 | AV115: 0 | AW115: 0 | AX115: 0 | AY115: 0 | AZ115: 3
A116: 3 | B116: 2236 | C116: 22 | D116: 34 | E116: 30 | F116: 0.9182 | G116: 2806.365392 | H116: 0 | I116: 0 | J116: 0 | K116: 2806.365392 | L116: 3.573175394e-07 | M116: 16482334.24 | N116: 16044007.62 | O116: 0 | P116: 32526341.86 | Q116: 1.035345617e-05 | R116: 0.0345119092 | S116: 1 | T116: 0 | U116: 2 | V116: 0 | W116: 0 | X116: 3 | Y116: 0 | Z116: 0 | AA116: 0 | AB116: 1 | AC116: 10 | AD116: -0.0568 | AE116: 1.02 | AF116: -0.2446 | AG116: 2.94 | AH116: -0.206 | AI116: 4.35 | AJ116: -0.153 | AK116: 16 | AL116: 17 | AM116: 23 | AN116: 28 | AO116: 0 | AP116: 0 | AQ116: 21 | AR116: 15 | AS116: 3 | AT116: 3 | AU116: 3 | AV116: 3 | AW116: 0 | AX116: 0 | AY116: 3 | AZ116: 3
A117: 3 | B117: 2235 | C117: 23 | D117: 34 | E117: 30 | F117: 0.9182 | G117: 5913.264744 | H117: 0 | I117: 0 | J117: 0 | K117: 5913.264744 | L117: 7.529002511e-07 | M117: 16482334.24 | N117: 16044007.62 | O117: 0 | P117: 32526341.86 | Q117: 1.035345617e-05 | R117: 0.07271970233 | S117: 1 | T117: 0 | U117: 2 | V117: 0 | W117: 0 | X117: 3 | Y117: 0 | Z117: 0 | AA117: 0 | AB117: 1 | AC117: 10 | AD117: -0.0568 | AE117: 1.02 | AF117: -0.2446 | AG117: 2.94 | AH117: -0.206 | AI117: 4.35 | AJ117: -0.153 | AK117: 17 | AL117: 18 | AM117: 24 | AN117: 29 | AO117: 28 | AP117: 0 | AQ117: 22 | AR117: 16 | AS117: 3 | AT117: 3 | AU117: 3 | AV117: 3 | AW117: 3 | AX117: 0 | AY117: 3 | AZ117: 3
A118: 3 | B118: 2234 | C118: 24 | D118: 34 | E118: 30 | F118: 0.9182 | G118: 5344.322868 | H118: 0 | I118: 0 | J118: 0 | K118: 5344.322868 | L118: 6.804603215e-07 | M118: 16482334.24 | N118: 16044007.62 | O118: 0 | P118: 32526341.86 | Q118: 1.035345617e-05 | R118: 0.06572301173 | S118: 1 | T118: 0 | U118: 2 | V118: 0 | W118: 0 | X118: 3 | Y118: 0 | Z118: 0 | AA118: 0 | AB118: 1 | AC118: 10 | AD118: -0.0568 | AE118: 1.02 | AF118: -0.2446 | AG118: 2.94 | AH118: -0.206 | AI118: 4.35 | AJ118: -0.153 | AK118: 18 | AL118: 19 | AM118: 25 | AN118: 30 | AO118: 29 | AP118: 28 | AQ118: 23 | AR118: 17 | AS118: 3 | AT118: 3 | AU118: 3 | AV118: 3 | AW118: 3 | AX118: 3 | AY118: 3 | AZ118: 3
A119: 3 | B119: 2233 | C119: 25 | D119: 34 | E119: 30 | F119: 0.9182 | G119: 4042.699924 | H119: 0 | I119: 0 | J119: 0 | K119: 4042.699924 | L119: 5.147325411e-07 | M119: 16482334.24 | N119: 16044007.62 | O119: 0 | P119: 32526341.86 | Q119: 1.035345617e-05 | R119: 0.049716011 | S119: 1 | T119: 0 | U119: 2 | V119: 0 | W119: 0 | X119: 3 | Y119: 0 | Z119: 0 | AA119: 0 | AB119: 1 | AC119: 10 | AD119: -0.0568 | AE119: 1.02 | AF119: -0.2446 | AG119: 2.94 | AH119: -0.206 | AI119: 4.35 | AJ119: -0.153 | AK119: 19 | AL119: 20 | AM119: 26 | AN119: 31 | AO119: 30 | AP119: 29 | AQ119: 24 | AR119: 18 | AS119: 3 | AT119: 3 | AU119: 3 | AV119: 3 | AW119: 3 | AX119: 3 | AY119: 3 | AZ119: 3
A120: 3 | B120: 2232 | C120: 26 | D120: 34 | E120: 30 | F120: 0.9182 | G120: 17729.43099 | H120: 0 | I120: 0 | J120: 0 | K120: 17729.43099 | L120: 2.257381264e-06 | M120: 16482334.24 | N120: 16044007.62 | O120: 0 | P120: 32526341.86 | Q120: 1.035345617e-05 | R120: 0.2180316627 | S120: 1 | T120: 0 | U120: 2 | V120: 0 | W120: 0 | X120: 3 | Y120: 0 | Z120: 0 | AA120: 0 | AB120: 1 | AC120: 10 | AD120: -0.0568 | AE120: 1.02 | AF120: -0.2446 | AG120: 2.94 | AH120: -0.206 | AI120: 4.35 | AJ120: -0.153 | AK120: 20 | AL120: 0 | AM120: 27 | AN120: 32 | AO120: 31 | AP120: 30 | AQ120: 25 | AR120: 19 | AS120: 3 | AT120: 0 | AU120: 3 | AV120: 3 | AW120: 3 | AX120: 3 | AY120: 3 | AZ120: 3
A121: 3 | B121: 2231 | C121: 27 | D121: 34 | E121: 30 | F121: 0.9182 | G121: 19612.4317 | H121: 0 | I121: 0 | J121: 0 | K121: 19612.4317 | L121: 2.497132361e-06 | M121: 16482334.24 | N121: 16044007.62 | O121: 0 | P121: 32526341.86 | Q121: 1.035345617e-05 | R121: 0.2411882872 | S121: 1 | T121: 0 | U121: 2 | V121: 0 | W121: 0 | X121: 3 | Y121: 0 | Z121: 0 | AA121: 0 | AB121: 1 | AC121: 10 | AD121: -0.0568 | AE121: 1.02 | AF121: -0.2446 | AG121: 2.94 | AH121: -0.206 | AI121: 4.35 | AJ121: -0.153 | AK121: 0 | AL121: 0 | AM121: 0 | AN121: 1 | AP121: 1 | AQ121: 26 | AR121: 20 | AS121: 0 | AT121: 0 | AU121: 0 | AV121: 3 | AW121: 0 | AX121: 3 | AY121: 3 | AZ121: 3
A122: 3 | B122: 2228 | C122: 28 | D122: 42 | E122: 38 | F122: 0.8848 | G122: 2300.63928 | H122: 0 | I122: 0 | J122: 0 | K122: 2300.63928 | L122: 2.929264909e-07 | M122: 17240473.64 | N122: 13147147.02 | O122: 0 | P122: 30387620.66 | Q122: 9.672680074e-06 | R122: 0.03028390154 | S122: 1 | T122: 0 | U122: 2 | V122: 0 | W122: 0 | X122: 3 | Y122: 0 | Z122: 0 | AA122: 0 | AB122: 1 | AC122: 10 | AD122: -0.0568 | AE122: 1.02 | AF122: -0.2446 | AG122: 2.94 | AH122: -0.206 | AI122: 4.35 | AJ122: -0.153 | AK122: 23 | AL122: 24 | AM122: 29 | AN122: 0 | AO122: 0 | AP122: 0 | AQ122: 0 | AR122: 22 | AS122: 3 | AT122: 3 | AU122: 3 | AV122: 0 | AW122: 0 | AX122: 0 | AY122: 0 | AZ122: 3
A123: 3 | B123: 2227 | C123: 29 | D123: 42 | E123: 38 | F123: 0.8848 | G123: 1705.789304 | H123: 0 | I123: 0 | J123: 0 | K123: 1705.789304 | L123: 2.171878397e-07 | M123: 17240473.64 | N123: 13147147.02 | O123: 0 | P123: 30387620.66 | Q123: 9.672680074e-06 | R123: 0.02245373961 | S123: 1 | T123: 0 | U123: 2 | V123: 0 | W123: 0 | X123: 3 | Y123: 0 | Z123: 0 | AA123: 0 | AB123: 1 | AC123: 10 | AD123: -0.0568 | AE123: 1.02 | AF123: -0.2446 | AG123: 2.94 | AH123: -0.206 | AI123: 4.35 | AJ123: -0.153 | AK123: 24 | AL123: 25 | AM123: 30 | AN123: 34 | AO123: 0 | AP123: 0 | AQ123: 28 | AR123: 23 | AS123: 3 | AT123: 3 | AU123: 3 | AV123: 3 | AW123: 0 | AX123: 0 | AY123: 3 | AZ123: 3
A124: 3 | B124: 2226 | C124: 30 | D124: 42 | E124: 38 | F124: 0.8848 | G124: 3011.557544 | H124: 0 | I124: 0 | J124: 0 | K124: 3011.557544 | L124: 3.834434156e-07 | M124: 17240473.64 | N124: 13147147.02 | O124: 0 | P124: 30387620.66 | Q124: 9.672680074e-06 | R124: 0.03964189994 | S124: 1 | T124: 0 | U124: 2 | V124: 0 | W124: 0 | X124: 3 | Y124: 0 | Z124: 0 | AA124: 0 | AB124: 1 | AC124: 10 | AD124: -0.0568 | AE124: 1.02 | AF124: -0.2446 | AG124: 2.94 | AH124: -0.206 | AI124: 4.35 | AJ124: -0.153 | AK124: 25 | AL124: 26 | AM124: 31 | AN124: 35 | AO124: 34 | AP124: 0 | AQ124: 29 | AR124: 24 | AS124: 3 | AT124: 3 | AU124: 3 | AV124: 3 | AW124: 3 | AX124: 0 | AY124: 3 | AZ124: 3
A125: 3 | B125: 2225 | C125: 31 | D125: 42 | E125: 38 | F125: 0.8848 | G125: 3083.0639 | H125: 0 | I125: 0 | J125: 0 | K125: 3083.0639 | L125: 3.925478876e-07 | M125: 17240473.64 | N125: 13147147.02 | O125: 0 | P125: 30387620.66 | Q125: 9.672680074e-06 | R125: 0.04058315634 | S125: 1 | T125: 0 | U125: 2 | V125: 0 | W125: 0 | X125: 3 | Y125: 0 | Z125: 0 | AA125: 0 | AB125: 1 | AC125: 10 | AD125: -0.0568 | AE125: 1.02 | AF125: -0.2446 | AG125: 2.94 | AH125: -0.206 | AI125: 4.35 | AJ125: -0.153 | AK125: 26 | AL125: 27 | AM125: 32 | AN125: 36 | AO125: 35 | AP125: 34 | AQ125: 30 | AR125: 25 | AS125: 3 | AT125: 3 | AU125: 3 | AV125: 3 | AW125: 3 | AX125: 3 | AY125: 3 | AZ125: 3
A126: 3 | B126: 2224 | C126: 32 | D126: 42 | E126: 38 | F126: 0.8848 | G126: 7512.312676 | H126: 0 | I126: 0 | J126: 0 | K126: 7512.312676 | L126: 9.564973571e-07 | M126: 17240473.64 | N126: 13147147.02 | O126: 0 | P126: 30387620.66 | Q126: 9.672680074e-06 | R126: 0.09888648749 | S126: 1 | T126: 0 | U126: 2 | V126: 0 | W126: 0 | X126: 3 | Y126: 0 | Z126: 0 | AA126: 0 | AB126: 1 | AC126: 10 | AD126: -0.0568 | AE126: 1.02 | AF126: -0.2446 | AG126: 2.94 | AH126: -0.206 | AI126: 4.35 | AJ126: -0.153 | AK126: 27 | AL126: 0 | AM126: 33 | AN126: 37 | AO126: 36 | AP126: 35 | AQ126: 31 | AR126: 26 | AS126: 3 | AT126: 0 | AU126: 3 | AV126: 3 | AW126: 3 | AX126: 3 | AY126: 3 | AZ126: 3
A127: 3 | B127: 2223 | C127: 33 | D127: 43 | E127: 39 | F127: 0.9196 | G127: 6043.841568 | H127: 0 | I127: 0 | J127: 0 | K127: 6043.841568 | L127: 7.695258086e-07 | M127: 23389864.81 | N127: 10021461.53 | O127: 0 | P127: 33411326.34 | Q127: 1.063515548e-05 | R127: =L127/Q127 -> 0.07235679909 | S127: 1 | T127: 0 | U127: 2 | V127: 0 | W127: 0 | X127: 3 | Y127: 0 | Z127: 0 | AA127: 0 | AB127: 1 | AC127: 10 | AD127: -0.0568 | AE127: 1.02 | AF127: -0.2446 | AG127: 2.94 | AH127: -0.206 | AI127: 4.35 | AJ127: -0.153 | AK127: 0 | AL127: 0 | AM127: 0 | AN127: 0 | AO127: 37 | AP127: 36 | AQ127: 32 | AR127: 27 | AS127: 0 | AT127: 0 | AU127: 0 | AV127: 0 | AW127: 3 | AX127: 3 | AY127: 3 | AZ127: 3
A128: 3 | B128: 2219 | C128: 34 | D128: 42 | E128: 38 | F128: 0.8848 | G128: 1143.065372 | H128: 0 | I128: 0 | J128: 0 | K128: 1143.065372 | L128: 1.455396034e-07 | M128: 17240473.64 | N128: 13147147.02 | O128: 0 | P128: 30387620.66 | Q128: 9.672680074e-06 | R128: 0.01504646099 | S128: 1 | T128: 0 | U128: 2 | V128: 0 | W128: 0 | X128: 3 | Y128: 0 | Z128: 0 | AA128: 0 | AB128: 1 | AC128: 10 | AD128: -0.0568 | AE128: 1.02 | AF128: -0.2446 | AG128: 2.94 | AH128: -0.206 | AI128: 4.35 | AJ128: -0.153 | AK128: 30 | AL128: 31 | AM128: 35 | AN128: 38 | AO128: 0 | AP128: 0 | AQ128: 0 | AR128: 29 | AS128: 3 | AT128: 3 | AU128: 3 | AV128: 3 | AW128: 0 | AX128: 0 | AY128: 0 | AZ128: 3
A129: 3 | B129: 2218 | C129: 35 | D129: 42 | E129: 38 | F129: 0.8848 | G129: 1752.423884 | H129: 0 | I129: 0 | J129: 0 | K129: 1752.423884 | L129: 2.231255388e-07 | M129: 17240473.64 | N129: 13147147.02 | O129: 0 | P129: 30387620.66 | Q129: 9.672680074e-06 | R129: 0.02306760248 | S129: 1 | T129: 0 | U129: 2 | V129: 0 | W129: 0 | X129: 3 | Y129: 0 | Z129: 0 | AA129: 0 | AB129: 1 | AC129: 10 | AD129: -0.0568 | AE129: 1.02 | AF129: -0.2446 | AG129: 2.94 | AH129: -0.206 | AI129: 4.35 | AJ129: -0.153 | AK129: 31 | AL129: 32 | AM129: 36 | AN129: 39 | AO129: 38 | AP129: 0 | AQ129: 34 | AR129: 30 | AS129: 3 | AT129: 3 | AU129: 3 | AV129: 3 | AW129: 3 | AX129: 0 | AY129: 3 | AZ129: 3
A130: 3 | B130: 2217 | C130: 36 | D130: 42 | E130: 38 | F130: 0.8848 | G130: 6224.161944 | H130: 0 | I130: 0 | J130: 0 | K130: 6224.161944 | L130: 7.92484912e-07 | M130: 17240473.64 | N130: 13147147.02 | O130: 0 | P130: 30387620.66 | Q130: 9.672680074e-06 | R130: 0.08193023091 | S130: 1 | T130: 0 | U130: 2 | V130: 0 | W130: 0 | X130: 3 | Y130: 0 | Z130: 0 | AA130: 0 | AB130: 1 | AC130: 10 | AD130: -0.0568 | AE130: 1.02 | AF130: -0.2446 | AG130: 2.94 | AH130: -0.206 | AI130: 4.35 | AJ130: -0.153 | AK130: 32 | AL130: 33 | AM130: 37 | AN130: 40 | AO130: 39 | AP130: 38 | AQ130: 35 | AR130: 31 | AS130: 3 | AT130: 3 | AU130: 3 | AV130: 3 | AW130: 3 | AX130: 3 | AY130: 3 | AZ130: 3
A131: 3 | B131: 2216 | C131: 37 | D131: 43 | E131: 39 | F131: 0.9196 | G131: 4909.066788 | H131: 0 | I131: 0 | J131: 0 | K131: 4909.066788 | L131: 6.250417962e-07 | M131: 23389864.81 | N131: 10021461.53 | O131: 0 | P131: 33411326.34 | Q131: 1.063515548e-05 | R131: 0.05877128897 | S131: 1 | T131: 0 | U131: 2 | V131: 0 | W131: 0 | X131: 3 | Y131: 0 | Z131: 0 | AA131: 0 | AB131: 1 | AC131: 10 | AD131: -0.0568 | AE131: 1.02 | AF131: -0.2446 | AG131: 2.94 | AH131: -0.206 | AI131: 4.35 | AJ131: -0.153 | AK131: 33 | AL131: 0 | AM131: 0 | AN131: 41 | AO131: 40 | AP131: 39 | AQ131: 36 | AR131: 32 | AS131: 3 | AT131: 0 | AU131: 0 | AV131: 3 | AW131: 3 | AX131: 3 | AY131: 3 | AZ131: 3
A132: 3 | B132: 2213 | C132: 38 | D132: 42 | E132: 38 | F132: 0.8848 | G132: 2228.0966 | H132: 0 | I132: 0 | J132: 0 | K132: 2228.0966 | L132: 2.836900701e-07 | M132: 17240473.64 | N132: 13147147.02 | O132: 0 | P132: 30387620.66 | Q132: 9.672680074e-06 | R132: 0.02932900374 | S132: 1 | T132: 0 | U132: 2 | V132: 0 | W132: 0 | X132: 3 | Y132: 0 | Z132: 0 | AA132: 0 | AB132: 1 | AC132: 10 | AD132: -0.0568 | AE132: 1.02 | AF132: -0.2446 | AG132: 2.94 | AH132: -0.206 | AI132: 4.35 | AJ132: -0.153 | AK132: 35 | AL132: 36 | AM132: 39 | AN132: 42 | AO132: 0 | AP132: 0 | AQ132: 0 | AR132: 34 | AS132: 3 | AT132: 3 | AU132: 3 | AV132: 3 | AW132: 0 | AX132: 0 | AY132: 0 | AZ132: 3
A133: 3 | B133: 2212 | C133: 39 | D133: 42 | E133: 38 | F133: 0.8848 | G133: 2873.726452 | H133: 0 | I133: 0 | J133: 0 | K133: 2873.726452 | L133: 3.658942159e-07 | M133: 17240473.64 | N133: 13147147.02 | O133: 0 | P133: 30387620.66 | Q133: 9.672680074e-06 | R133: 0.03782759413 | S133: =IF(R133<=2,1,0) -> 1 | T133: =IF(R133>2,1,0) -> 0 | U133: =IF(R133<=6,2,0) -> 2 | V133: 0 | W133: =IF(R133>6,1,0) -> 0 | X133: =IF(R133<=10,3,0) -> 3 | Y133: 0 | Z133: =IF(R133>10,4,0) -> 0 | AA133: 0 | AB133: 1 | AC133: 10 | AD133: -0.0568 | AE133: 1.02 | AF133: -0.2446 | AG133: 2.94 | AH133: -0.206 | AI133: 4.35 | AJ133: -0.153 | AK133: 36 | AL133: 37 | AM133: 40 | AN133: 43 | AO133: 42 | AP133: 0 | AQ133: 38 | AR133: 35 | AS133: 3 | AT133: 3 | AU133: 3 | AV133: 3 | AW133: 3 | AX133: 0 | AY133: 3 | AZ133: 3
A134: 3 | B134: 2211 | C134: 40 | D134: 43 | E134: 39 | F134: 0.9196 | G134: 1909.945132 | H134: 0 | I134: 0 | J134: 0 | K134: 1909.945132 | L134: 2.43181767e-07 | M134: 23389864.81 | N134: 10021461.53 | O134: 0 | P134: =SUM(M134:O134) -> 33411326.34 | Q134: =P134/(PI()*1000000^2) -> 1.063515548e-05 | R134: 0.02286584031 | S134: 1 | T134: 0 | U134: 2 | V134: =T134*U134 -> 0 | W134: 0 | X134: 3 | Y134: =W134*X134 -> 0 | Z134: 0 | AA134: =IF(Z134=4,AB134,0) -> 0 | AB134: 1 | AC134: 10 | AD134: -0.0568 | AE134: 1.02 | AF134: -0.2446 | AG134: 2.94 | AH134: -0.206 | AI134: 4.35 | AJ134: -0.153 | AK134: 37 | AL134: 0 | AM134: 41 | AN134: 44 | AO134: 43 | AP134: 42 | AQ134: 39 | AR134: 36 | AS134: 3 | AT134: 0 | AU134: 3 | AV134: 3 | AW134: 3 | AX134: 3 | AY134: 3 | AZ134: 3
A135: 3 | B135: 2210 | C135: 41 | D135: 43 | E135: 39 | F135: 0.9196 | G135: 15917.93664 | H135: 0 | I135: 0 | J135: 0 | K135: 15917.93664 | L135: 2.02673464e-06 | M135: 23389864.81 | N135: 10021461.53 | O135: 0 | P135: 33411326.34 | Q135: 1.063515548e-05 | R135: 0.1905693474 | S135: 1 | T135: 0 | U135: 2 | V135: 0 | W135: 0 | X135: 3 | Y135: 0 | Z135: 0 | AA135: 0 | AB135: 1 | AC135: 10 | AD135: -0.0568 | AE135: 1.02 | AF135: -0.2446 | AG135: 2.94 | AH135: -0.206 | AI135: 4.35 | AJ135: -0.153 | AK135: 0 | AL135: 0 | AM135: 0 | AN135: 0 | AO135: 44 | AP135: 43 | AQ135: 40 | AR135: 37 | AS135: 0 | AT135: 0 | AU135: 0 | AV135: 0 | AW135: 3 | AX135: 3 | AY135: 3 | AZ135: 3
A136: 3 | B136: 2208 | C136: 42 | D136: 42 | E136: 38 | F136: 0.8848 | G136: 3312.091504 | H136: 0 | I136: 0 | J136: 0 | K136: 3312.091504 | L136: 4.217085879e-07 | M136: 17240473.64 | N136: 13147147.02 | O136: 0 | P136: 30387620.66 | Q136: 9.672680074e-06 | R136: 0.04359790509 | S136: 1 | T136: 0 | U136: 2 | V136: 0 | W136: 0 | X136: 3 | Y136: 0 | Z136: 0 | AA136: 0 | AB136: 1 | AC136: 10 | AD136: -0.0568 | AE136: 1.02 | AF136: -0.2446 | AG136: 2.94 | AH136: -0.206 | AI136: 4.35 | AJ136: -0.153 | AK136: 39 | AL136: 40 | AM136: 43 | AN136: 45 | AO136: 0 | AP136: 0 | AQ136: 0 | AR136: 38 | AS136: 3 | AT136: 3 | AU136: 3 | AV136: 3 | AW136: 0 | AX136: 0 | AY136: 0 | AZ136: 3
A137: 3 | B137: 2207 | C137: 43 | D137: 43 | E137: 39 | F137: 0.9196 | G137: 3127.625832 | H137: 0 | I137: 0 | J137: 0 | K137: 3127.625832 | L137: 3.98221689e-07 | M137: 23389864.81 | N137: 10021461.53 | O137: 0 | P137: 33411326.34 | Q137: 1.063515548e-05 | R137: 0.03744389912 | S137: 1 | T137: 0 | U137: 2 | V137: 0 | W137: 0 | X137: 3 | Y137: 0 | Z137: 0 | AA137: 0 | AB137: 1 | AC137: 10 | AD137: -0.0568 | AE137: 1.02 | AF137: -0.2446 | AG137: 2.94 | AH137: -0.206 | AI137: 4.35 | AJ137: -0.153 | AK137: 40 | AL137: 41 | AM137: 44 | AN137: 46 | AO137: 45 | AP137: 0 | AQ137: 42 | AR137: 39 | AS137: 3 | AT137: 3 | AU137: 3 | AV137: 3 | AW137: 3 | AX137: 0 | AY137: 3 | AZ137: 3
A138: 3 | B138: 2206 | C138: 44 | D138: 43 | E138: 39 | F138: 0.9196 | G138: 16813.32058 | H138: 0 | I138: 0 | J138: 0 | K138: 16813.32058 | L138: 2.140738464e-06 | M138: 23389864.81 | N138: 10021461.53 | O138: 0 | P138: 33411326.34 | Q138: 1.063515548e-05 | R138: 0.2012888732 | S138: 1 | T138: 0 | U138: 2 | V138: 0 | W138: 0 | X138: 3 | Y138: 0 | Z138: 0 | AA138: 0 | AB138: 1 | AC138: 10 | AD138: -0.0568 | AE138: 1.02 | AF138: -0.2446 | AG138: 2.94 | AH138: -0.206 | AI138: 4.35 | AJ138: -0.153 | AK138: 41 | AL138: 0 | AM138: 0 | AN138: 0 | AO138: 46 | AP138: 45 | AQ138: 43 | AR138: 40 | AS138: 3 | AT138: 0 | AU138: 0 | AV138: 0 | AW138: 3 | AX138: 3 | AY138: 3 | AZ138: 3
A139: 3 | B139: 2149 | C139: 45 | D139: 51 | E139: 46 | F139: 0.9272 | G139: 4063.426404 | H139: 0 | I139: 0 | J139: 0 | K139: 4063.426404 | L139: =K139/(PI()*50000^2) -> 5.173715185e-07 | M139: 28838356.89 | N139: 7870055.844 | O139: 0 | P139: 36708412.73 | Q139: 1.168465068e-05 | R139: 0.04427787639 | S139: 1 | T139: 0 | U139: 2 | V139: 0 | W139: 0 | X139: 3 | Y139: 0 | Z139: 0 | AA139: 0 | AB139: 1 | AC139: 10 | AD139: -0.0568 | AE139: 1.02 | AF139: -0.2446 | AG139: 2.94 | AH139: -0.206 | AI139: 4.35 | AJ139: -0.153 | AK139: 43 | AL139: 44 | AM139: 46 | AN139: 48 | AO139: 47 | AP139: 0 | AQ139: 0 | AR139: 42 | AS139: 3 | AT139: 3 | AU139: 3 | AV139: 3 | AW139: 3 | AX139: 0 | AY139: 0 | AZ139: 3
A140: 3 | B140: 2148 | C140: 46 | D140: 51 | E140: 46 | F140: 0.9272 | G140: 17372.93554 | H140: 0 | I140: 0 | J140: 0 | K140: =SUM(G140:J140) -> 17372.93554 | L140: 2.211990853e-06 | M140: 28838356.89 | N140: 7870055.844 | O140: 0 | P140: 36708412.73 | Q140: 1.168465068e-05 | R140: 0.1893074011 | S140: 1 | T140: 0 | U140: 2 | V140: 0 | W140: 0 | X140: 3 | Y140: 0 | Z140: 0 | AA140: 0 | AB140: 1 | AC140: 10 | AD140: -0.0568 | AE140: 1.02 | AF140: -0.2446 | AG140: 2.94 | AH140: -0.206 | AI140: 4.35 | AJ140: -0.153 | AK140: 44 | AL140: 0 | AM140: 0 | AN140: 0 | AO140: 48 | AP140: 47 | AQ140: 45 | AR140: 43 | AS140: 3 | AT140: 0 | AU140: 0 | AV140: 0 | AW140: 3 | AX140: 3 | AY140: 3 | AZ140: 3
A141: 3 | B141: 2145 | C141: 47 | D141: 51 | E141: 46 | F141: 0.9272 | G141: 14219.4016 | H141: 0 | I141: 0 | J141: 0 | K141: 14219.4016 | L141: 1.810470442e-06 | M141: 28838356.89 | N141: 7870055.844 | O141: 0 | P141: 36708412.73 | Q141: 1.168465068e-05 | R141: 0.1549443361 | S141: 1 | T141: 0 | U141: 2 | V141: 0 | W141: 0 | X141: 3 | Y141: 0 | Z141: 0 | AA141: 0 | AB141: 1 | AC141: 10 | AD141: -0.0568 | AE141: 1.02 | AF141: -0.2446 | AG141: 2.94 | AH141: -0.206 | AI141: 4.35 | AJ141: -0.153 | AK141: 45 | AL141: 46 | AM141: 48 | AN141: 50 | AO141: 49 | AP141: 0 | AQ141: 0 | AR141: 0 | AS141: 3 | AT141: 3 | AU141: 3 | AV141: 3 | AW141: 3 | AX141: 0 | AY141: 0 | AZ141: 0
A142: 3 | B142: 2144 | C142: 48 | D142: 51 | E142: 46 | F142: 0.9272 | G142: 30766.38691 | H142: 0 | I142: 0 | J142: 0 | K142: 30766.38691 | L142: 3.917298046e-06 | M142: 28838356.89 | N142: 7870055.844 | O142: 0 | P142: 36708412.73 | Q142: 1.168465068e-05 | R142: 0.335251618 | S142: 1 | T142: 0 | U142: 2 | V142: 0 | W142: 0 | X142: 3 | Y142: 0 | Z142: 0 | AA142: 0 | AB142: 1 | AC142: 10 | AD142: -0.0568 | AE142: 1.02 | AF142: -0.2446 | AG142: 2.94 | AH142: -0.206 | AI142: 4.35 | AJ142: -0.153 | AK142: 46 | AL142: 0 | AM142: 0 | AN142: 51 | AO142: 50 | AP142: 49 | AQ142: 47 | AR142: 45 | AS142: 3 | AT142: 0 | AU142: 0 | AV142: 3 | AW142: 3 | AX142: 3 | AY142: 3 | AZ142: 3
A143: 3 | B143: 1959 | C143: 49 | D143: 51 | E143: 46 | F143: 0.9272 | G143: 62146.27763 | H143: 0 | I143: 0 | J143: 0 | K143: 62146.27763 | L143: 7.912709824e-06 | M143: 28838356.89 | N143: 7870055.844 | O143: 0 | P143: 36708412.73 | Q143: 1.168465068e-05 | R143: 0.6771883936 | S143: 1 | T143: 0 | U143: 2 | V143: 0 | W143: 0 | X143: 3 | Y143: 0 | Z143: 0 | AA143: 0 | AB143: 1 | AC143: 10 | AD143: -0.0568 | AE143: 1.02 | AF143: -0.2446 | AG143: 2.94 | AH143: -0.206 | AI143: 4.35 | AJ143: -0.153 | AK143: 47 | AL143: 48 | AM143: 50 | AN143: 54 | AO143: 53 | AP143: 52 | AQ143: 0 | AR143: 0 | AS143: 3 | AT143: 3 | AU143: 3 | AV143: 3 | AW143: 3 | AX143: 3 | AY143: 0 | AZ143: 0
A144: 3 | B144: 1958 | C144: 50 | D144: 51 | E144: 46 | F144: 0.9272 | G144: 60610.44546 | H144: 0 | I144: 0 | J144: 0 | K144: 60610.44546 | L144: 7.717161599e-06 | M144: 28838356.89 | N144: 7870055.844 | O144: 0 | P144: 36708412.73 | Q144: 1.168465068e-05 | R144: 0.6604529147 | S144: 1 | T144: 0 | U144: 2 | V144: 0 | W144: 0 | X144: 3 | Y144: 0 | Z144: 0 | AA144: 0 | AB144: 1 | AC144: 10 | AD144: -0.0568 | AE144: 1.02 | AF144: -0.2446 | AG144: 2.94 | AH144: -0.206 | AI144: 4.35 | AJ144: -0.153 | AK144: 48 | AL144: 0 | AM144: 51 | AN144: 55 | AO144: 54 | AP144: 53 | AQ144: 49 | AR144: 47 | AS144: 3 | AT144: 0 | AU144: 3 | AV144: 3 | AW144: 3 | AX144: 3 | AY144: 3 | AZ144: 3
A145: 3 | B145: 1957 | C145: 51 | D145: 51 | E145: 46 | F145: 0.9272 | G145: 4039.590952 | H145: 0 | I145: 0 | J145: 0 | K145: 4039.590952 | L145: 5.143366945e-07 | M145: 28838356.89 | N145: 7870055.844 | O145: 0 | P145: 36708412.73 | Q145: 1.168465068e-05 | R145: 0.04401814899 | S145: 1 | T145: 0 | U145: 2 | V145: 0 | W145: 0 | X145: 3 | Y145: 0 | Z145: 0 | AA145: 0 | AB145: 1 | AC145: 10 | AD145: -0.0568 | AE145: 1.02 | AF145: -0.2446 | AG145: 2.94 | AH145: -0.206 | AI145: 4.35 | AJ145: -0.153 | AK145: 0 | AL145: 0 | AM145: 0 | AN145: 0 | AO145: 55 | AP145: 54 | AQ145: 50 | AR145: 48 | AS145: 0 | AT145: 0 | AU145: 0 | AV145: 0 | AW145: 3 | AX145: 3 | AY145: 3 | AZ145: 3
A146: 3 | B146: 1956 | C146: 52 | D146: 50 | E146: 46 | F146: 0.8515 | G146: 22096.50033 | H146: 0 | I146: 0 | J146: 0 | K146: 22096.50033 | L146: 2.813413802e-06 | M146: 28838356.89 | N146: 7870055.844 | O146: 0 | P146: 36708412.73 | Q146: 1.168465068e-05 | R146: 0.2407785974 | S146: 1 | T146: 0 | U146: 2 | V146: 0 | W146: 0 | X146: 3 | Y146: 0 | Z146: 0 | AA146: 0 | AB146: 1 | AC146: 10 | AD146: -0.0568 | AE146: 1.02 | AF146: -0.2446 | AG146: 2.94 | AH146: -0.206 | AI146: 4.35 | AJ146: -0.153 | AK146: 0 | AL146: 45 | AM146: 53 | AN146: 57 | AO146: 56 | AP146: 0 | AQ146: 0 | AR146: 0 | AS146: 0 | AT146: 3 | AU146: 3 | AV146: 3 | AW146: 3 | AX146: 0 | AY146: 0 | AZ146: 0
A147: 3 | B147: 1955 | C147: 53 | D147: 51 | E147: 46 | F147: 0.9272 | G147: 68867.8751 | H147: 0 | I147: 0 | J147: 0 | K147: 68867.8751 | L147: 8.768530193e-06 | M147: 28838356.89 | N147: 7870055.844 | O147: 0 | P147: 36708412.73 | Q147: 1.168465068e-05 | R147: 0.750431522 | S147: 1 | T147: 0 | U147: 2 | V147: 0 | W147: 0 | X147: 3 | Y147: 0 | Z147: 0 | AA147: 0 | AB147: 1 | AC147: 10 | AD147: -0.0568 | AE147: 1.02 | AF147: -0.2446 | AG147: 2.94 | AH147: -0.206 | AI147: 4.35 | AJ147: -0.153 | AK147: 49 | AL147: 50 | AM147: 54 | AN147: 58 | AO147: 57 | AP147: 56 | AQ147: 52 | AR147: 0 | AS147: 3 | AT147: 3 | AU147: 3 | AV147: 3 | AW147: 3 | AX147: 3 | AY147: 3 | AZ147: 0
A148: 3 | B148: 1954 | C148: 54 | D148: 51 | E148: 46 | F148: 0.9272 | G148: 60715.11419 | H148: 0 | I148: 0 | J148: 0 | K148: 60715.11419 | L148: 7.730488435e-06 | M148: 28838356.89 | N148: 7870055.844 | O148: 0 | P148: 36708412.73 | Q148: 1.168465068e-05 | R148: 0.6615934568 | S148: 1 | T148: 0 | U148: 2 | V148: 0 | W148: 0 | X148: 3 | Y148: 0 | Z148: 0 | AA148: 0 | AB148: 1 | AC148: 10 | AD148: -0.0568 | AE148: 1.02 | AF148: -0.2446 | AG148: 2.94 | AH148: -0.206 | AI148: 4.35 | AJ148: -0.153 | AK148: 50 | AL148: 51 | AM148: 55 | AN148: 59 | AO148: 58 | AP148: 57 | AQ148: 53 | AR148: 49 | AS148: 3 | AT148: 3 | AU148: 3 | AV148: 3 | AW148: 3 | AX148: 3 | AY148: 3 | AZ148: 3
A149: 3 | B149: 1953 | C149: 55 | D149: 51 | E149: 46 | F149: 0.9272 | G149: 4398.159056 | H149: 0 | I149: 0 | J149: 0 | K149: 4398.159056 | L149: 5.599910034e-07 | M149: 28838356.89 | N149: 7870055.844 | O149: 0 | P149: 36708412.73 | Q149: 1.168465068e-05 | R149: 0.04792535257 | S149: 1 | T149: 0 | U149: 2 | V149: 0 | W149: 0 | X149: 3 | Y149: 0 | Z149: 0 | AA149: 0 | AB149: 1 | AC149: 10 | AD149: -0.0568 | AE149: 1.02 | AF149: -0.2446 | AG149: 2.94 | AH149: -0.206 | AI149: 4.35 | AJ149: -0.153 | AK149: 51 | AL149: 0 | AM149: 0 | AN149: 60 | AO149: 59 | AP149: 58 | AQ149: 54 | AR149: 50 | AS149: 3 | AT149: 0 | AU149: 0 | AV149: 3 | AW149: 3 | AX149: 3 | AY149: 3 | AZ149: 3
A150: 3 | B150: 1952 | C150: 56 | D150: 59 | E150: 54 | F150: 0.8515 | G150: 10236.80847 | H150: 0 | I150: 0 | J150: 0 | K150: 10236.80847 | L150: 1.303390936e-06 | M150: 28223051.95 | N150: 6592333.879 | O150: 0 | P150: 34815385.83 | Q150: 1.10820815e-05 | R150: 0.1176124662 | S150: 1 | T150: 0 | U150: 2 | V150: 0 | W150: 0 | X150: 3 | Y150: 0 | Z150: 0 | AA150: 0 | AB150: 1 | AC150: 10 | AD150: -0.0568 | AE150: 1.02 | AF150: -0.2446 | AG150: 2.94 | AH150: -0.206 | AI150: 4.35 | AJ150: -0.153 | AK150: 52 | AL150: 53 | AM150: 57 | AN150: 61 | AO150: 0 | AP150: 0 | AQ150: 0 | AR150: 0 | AS150: 3 | AT150: 3 | AU150: 3 | AV150: 3 | AW150: 0 | AX150: 0 | AY150: 0 | AZ150: 0
A151: 3 | B151: 1951 | C151: 57 | D151: 60 | E151: 54 | F151: 0.8962 | G151: 66297.79158 | H151: 0 | I151: 0 | J151: 0 | K151: 66297.79158 | L151: 8.441296996e-06 | M151: 28223051.95 | N151: 6592333.879 | O151: 0 | P151: 34815385.83 | Q151: 1.10820815e-05 | R151: 0.7617068143 | S151: 1 | T151: 0 | U151: 2 | V151: 0 | W151: 0 | X151: 3 | Y151: 0 | Z151: 0 | AA151: 0 | AB151: 1 | AC151: 10 | AD151: -0.0568 | AE151: 1.02 | AF151: -0.2446 | AG151: 2.94 | AH151: -0.206 | AI151: 4.35 | AJ151: -0.153 | AK151: 53 | AL151: 54 | AM151: 58 | AN151: 62 | AO151: 61 | AP151: 0 | AQ151: 56 | AR151: 52 | AS151: 3 | AT151: 3 | AU151: 3 | AV151: 3 | AW151: 3 | AX151: 0 | AY151: 3 | AZ151: 3
A152: 3 | B152: 1950 | C152: 58 | D152: 60 | E152: 54 | F152: 0.8962 | G152: 49191.19131 | H152: 0 | I152: 0 | J152: 0 | K152: 49191.19131 | L152: 6.263217003e-06 | M152: 28223051.95 | N152: 6592333.879 | O152: 0 | P152: 34815385.83 | Q152: 1.10820815e-05 | R152: 0.5651661199 | S152: 1 | T152: 0 | U152: 2 | V152: 0 | W152: 0 | X152: 3 | Y152: 0 | Z152: 0 | AA152: 0 | AB152: 1 | AC152: 10 | AD152: -0.0568 | AE152: 1.02 | AF152: -0.2446 | AG152: 2.94 | AH152: -0.206 | AI152: 4.35 | AJ152: -0.153 | AK152: 54 | AL152: 55 | AM152: 59 | AN152: 63 | AO152: 62 | AP152: 61 | AQ152: 57 | AR152: 53 | AS152: 3 | AT152: 3 | AU152: 3 | AV152: 3 | AW152: 3 | AX152: 3 | AY152: 3 | AZ152: 3
A153: 3 | B153: 1949 | C153: 59 | D153: 60 | E153: 54 | F153: 0.8962 | G153: 4197.1122 | H153: 0 | I153: 0 | J153: 0 | K153: 4197.1122 | L153: 5.343929227e-07 | M153: 28223051.95 | N153: 6592333.879 | O153: 0 | P153: 34815385.83 | Q153: 1.10820815e-05 | R153: 0.04822134927 | S153: 1 | T153: 0 | U153: 2 | V153: 0 | W153: 0 | X153: 3 | Y153: 0 | Z153: 0 | AA153: 0 | AB153: 1 | AC153: 10 | AD153: -0.0568 | AE153: 1.02 | AF153: -0.2446 | AG153: 2.94 | AH153: -0.206 | AI153: 4.35 | AJ153: -0.153 | AK153: 55 | AL153: 0 | AM153: 60 | AN153: 64 | AO153: 63 | AP153: 62 | AQ153: 58 | AR153: 54 | AS153: 3 | AT153: 0 | AU153: 3 | AV153: 3 | AW153: 3 | AX153: 3 | AY153: 3 | AZ153: 3
A154: 3 | B154: 1920 | C154: 60 | D154: 60 | E154: 54 | F154: 0.8962 | G154: 1773.150364 | H154: 0 | I154: 0 | J154: 0 | K154: 1773.150364 | L154: 2.257645162e-07 | M154: 28223051.95 | N154: 6592333.879 | O154: 0 | P154: 34815385.83 | Q154: 1.10820815e-05 | R154: 0.02037203175 | S154: 1 | T154: 0 | U154: 2 | V154: 0 | W154: 0 | X154: 3 | Y154: 0 | Z154: 0 | AA154: 0 | AB154: 1 | AC154: 10 | AD154: -0.0568 | AE154: 1.02 | AF154: -0.2446 | AG154: 2.94 | AH154: -0.206 | AI154: 4.35 | AJ154: -0.153 | AK154: 0 | AL154: 0 | AM154: 0 | AN154: 0 | AO154: 64 | AP154: 63 | AQ154: 59 | AR154: 55 | AS154: 0 | AT154: 0 | AU154: 0 | AV154: 0 | AW154: 3 | AX154: 3 | AY154: 3 | AZ154: 3
A155: 3 | B155: 1947 | C155: 61 | D155: 60 | E155: 54 | F155: 0.8962 | G155: 51341.56361 | H155: 0 | I155: 0 | J155: 0 | K155: 51341.56361 | L155: 6.537010907e-06 | M155: 28223051.95 | N155: 6592333.879 | O155: 0 | P155: 34815385.83 | Q155: 1.10820815e-05 | R155: 0.5898721199 | S155: 1 | T155: 0 | U155: 2 | V155: 0 | W155: 0 | X155: 3 | Y155: 0 | Z155: 0 | AA155: 0 | AB155: 1 | AC155: 10 | AD155: -0.0568 | AE155: 1.02 | AF155: -0.2446 | AG155: 2.94 | AH155: -0.206 | AI155: 4.35 | AJ155: -0.153 | AK155: 57 | AL155: 58 | AM155: 62 | AN155: 65 | AO155: 0 | AP155: 0 | AQ155: 0 | AR155: 56 | AS155: 3 | AT155: 3 | AU155: 3 | AV155: 3 | AW155: 0 | AX155: 0 | AY155: 0 | AZ155: 3
A156: 3 | B156: 1946 | C156: 62 | D156: 60 | E156: 54 | F156: 0.8962 | G156: 46392.08018 | H156: 0 | I156: 0 | J156: 0 | K156: 46392.08018 | L156: 5.906823105e-06 | M156: 28223051.95 | N156: 6592333.879 | O156: 0 | P156: 34815385.83 | Q156: 1.10820815e-05 | R156: 0.5330066472 | S156: 1 | T156: 0 | U156: 2 | V156: 0 | W156: 0 | X156: 3 | Y156: 0 | Z156: 0 | AA156: 0 | AB156: 1 | AC156: 10 | AD156: -0.0568 | AE156: 1.02 | AF156: -0.2446 | AG156: 2.94 | AH156: -0.206 | AI156: 4.35 | AJ156: -0.153 | AK156: 58 | AL156: 59 | AM156: 63 | AN156: 66 | AO156: 65 | AP156: 0 | AQ156: 61 | AR156: 57 | AS156: 3 | AT156: 3 | AU156: 3 | AV156: 3 | AW156: 3 | AX156: 0 | AY156: 3 | AZ156: 3
A157: 3 | B157: 1945 | C157: 63 | D157: 60 | E157: 54 | F157: 0.8962 | G157: 2982.540472 | H157: 0 | I157: 0 | J157: 0 | K157: 2982.540472 | L157: 3.797488473e-07 | M157: 28223051.95 | N157: 6592333.879 | O157: 0 | P157: 34815385.83 | Q157: 1.10820815e-05 | R157: 0.03426692425 | S157: 1 | T157: 0 | U157: 2 | V157: 0 | W157: 0 | X157: 3 | Y157: 0 | Z157: 0 | AA157: 0 | AB157: 1 | AC157: 10 | AD157: -0.0568 | AE157: 1.02 | AF157: -0.2446 | AG157: 2.94 | AH157: -0.206 | AI157: 4.35 | AJ157: -0.153 | AK157: 59 | AL157: 60 | AM157: 64 | AN157: 67 | AO157: 66 | AP157: 65 | AQ157: 62 | AR157: 58 | AS157: 3 | AT157: 3 | AU157: 3 | AV157: 3 | AW157: 3 | AX157: 3 | AY157: 3 | AZ157: 3
A158: 3 | B158: 1916 | C158: 64 | D158: 60 | E158: 54 | F158: 0.8962 | G158: 2541.066448 | H158: 0 | I158: 0 | J158: 0 | K158: 2541.066448 | L158: 3.235386287e-07 | M158: 28223051.95 | N158: 6592333.879 | O158: 0 | P158: 34815385.83 | Q158: 1.10820815e-05 | R158: 0.02919475269 | S158: 1 | T158: 0 | U158: 2 | V158: 0 | W158: 0 | X158: 3 | Y158: 0 | Z158: 0 | AA158: 0 | AB158: 1 | AC158: 10 | AD158: -0.0568 | AE158: 1.02 | AF158: -0.2446 | AG158: 2.94 | AH158: -0.206 | AI158: 4.35 | AJ158: -0.153 | AK158: 60 | AL158: 0 | AM158: 0 | AN158: 0 | AO158: 67 | AP158: 66 | AQ158: 63 | AR158: 59 | AS158: 3 | AT158: 0 | AU158: 0 | AV158: 0 | AW158: 3 | AX158: 3 | AY158: 3 | AZ158: 3
A159: 3 | B159: 1943 | C159: 65 | D159: 60 | E159: 54 | F159: 0.8962 | G159: 1716.152544 | H159: 0 | I159: 0 | J159: 0 | K159: 1716.152544 | L159: 2.185073284e-07 | M159: 28223051.95 | N159: 6592333.879 | O159: 0 | P159: 34815385.83 | Q159: 1.10820815e-05 | R159: =L159/Q159 -> 0.01971717392 | S159: 1 | T159: 0 | U159: 2 | V159: 0 | W159: 0 | X159: 3 | Y159: 0 | Z159: 0 | AA159: 0 | AB159: 1 | AC159: 10 | AD159: -0.0568 | AE159: 1.02 | AF159: -0.2446 | AG159: 2.94 | AH159: -0.206 | AI159: 4.35 | AJ159: -0.153 | AK159: 62 | AL159: 63 | AM159: 66 | AN159: 0 | AO159: 0 | AP159: 0 | AQ159: 0 | AR159: 61 | AS159: 3 | AT159: 3 | AU159: 3 | AV159: 0 | AW159: 0 | AX159: 0 | AY159: 0 | AZ159: 3
A160: 3 | B160: 1942 | C160: 66 | D160: 60 | E160: 54 | F160: 0.8962 | G160: 2507.90408 | H160: 0 | I160: 0 | J160: 0 | K160: 2507.90408 | L160: 3.193162649e-07 | M160: 28223051.95 | N160: 6592333.879 | O160: 0 | P160: 34815385.83 | Q160: 1.10820815e-05 | R160: 0.0288137445 | S160: 1 | T160: 0 | U160: 2 | V160: 0 | W160: 0 | X160: 3 | Y160: 0 | Z160: 0 | AA160: 0 | AB160: 1 | AC160: 10 | AD160: -0.0568 | AE160: 1.02 | AF160: -0.2446 | AG160: 2.94 | AH160: -0.206 | AI160: 4.35 | AJ160: -0.153 | AK160: 63 | AL160: 64 | AM160: 67 | AN160: 68 | AO160: 0 | AP160: 0 | AQ160: 65 | AR160: 62 | AS160: 3 | AT160: 3 | AU160: 3 | AV160: 3 | AW160: 0 | AX160: 0 | AY160: 3 | AZ160: 3
A161: 3 | B161: 1912 | C161: 67 | D161: 60 | E161: 54 | F161: 0.8962 | G161: 2415.671244 | H161: 0 | I161: 0 | J161: 0 | K161: 2415.671244 | L161: 3.075728155e-07 | M161: 28223051.95 | N161: 6592333.879 | O161: 0 | P161: 34815385.83 | Q161: 1.10820815e-05 | R161: 0.02775406547 | S161: 1 | T161: 0 | U161: 2 | V161: 0 | W161: 0 | X161: 3 | Y161: 0 | Z161: 0 | AA161: 0 | AB161: 1 | AC161: 10 | AD161: -0.0568 | AE161: 1.02 | AF161: -0.2446 | AG161: 2.94 | AH161: -0.206 | AI161: 4.35 | AJ161: -0.153 | AK161: 64 | AL161: 0 | AM161: 0 | AN161: 69 | AO161: 68 | AP161: 0 | AQ161: 66 | AR161: 63 | AS161: 3 | AT161: 0 | AU161: 0 | AV161: 3 | AW161: 3 | AX161: 0 | AY161: 3 | AZ161: 3
A162: 3 | B162: 1908 | C162: 68 | D162: 60 | E162: 54 | F162: 0.8962 | G162: 9644.031144 | H162: 0 | I162: 0 | J162: 0 | K162: 9644.031144 | L162: 1.227916182e-06 | M162: 28223051.95 | N162: 6592333.879 | O162: 0 | P162: 34815385.83 | Q162: 1.10820815e-05 | R162: 0.1108019448 | S162: 1 | T162: 0 | U162: 2 | V162: 0 | W162: 0 | X162: 3 | Y162: 0 | Z162: 0 | AA162: 0 | AB162: 1 | AC162: 10 | AD162: -0.0568 | AE162: 1.02 | AF162: -0.2446 | AG162: 2.94 | AH162: -0.206 | AI162: 4.35 | AJ162: -0.153 | AK162: 67 | AL162: 0 | AM162: 69 | AN162: 71 | AO162: 0 | AP162: 0 | AQ162: 0 | AR162: 66 | AS162: 3 | AT162: 0 | AU162: 3 | AV162: 3 | AW162: 0 | AX162: 0 | AY162: 0 | AZ162: 3
A163: 3 | B163: 1907 | C163: 69 | D163: 60 | E163: 54 | F163: 0.8962 | G163: 237647.747 | H163: 0 | I163: 0 | J163: 0 | K163: 237647.747 | L163: 3.025825092e-05 | M163: 28223051.95 | N163: 6592333.879 | O163: 0 | P163: 34815385.83 | Q163: 1.10820815e-05 | R163: 2.730376141 | S163: 0 | T163: 1 | U163: 2 | V163: 2 | W163: 0 | X163: 3 | Y163: 0 | Z163: 0 | AA163: 0 | AB163: 2 | AC163: 10 | AD163: -0.1034 | AE163: 1.035 | AF163: -0.4288 | AG163: 1.52 | AH163: -0.076 | AI163: 4.35 | AJ163: -0.153 | AK163: 0 | AL163: 0 | AM163: 70 | AN163: 72 | AO163: 71 | AP163: 0 | AQ163: 68 | AR163: 67 | AS163: 0 | AT163: 0 | AU163: 3 | AV163: 3 | AW163: 3 | AX163: 0 | AY163: 3 | AZ163: 3
A164: 3 | B164: 1906 | C164: 70 | D164: 60 | E164: 54 | F164: 0.8962 | G164: 242986.8883 | H164: 0 | I164: 0 | J164: 0 | K164: 242986.8883 | L164: 3.09380515e-05 | M164: 28223051.95 | N164: 6592333.879 | O164: 0 | P164: 34815385.83 | Q164: 1.10820815e-05 | R164: 2.79171846 | S164: 0 | T164: 1 | U164: 2 | V164: 2 | W164: 0 | X164: 3 | Y164: 0 | Z164: 0 | AA164: 0 | AB164: 2 | AC164: 10 | AD164: -0.1034 | AE164: 1.035 | AF164: -0.4288 | AG164: 1.52 | AH164: -0.076 | AI164: 4.35 | AJ164: -0.153 | AK164: 0 | AL164: 0 | AM164: 0 | AN164: 73 | AO164: 72 | AP164: 71 | AQ164: 69 | AR164: 0 | AS164: 0 | AT164: 0 | AU164: 0 | AV164: 3 | AW164: 3 | AX164: 3 | AY164: 3 | AZ164: 0
A165: 3 | B165: 2271 | C165: 71 | D165: 67 | E165: 62 | F165: 0.9343 | G165: 241282.1353 | H165: 0 | I165: 0 | J165: 0 | K165: 241282.1353 | L165: 3.072099561e-05 | M165: 31029345.84 | N165: 1361315.627 | O165: 0 | P165: 32390661.46 | Q165: 1.031026776e-05 | R165: 2.979650608 | S165: 0 | T165: 1 | U165: 2 | V165: 2 | W165: 0 | X165: 3 | Y165: 0 | Z165: 0 | AA165: 0 | AB165: 2 | AC165: 10 | AD165: -0.1034 | AE165: 1.035 | AF165: -0.4288 | AG165: 1.52 | AH165: -0.076 | AI165: 4.35 | AJ165: -0.153 | AK165: 69 | AL165: 70 | AM165: 72 | AN165: 74 | AO165: 0 | AP165: 0 | AQ165: 0 | AR165: 68 | AS165: 3 | AT165: 3 | AU165: 3 | AV165: 3 | AW165: 0 | AX165: 0 | AY165: 0 | AZ165: 3
A166: 3 | B166: 2270 | C166: 72 | D166: 67 | E166: 62 | F166: 0.9343 | G166: 252259.9154 | H166: 0 | I166: 0 | J166: 0 | K166: 252259.9154 | L166: 3.211872999e-05 | M166: 31029345.84 | N166: 1361315.627 | O166: 0 | P166: 32390661.46 | Q166: 1.031026776e-05 | R166: 3.115217832 | S166: 0 | T166: 1 | U166: 2 | V166: 2 | W166: 0 | X166: 3 | Y166: 0 | Z166: 0 | AA166: 0 | AB166: 2 | AC166: 10 | AD166: -0.1034 | AE166: 1.035 | AF166: -0.4288 | AG166: 1.52 | AH166: -0.076 | AI166: 4.35 | AJ166: -0.153 | AK166: 70 | AL166: 0 | AM166: 73 | AN166: 75 | AO166: 74 | AP166: 0 | AQ166: 71 | AR166: 69 | AS166: 3 | AT166: 0 | AU166: 3 | AV166: 3 | AW166: 3 | AX166: 0 | AY166: 3 | AZ166: 3
A167: 3 | B167: 2269 | C167: 73 | D167: 68 | E167: 63 | F167: 0.9343 | G167: 20067.37794 | H167: 0 | I167: 0 | J167: 0 | K167: 20067.37794 | L167: 2.555057915e-06 | M167: 47772973.62 | N167: 2300103.885 | O167: 0 | P167: 50073077.51 | Q167: 1.59387556e-05 | R167: 0.1603047301 | S167: 1 | T167: 0 | U167: 2 | V167: 0 | W167: 0 | X167: 3 | Y167: 0 | Z167: 0 | AA167: 0 | AB167: 1 | AC167: 10 | AD167: -0.0568 | AE167: 1.02 | AF167: -0.2446 | AG167: 2.94 | AH167: -0.206 | AI167: 4.35 | AJ167: -0.153 | AK167: 0 | AL167: 0 | AM167: 0 | AN167: 0 | AO167: 75 | AP167: 74 | AQ167: 72 | AR167: 70 | AS167: 0 | AT167: 0 | AU167: 0 | AV167: 0 | AW167: 3 | AX167: 3 | AY167: 3 | AZ167: 3
A168: 3 | B168: 2266 | C168: 74 | D168: 67 | E168: 62 | F168: 0.9343 | G168: 28710.3201 | H168: 0 | I168: 0 | J168: 0 | K168: 28710.3201 | L168: 3.655511489e-06 | M168: 31029345.84 | N168: 1361315.627 | O168: 0 | P168: 32390661.46 | Q168: 1.031026776e-05 | R168: 0.3545505871 | S168: 1 | T168: 0 | U168: 2 | V168: 0 | W168: 0 | X168: 3 | Y168: 0 | Z168: 0 | AA168: 0 | AB168: 1 | AC168: 10 | AD168: -0.0568 | AE168: 1.02 | AF168: -0.2446 | AG168: 2.94 | AH168: -0.206 | AI168: 4.35 | AJ168: -0.153 | AK168: 72 | AL168: 73 | AM168: 75 | AN168: 77 | AO168: 76 | AP168: 0 | AQ168: 0 | AR168: 71 | AS168: 3 | AT168: 3 | AU168: 3 | AV168: 3 | AW168: 3 | AX168: 0 | AY168: 0 | AZ168: 3
A169: 3 | B169: 2265 | C169: 75 | D169: 68 | E169: 63 | F169: 0.9343 | G169: 28349.67934 | H169: 0 | I169: 0 | J169: 0 | K169: 28349.67934 | L169: 3.609593282e-06 | M169: 47772973.62 | N169: 2300103.885 | O169: 0 | P169: 50073077.51 | Q169: 1.59387556e-05 | R169: 0.2264664427 | S169: 1 | T169: 0 | U169: 2 | V169: 0 | W169: 0 | X169: 3 | Y169: 0 | Z169: 0 | AA169: 0 | AB169: 1 | AC169: 10 | AD169: -0.0568 | AE169: 1.02 | AF169: -0.2446 | AG169: 2.94 | AH169: -0.206 | AI169: 4.35 | AJ169: -0.153 | AK169: 73 | AL169: 0 | AM169: 0 | AN169: 78 | AO169: 77 | AP169: 76 | AQ169: 74 | AR169: 72 | AS169: 3 | AT169: 0 | AU169: 0 | AV169: 3 | AW169: 3 | AX169: 3 | AY169: 3 | AZ169: 3
A170: 3 | B170: 2263 | C170: 76 | D170: 67 | E170: 62 | F170: 0.9343 | G170: 21094.37502 | H170: 0 | I170: 0 | J170: 0 | K170: 21094.37502 | L170: 2.685819245e-06 | M170: 31029345.84 | N170: 1361315.627 | O170: 0 | P170: 32390661.46 | Q170: 1.031026776e-05 | R170: 0.2604994658 | S170: 1 | T170: 0 | U170: 2 | V170: 0 | W170: 0 | X170: 3 | Y170: 0 | Z170: 0 | AA170: 0 | AB170: 1 | AC170: 10 | AD170: -0.0568 | AE170: 1.02 | AF170: -0.2446 | AG170: 2.94 | AH170: -0.206 | AI170: 4.35 | AJ170: -0.153 | AK170: 74 | AL170: 75 | AM170: 77 | AN170: 79 | AO170: 0 | AP170: 0 | AQ170: 0 | AR170: 0 | AS170: 3 | AT170: 3 | AU170: 3 | AV170: 3 | AW170: 0 | AX170: 0 | AY170: 0 | AZ170: 0
A171: 3 | B171: 2262 | C171: 77 | D171: 68 | E171: 63 | F171: 0.9343 | G171: 134890.0045 | H171: 0 | I171: 0 | J171: 0 | K171: 134890.0045 | L171: 1.717472879e-05 | M171: 47772973.62 | N171: 2300103.885 | O171: 0 | P171: 50073077.51 | Q171: 1.59387556e-05 | R171: 1.07754515 | S171: 1 | T171: 0 | U171: 2 | V171: 0 | W171: 0 | X171: 3 | Y171: 0 | Z171: 0 | AA171: 0 | AB171: 1 | AC171: 10 | AD171: -0.0568 | AE171: 1.02 | AF171: -0.2446 | AG171: 2.94 | AH171: -0.206 | AI171: 4.35 | AJ171: -0.153 | AK171: 75 | AL171: 0 | AM171: 78 | AN171: 0 | AO171: 79 | AP171: 0 | AQ171: 76 | AR171: 74 | AS171: 3 | AT171: 0 | AU171: 3 | AV171: 0 | AW171: 3 | AX171: 0 | AY171: 3 | AZ171: 3
A172: 3 | B172: 2261 | C172: 78 | D172: 68 | E172: 63 | F172: 0.9343 | G172: 111407.939 | H172: 0 | I172: 0 | J172: 0 | K172: 111407.939 | L172: 1.418489935e-05 | M172: 47772973.62 | N172: 2300103.885 | O172: 0 | P172: 50073077.51 | Q172: 1.59387556e-05 | R172: 0.8899627865 | S172: 1 | T172: 0 | U172: 2 | V172: 0 | W172: 0 | X172: 3 | Y172: 0 | Z172: 0 | AA172: 0 | AB172: 1 | AC172: 10 | AD172: -0.0568 | AE172: 1.02 | AF172: -0.2446 | AG172: 2.94 | AH172: -0.206 | AI172: 4.35 | AJ172: -0.153 | AK172: 0 | AL172: 0 | AM172: 0 | AN172: 0 | AO172: 0 | AP172: 79 | AQ172: 77 | AR172: 75 | AS172: 0 | AT172: 0 | AU172: 0 | AV172: 0 | AW172: 0 | AX172: 3 | AY172: 3 | AZ172: 3
A173: 3 | B173: 2259 | C173: 79 | D173: 68 | E173: 63 | F173: 0.9343 | G173: 247442.0452 | H173: 0 | I173: 0 | J173: 0 | K173: 247442.0452 | L173: 3.150529969e-05 | M173: 47772973.62 | N173: 2300103.885 | O173: 0 | P173: 50073077.51 | Q173: 1.59387556e-05 | R173: 1.976647392 | S173: 1 | T173: 0 | U173: 2 | V173: 0 | W173: 0 | X173: 3 | Y173: 0 | Z173: 0 | AA173: 0 | AB173: 1 | AC173: 10 | AD173: -0.0568 | AE173: 1.02 | AF173: -0.2446 | AG173: 2.94 | AH173: -0.206 | AI173: 4.35 | AJ173: -0.153 | AK173: 77 | AL173: 78 | AM173: 0 | AN173: 0 | AO173: 0 | AP173: 0 | AQ173: 0 | AR173: 76 | AS173: 3 | AT173: 3 | AU173: 0 | AV173: 0 | AW173: 0 | AX173: 0 | AY173: 0 | AZ173: 3
A174: 4 | B174: CAMPECHE | E174: 0 | AB174: 0
A175: 4 | B175: 264 | C175: 1 | D175: 93 | E175: 85 | F175: 0.2054 | G175: 47664.68606 | H175: 0 | I175: 0 | J175: 0 | K175: 47664.68606 | L175: 6.068856317e-06 | M175: 70793966.16 | N175: 1504291.288 | O175: 36965642.43 | P175: 109263899.9 | Q175: 3.477977953e-05 | R175: =L175/Q175 -> 0.1744938122 | S175: 1 | T175: 0 | U175: 2 | V175: 0 | W175: 0 | X175: 3 | Y175: 0 | Z175: 0 | AA175: 0 | AB175: 1 | AC175: 10 | AD175: -0.0568 | AE175: 1.02 | AF175: -0.2446 | AG175: 2.94 | AH175: -0.206 | AI175: 4.35 | AJ175: -0.153 | AK175: 0 | AL175: 18 | AM175: 26 | AN175: 3 | AO175: 2 | AP175: 0 | AQ175: 0 | AR175: 0 | AS175: 0 | AT175: 31 | AU175: 31 | AV175: 4 | AW175: 4 | AX175: 0 | AY175: 0 | AZ175: 0
A176: 4 | B176: 262 | C176: 2 | D176: 93 | E176: 85 | F176: 0.2054 | G176: 113129.2731 | H176: 0 | I176: 0 | J176: 0 | K176: 113129.2731 | L176: 1.440406642e-05 | M176: 70793966.16 | N176: 1504291.288 | O176: 36965642.43 | P176: 109263899.9 | Q176: 3.477977953e-05 | R176: 0.414150596 | S176: 1 | T176: 0 | U176: 2 | V176: 0 | W176: 0 | X176: 3 | Y176: 0 | Z176: 0 | AA176: 0 | AB176: 1 | AC176: 10 | AD176: -0.0568 | AE176: 1.02 | AF176: -0.2446 | AG176: 2.94 | AH176: -0.206 | AI176: 4.35 | AJ176: -0.153 | AK176: 1 | AL176: 26 | AM176: 3 | AN176: 5 | AO176: 4 | AP176: 0 | AQ176: 0 | AR176: 0 | AS176: 4 | AT176: 31 | AU176: 4 | AV176: 4 | AW176: 4 | AX176: 0 | AY176: 0 | AZ176: 0
A177: 4 | B177: 261 | C177: 3 | D177: 93 | E177: 85 | F177: 0.2054 | G177: 157994.8481 | H177: 0 | I177: 0 | J177: 0 | K177: 157994.8481 | L177: 2.011652884e-05 | M177: 70793966.16 | N177: 1504291.288 | O177: 36965642.43 | P177: 109263899.9 | Q177: 3.477977953e-05 | R177: 0.5783972501 | S177: 1 | T177: 0 | U177: 2 | V177: 0 | W177: 0 | X177: 3 | Y177: 0 | Z177: 0 | AA177: 0 | AB177: 1 | AC177: 10 | AD177: -0.0568 | AE177: 1.02 | AF177: -0.2446 | AG177: 2.94 | AH177: -0.206 | AI177: 4.35 | AJ177: -0.153 | AK177: 26 | AL177: 27 | AM177: 34 | AN177: 6 | AO177: 5 | AP177: 4 | AQ177: 2 | AR177: 1 | AS177: 31 | AT177: 31 | AU177: 31 | AV177: 4 | AW177: 4 | AX177: 4 | AY177: 4 | AZ177: 4
A178: 4 | B178: 260 | C178: 4 | D178: 93 | E178: 85 | F178: 0.2054 | G178: 305817.1398 | H178: 0 | I178: 0 | J178: 0 | K178: 305817.1398 | L178: 3.893784758e-05 | M178: 70793966.16 | N178: 1504291.288 | O178: 36965642.43 | P178: 109263899.9 | Q178: 3.477977953e-05 | R178: 1.119554181 | S178: 1 | T178: 0 | U178: 2 | V178: 0 | W178: 0 | X178: 3 | Y178: 0 | Z178: 0 | AA178: 0 | AB178: 1 | AC178: 10 | AD178: -0.0568 | AE178: 1.02 | AF178: -0.2446 | AG178: 2.94 | AH178: -0.206 | AI178: 4.35 | AJ178: -0.153 | AK178: 2 | AL178: 3 | AM178: 5 | AN178: 8 | AO178: 7 | AP178: 0 | AQ178: 0 | AR178: 0 | AS178: 4 | AT178: 4 | AU178: 4 | AV178: 4 | AW178: 4 | AX178: 0 | AY178: 0 | AZ178: 0
A179: 4 | B179: 259 | C179: 5 | D179: 93 | E179: 85 | F179: 0.2054 | G179: 363309.2863 | H179: 0 | I179: 0 | J179: 0 | K179: 363309.2863 | L179: 4.625797503e-05 | M179: 70793966.16 | N179: 1504291.288 | O179: 36965642.43 | P179: 109263899.9 | Q179: 3.477977953e-05 | R179: 1.330024964 | S179: 1 | T179: 0 | U179: 2 | V179: 0 | W179: 0 | X179: 3 | Y179: 0 | Z179: 0 | AA179: 0 | AB179: 1 | AC179: 10 | AD179: -0.0568 | AE179: 1.02 | AF179: -0.2446 | AG179: 2.94 | AH179: -0.206 | AI179: 4.35 | AJ179: -0.153 | AK179: 3 | AL179: 34 | AM179: 6 | AN179: 9 | AO179: 8 | AP179: 7 | AQ179: 4 | AR179: 2 | AS179: 4 | AT179: 4 | AU179: 31 | AV179: 4 | AW179: 4 | AX179: 4 | AY179: 4 | AZ179: 4
A180: 4 | B180: 13 | C180: 6 | D180: 94 | E180: 86 | F180: 0.072 | G180: 223158.9012 | H180: 0 | I180: 0 | J180: 0 | K180: 223158.9012 | L180: 2.841347378e-05 | M180: 31943411.59 | N180: 2088525.114 | O180: 41297985.65 | P180: 75329922.35 | Q180: 2.397825901e-05 | R180: 1.184968173 | S180: 1 | T180: 0 | U180: 2 | V180: 0 | W180: 0 | X180: 3 | Y180: 0 | Z180: 0 | AA180: 0 | AB180: 1 | AC180: 10 | AD180: -0.0568 | AE180: 1.02 | AF180: -0.2446 | AG180: 2.94 | AH180: -0.206 | AI180: 4.35 | AJ180: -0.153 | AK180: 34 | AL180: 35 | AM180: 40 | AN180: 43 | AO180: 9 | AP180: 8 | AQ180: 5 | AR180: 3 | AS180: 31 | AT180: 31 | AU180: 31 | AV180: 4 | AW180: 4 | AX180: 4 | AY180: 4 | AZ180: 4
A181: 4 | B181: 224 | C181: 7 | D181: 101 | E181: 93 | F181: 0.2435 | G181: 302998.3385 | H181: 0 | I181: 0 | J181: 0 | K181: 302998.3385 | L181: 3.857894665e-05 | M181: 70349283.67 | N181: 448314.4625 | O181: 39559782.83 | P181: 110357381 | Q181: 3.512784538e-05 | R181: 1.098244035 | S181: 1 | T181: 0 | U181: 2 | V181: 0 | W181: 0 | X181: 3 | Y181: 0 | Z181: 0 | AA181: 0 | AB181: 1 | AC181: 10 | AD181: -0.0568 | AE181: 1.02 | AF181: -0.2446 | AG181: 2.94 | AH181: -0.206 | AI181: 4.35 | AJ181: -0.153 | AK181: 4 | AL181: 5 | AM181: 8 | AN181: 11 | AO181: 10 | AP181: 0 | AQ181: 0 | AR181: 0 | AS181: 4 | AT181: 4 | AU181: 4 | AV181: 4 | AW181: 4 | AX181: 0 | AY181: 0 | AZ181: 0
A182: 4 | B182: 223 | C182: 8 | D182: 101 | E182: 93 | F182: 0.2435 | G182: 332549.1173 | H182: 0 | I182: 0 | J182: 0 | K182: 332549.1173 | L182: 4.234146868e-05 | M182: 70349283.67 | N182: 448314.4625 | O182: 39559782.83 | P182: 110357381 | Q182: 3.512784538e-05 | R182: 1.205353423 | S182: 1 | T182: 0 | U182: 2 | V182: 0 | W182: 0 | X182: 3 | Y182: 0 | Z182: 0 | AA182: 0 | AB182: 1 | AC182: 10 | AD182: -0.0568 | AE182: 1.02 | AF182: -0.2446 | AG182: 2.94 | AH182: -0.206 | AI182: 4.35 | AJ182: -0.153 | AK182: 5 | AL182: 6 | AM182: 9 | AN182: 12 | AO182: 11 | AP182: 10 | AQ182: 7 | AR182: 4 | AS182: 4 | AT182: 4 | AU182: 4 | AV182: 4 | AW182: 4 | AX182: 4 | AY182: 4 | AZ182: 4
A183: 4 | B183: 137 | C183: 9 | D183: 102 | E183: 94 | F183: 0.1795 | G183: 80148.26184 | H183: 0 | I183: 0 | J183: 0 | K183: 80148.26184 | L183: 1.020479364e-05 | M183: 32067320.7 | N183: 54135.66276 | O183: 41899022.22 | P183: 74020478.59 | Q183: 2.356145011e-05 | R183: 0.4331139888 | S183: 1 | T183: 0 | U183: 2 | V183: 0 | W183: 0 | X183: 3 | Y183: 0 | Z183: 0 | AA183: 0 | AB183: 1 | AC183: 10 | AD183: -0.0568 | AE183: 1.02 | AF183: -0.2446 | AG183: 2.94 | AH183: -0.206 | AI183: 4.35 | AJ183: -0.153 | AK183: 6 | AL183: 40 | AM183: 43 | AN183: 13 | AO183: 12 | AP183: 11 | AQ183: 8 | AR183: 5 | AS183: 4 | AT183: 31 | AU183: 31 | AV183: 4 | AW183: 4 | AX183: 4 | AY183: 4 | AZ183: 4
A184: 4 | B184: 221 | C184: 10 | D184: 101 | E184: 93 | F184: 0.2435 | G184: 330798.7661 | H184: 0 | I184: 0 | J184: 0 | K184: 330798.7661 | L184: 4.211860703e-05 | M184: 70349283.67 | N184: 448314.4625 | O184: 39559782.83 | P184: 110357381 | Q184: 3.512784538e-05 | R184: 1.199009122 | S184: 1 | T184: 0 | U184: 2 | V184: 0 | W184: 0 | X184: 3 | Y184: 0 | Z184: 0 | AA184: 0 | AB184: 1 | AC184: 10 | AD184: -0.0568 | AE184: 1.02 | AF184: -0.2446 | AG184: 2.94 | AH184: -0.206 | AI184: 4.35 | AJ184: -0.153 | AK184: 7 | AL184: 8 | AM184: 11 | AN184: 15 | AO184: 14 | AP184: 0 | AQ184: 0 | AR184: 0 | AS184: 4 | AT184: 4 | AU184: 4 | AV184: 4 | AW184: 4 | AX184: 0 | AY184: 0 | AZ184: 0
A185: 4 | B185: 220 | C185: 11 | D185: 101 | E185: 93 | F185: 0.2435 | G185: 309827.7136 | H185: 0 | I185: 0 | J185: 0 | K185: 309827.7136 | L185: 3.944848971e-05 | M185: 70349283.67 | N185: 448314.4625 | O185: 39559782.83 | P185: 110357381 | Q185: 3.512784538e-05 | R185: 1.122997704 | S185: 1 | T185: 0 | U185: 2 | V185: 0 | W185: 0 | X185: 3 | Y185: 0 | Z185: 0 | AA185: 0 | AB185: 1 | AC185: 10 | AD185: -0.0568 | AE185: 1.02 | AF185: -0.2446 | AG185: 2.94 | AH185: -0.206 | AI185: 4.35 | AJ185: -0.153 | AK185: 8 | AL185: 9 | AM185: 12 | AN185: 16 | AO185: 15 | AP185: 14 | AQ185: 10 | AR185: 7 | AS185: 4 | AT185: 4 | AU185: 4 | AV185: 4 | AW185: 4 | AX185: 4 | AY185: 4 | AZ185: 4
A186: 4 | B186: 129 | C186: 12 | D186: 102 | E186: 94 | F186: 0.1795 | G186: 48694.79211 | H186: 0 | I186: 0 | J186: 0 | K186: 48694.79211 | L186: 6.200013494e-06 | M186: 32067320.7 | N186: 54135.66276 | O186: 41899022.22 | P186: 74020478.59 | Q186: 2.356145011e-05 | R186: 0.2631422711 | S186: 1 | T186: 0 | U186: 2 | V186: 0 | W186: 0 | X186: 3 | Y186: 0 | Z186: 0 | AA186: 0 | AB186: 1 | AC186: 10 | AD186: -0.0568 | AE186: 1.02 | AF186: -0.2446 | AG186: 2.94 | AH186: -0.206 | AI186: 4.35 | AJ186: -0.153 | AK186: 9 | AL186: 43 | AM186: 13 | AN186: 17 | AO186: 16 | AP186: 15 | AQ186: 11 | AR186: 8 | AS186: 4 | AT186: 31 | AU186: 4 | AV186: 4 | AW186: 4 | AX186: 4 | AY186: 4 | AZ186: 4
A187: 4 | B187: 128 | C187: 13 | D187: 102 | E187: 94 | F187: 0.1795 | G187: 40439.43513 | H187: 0 | I187: 0 | J187: 0 | K187: 40439.43513 | L187: 5.148908797e-06 | M187: 32067320.7 | N187: 54135.66276 | O187: 41899022.22 | P187: 74020478.59 | Q187: 2.356145011e-05 | R187: 0.2185310655 | S187: 1 | T187: 0 | U187: 2 | V187: 0 | W187: 0 | X187: 3 | Y187: 0 | Z187: 0 | AA187: 0 | AB187: 1 | AC187: 10 | AD187: -0.0568 | AE187: 1.02 | AF187: -0.2446 | AG187: 2.94 | AH187: -0.206 | AI187: 4.35 | AJ187: -0.153 | AK187: 43 | AL187: 44 | AM187: 46 | AN187: 18 | AO187: 17 | AP187: 16 | AQ187: 12 | AR187: 9 | AS187: 31 | AT187: 31 | AU187: 31 | AV187: 4 | AW187: 4 | AX187: 4 | AY187: 4 | AZ187: 4
A188: 4 | B188: 218 | C188: 14 | D188: 101 | E188: 93 | F188: 0.2435 | G188: 104590.9997 | H188: 0 | I188: 0 | J188: 0 | K188: 104590.9997 | L188: 1.331693968e-05 | M188: 70349283.67 | N188: 448314.4625 | O188: 39559782.83 | P188: 110357381 | Q188: 3.512784538e-05 | R188: 0.3790992457 | S188: 1 | T188: 0 | U188: 2 | V188: 0 | W188: 0 | X188: 3 | Y188: 0 | Z188: 0 | AA188: 0 | AB188: 1 | AC188: 10 | AD188: -0.0568 | AE188: 1.02 | AF188: -0.2446 | AG188: 2.94 | AH188: -0.206 | AI188: 4.35 | AJ188: -0.153 | AK188: 10 | AL188: 11 | AM188: 15 | AN188: 21 | AO188: 20 | AP188: 19 | AQ188: 0 | AR188: 0 | AS188: 4 | AT188: 4 | AU188: 4 | AV188: 4 | AW188: 4 | AX188: 4 | AY188: 0 | AZ188: 0
A189: 4 | B189: 217 | C189: 15 | D189: 101 | E189: 93 | F189: 0.2435 | G189: 49540.4325 | H189: 0 | I189: 0 | J189: 0 | K189: 49540.4325 | L189: 6.307683772e-06 | M189: 70349283.67 | N189: 448314.4625 | O189: 39559782.83 | P189: 110357381 | Q189: 3.512784538e-05 | R189: 0.1795636397 | S189: 1 | T189: 0 | U189: 2 | V189: 0 | W189: 0 | X189: 3 | Y189: 0 | Z189: 0 | AA189: 0 | AB189: 1 | AC189: 10 | AD189: -0.0568 | AE189: 1.02 | AF189: -0.2446 | AG189: 2.94 | AH189: -0.206 | AI189: 4.35 | AJ189: -0.153 | AK189: 11 | AL189: 12 | AM189: 16 | AN189: 22 | AO189: 21 | AP189: 20 | AQ189: 14 | AR189: 10 | AS189: 4 | AT189: 4 | AU189: 4 | AV189: 4 | AW189: 4 | AX189: 4 | AY189: 4 | AZ189: 4
A190: 4 | B190: 121 | C190: 16 | D190: 102 | E190: 94 | F190: 0.1795 | G190: 37928.42208 | H190: 0 | I190: 0 | J190: 0 | K190: 37928.42208 | L190: 4.829196686e-06 | M190: 32067320.7 | N190: 54135.66276 | O190: 41899022.22 | P190: 74020478.59 | Q190: 2.356145011e-05 | R190: 0.2049617771 | S190: 1 | T190: 0 | U190: 2 | V190: 0 | W190: 0 | X190: 3 | Y190: 0 | Z190: 0 | AA190: 0 | AB190: 1 | AC190: 10 | AD190: -0.0568 | AE190: 1.02 | AF190: -0.2446 | AG190: 2.94 | AH190: -0.206 | AI190: 4.35 | AJ190: -0.153 | AK190: 12 | AL190: 13 | AM190: 17 | AN190: 23 | AO190: 22 | AP190: 21 | AQ190: 15 | AR190: 11 | AS190: 4 | AT190: 4 | AU190: 4 | AV190: 4 | AW190: 4 | AX190: 4 | AY190: 4 | AZ190: 4
A191: 4 | B191: 120 | C191: 17 | D191: 102 | E191: 94 | F191: 0.1795 | G191: 22213.60494 | H191: 0 | I191: 0 | J191: 0 | K191: 22213.60494 | L191: 2.828324024e-06 | M191: 32067320.7 | N191: 54135.66276 | O191: 41899022.22 | P191: 74020478.59 | Q191: 2.356145011e-05 | R191: 0.1200403205 | S191: 1 | T191: 0 | U191: 2 | V191: 0 | W191: 0 | X191: 3 | Y191: 0 | Z191: 0 | AA191: 0 | AB191: 1 | AC191: 10 | AD191: -0.0568 | AE191: 1.02 | AF191: -0.2446 | AG191: 2.94 | AH191: -0.206 | AI191: 4.35 | AJ191: -0.153 | AK191: 13 | AL191: 46 | AM191: 18 | AN191: 24 | AO191: 23 | AP191: 22 | AQ191: 16 | AR191: 12 | AS191: 4 | AT191: 31 | AU191: 4 | AV191: 4 | AW191: 4 | AX191: 4 | AY191: 4 | AZ191: 4
A192: 4 | B192: 119 | C192: 18 | D192: 102 | E192: 94 | F192: 0.1795 | G192: 17813.37324 | H192: 0 | I192: 0 | J192: 0 | K192: 17813.37324 | L192: 2.268069123e-06 | M192: 32067320.7 | N192: 54135.66276 | O192: 41899022.22 | P192: 74020478.59 | Q192: 2.356145011e-05 | R192: 0.0962618647 | S192: 1 | T192: 0 | U192: 2 | V192: 0 | W192: 0 | X192: 3 | Y192: 0 | Z192: 0 | AA192: 0 | AB192: 1 | AC192: 10 | AD192: -0.0568 | AE192: 1.02 | AF192: -0.2446 | AG192: 2.94 | AH192: -0.206 | AI192: 4.35 | AJ192: -0.153 | AK192: 46 | AL192: 49 | AM192: 50 | AN192: 51 | AO192: 24 | AP192: 23 | AQ192: 17 | AR192: 13 | AS192: 31 | AT192: 23 | AU192: 23 | AV192: 23 | AW192: 4 | AX192: 4 | AY192: 4 | AZ192: 4
A193: 4 | B193: 215 | C193: 19 | D193: 101 | E193: 93 | F193: 0.2435 | G193: 85743.37511 | H193: 0 | I193: 0 | J193: 0 | K193: 85743.37511 | L193: 1.091718559e-05 | M193: 70349283.67 | N193: 448314.4625 | O193: 39559782.83 | P193: 110357381 | Q193: 3.512784538e-05 | R193: 0.3107843784 | S193: 1 | T193: 0 | U193: 2 | V193: 0 | W193: 0 | X193: 3 | Y193: 0 | Z193: 0 | AA193: 0 | AB193: 1 | AC193: 10 | AD193: -0.0568 | AE193: 1.02 | AF193: -0.2446 | AG193: 2.94 | AH193: -0.206 | AI193: 4.35 | AJ193: -0.153 | AK193: 0 | AL193: 14 | AM193: 20 | AN193: 27 | AO193: 26 | AP193: 25 | AQ193: 0 | AR193: 0 | AS193: 0 | AT193: 4 | AU193: 4 | AV193: 4 | AW193: 4 | AX193: 4 | AY193: 0 | AZ193: 0
A194: 4 | B194: 214 | C194: 20 | D194: 101 | E194: 93 | F194: 0.2435 | G194: 80607.35337 | H194: 0 | I194: 0 | J194: 0 | K194: 80607.35337 | L194: 1.026324699e-05 | M194: 70349283.67 | N194: 448314.4625 | O194: 39559782.83 | P194: 110357381 | Q194: 3.512784538e-05 | R194: 0.2921684174 | S194: 1 | T194: 0 | U194: 2 | V194: 0 | W194: 0 | X194: 3 | Y194: 0 | Z194: 0 | AA194: 0 | AB194: 1 | AC194: 10 | AD194: -0.0568 | AE194: 1.02 | AF194: -0.2446 | AG194: 2.94 | AH194: -0.206 | AI194: 4.35 | AJ194: -0.153 | AK194: 14 | AL194: 15 | AM194: 21 | AN194: 28 | AO194: 27 | AP194: 26 | AQ194: 19 | AR194: 0 | AS194: 4 | AT194: 4 | AU194: 4 | AV194: 4 | AW194: 4 | AX194: 4 | AY194: 4 | AZ194: 0
A195: 4 | B195: 213 | C195: 21 | D195: 101 | E195: 93 | F195: 0.2435 | G195: 26432.47994 | H195: 0 | I195: 0 | J195: 0 | K195: 26432.47994 | L195: 3.365487873e-06 | M195: 70349283.67 | N195: 448314.4625 | O195: 39559782.83 | P195: 110357381 | Q195: 3.512784538e-05 | R195: 0.09580684033 | S195: 1 | T195: 0 | U195: 2 | V195: 0 | W195: 0 | X195: 3 | Y195: 0 | Z195: 0 | AA195: 0 | AB195: 1 | AC195: 10 | AD195: -0.0568 | AE195: 1.02 | AF195: -0.2446 | AG195: 2.94 | AH195: -0.206 | AI195: 4.35 | AJ195: -0.153 | AK195: 15 | AL195: 16 | AM195: 22 | AN195: 29 | AO195: 28 | AP195: 27 | AQ195: 20 | AR195: 14 | AS195: 4 | AT195: 4 | AU195: 4 | AV195: 4 | AW195: 4 | AX195: 4 | AY195: 4 | AZ195: 4
A196: 4 | B196: 113 | C196: 22 | D196: 102 | E196: 94 | F196: 0.1795 | G196: 16580.14768 | H196: 0 | I196: 0 | J196: 0 | K196: 16580.14768 | L196: 2.111049968e-06 | M196: 32067320.7 | N196: 54135.66276 | O196: 41899022.22 | P196: 74020478.59 | Q196: 2.356145011e-05 | R196: 0.08959762483 | S196: 1 | T196: 0 | U196: 2 | V196: 0 | W196: 0 | X196: 3 | Y196: 0 | Z196: 0 | AA196: 0 | AB196: 1 | AC196: 10 | AD196: -0.0568 | AE196: 1.02 | AF196: -0.2446 | AG196: 2.94 | AH196: -0.206 | AI196: 4.35 | AJ196: -0.153 | AK196: 16 | AL196: 17 | AM196: 23 | AN196: 30 | AO196: 29 | AP196: 28 | AQ196: 21 | AR196: 15 | AS196: 4 | AT196: 4 | AU196: 4 | AV196: 4 | AW196: 4 | AX196: 4 | AY196: 4 | AZ196: 4
A197: 4 | B197: 112 | C197: 23 | D197: 102 | E197: 94 | F197: 0.1795 | G197: 15017.37108 | H197: 0 | I197: 0 | J197: 0 | K197: 15017.37108 | L197: 1.912071072e-06 | M197: 32067320.7 | N197: 54135.66276 | O197: 41899022.22 | P197: 74020478.59 | Q197: 2.356145011e-05 | R197: 0.08115252088 | S197: =IF(R197<=2,1,0) -> 1 | T197: =IF(R197>2,1,0) -> 0 | U197: =IF(R197<=6,2,0) -> 2 | V197: 0 | W197: =IF(R197>6,1,0) -> 0 | X197: =IF(R197<=10,3,0) -> 3 | Y197: 0 | Z197: =IF(R197>10,4,0) -> 0 | AA197: 0 | AB197: 1 | AC197: 10 | AD197: -0.0568 | AE197: 1.02 | AF197: -0.2446 | AG197: 2.94 | AH197: -0.206 | AI197: 4.35 | AJ197: -0.153 | AK197: 17 | AL197: 18 | AM197: 24 | AN197: 31 | AO197: 30 | AP197: 29 | AQ197: 22 | AR197: 16 | AS197: 4 | AT197: 4 | AU197: 4 | AV197: 4 | AW197: 4 | AX197: 4 | AY197: 4 | AZ197: 4
A198: 4 | B198: 111 | C198: 24 | D198: 102 | E198: 94 | F198: 0.1795 | G198: 14926.17457 | H198: 0 | I198: 0 | J198: 0 | K198: 14926.17457 | L198: 1.900459572e-06 | M198: 32067320.7 | N198: 54135.66276 | O198: 41899022.22 | P198: =SUM(M198:O198) -> 74020478.59 | Q198: =P198/(PI()*1000000^2) -> 2.356145011e-05 | R198: 0.08065970314 | S198: 1 | T198: 0 | U198: 2 | V198: =T198*U198 -> 0 | W198: 0 | X198: 3 | Y198: =W198*X198 -> 0 | Z198: 0 | AA198: =IF(Z198=4,AB198,0) -> 0 | AB198: 1 | AC198: 10 | AD198: -0.0568 | AE198: 1.02 | AF198: -0.2446 | AG198: 2.94 | AH198: -0.206 | AI198: 4.35 | AJ198: -0.153 | AK198: 18 | AL198: 50 | AM198: 51 | AN198: 52 | AO198: 31 | AP198: 30 | AQ198: 23 | AR198: 17 | AS198: 4 | AT198: 23 | AU198: 23 | AV198: 23 | AW198: 4 | AX198: 4 | AY198: 4 | AZ198: 4
A199: 4 | B199: 211 | C199: 25 | D199: 110 | E199: 102 | F199: 0.5885 | G199: 42280.98288 | H199: 0 | I199: 0 | J199: 0 | K199: 42280.98288 | L199: 5.383381939e-06 | M199: 67731347.89 | N199: 0 | O199: 36826190.55 | P199: 104557538.4 | Q199: 3.328169816e-05 | R199: 0.161752021 | S199: 1 | T199: 0 | U199: 2 | V199: 0 | W199: 0 | X199: 3 | Y199: 0 | Z199: 0 | AA199: 0 | AB199: 1 | AC199: 10 | AD199: -0.0568 | AE199: 1.02 | AF199: -0.2446 | AG199: 2.94 | AH199: -0.206 | AI199: 4.35 | AJ199: -0.153 | AK199: 0 | AL199: 19 | AM199: 26 | AN199: 36 | AO199: 35 | AP199: 34 | AQ199: 0 | AR199: 0 | AS199: 0 | AT199: 4 | AU199: 4 | AV199: 4 | AW199: 4 | AX199: 4 | AY199: 0 | AZ199: 0
A200: 4 | B200: 210 | C200: 26 | D200: 110 | E200: 102 | F200: 0.5885 | G200: 88589.12082 | H200: 0 | I200: 0 | J200: 0 | K200: 88589.12082 | L200: 1.127951719e-05 | M200: 67731347.89 | N200: 0 | O200: 36826190.55 | P200: 104557538.4 | Q200: 3.328169816e-05 | R200: 0.3389105066 | S200: 1 | T200: 0 | U200: 2 | V200: 0 | W200: 0 | X200: 3 | Y200: 0 | Z200: 0 | AA200: 0 | AB200: 1 | AC200: 10 | AD200: -0.0568 | AE200: 1.02 | AF200: -0.2446 | AG200: 2.94 | AH200: -0.206 | AI200: 4.35 | AJ200: -0.153 | AK200: 19 | AL200: 20 | AM200: 27 | AN200: 37 | AO200: 36 | AP200: 35 | AQ200: 25 | AR200: 0 | AS200: 4 | AT200: 4 | AU200: 4 | AV200: 4 | AW200: 4 | AX200: 4 | AY200: 4 | AZ200: 0
... 923 more rows

Sheet Cálculos&Supuestos
A1: 1 | B1: 2 | C1: 3 | D1: 4 | E1: 5 | F1: 6 | G1: 7 | H1: 8 | I1: 9 | J1: 10 | K1: 11 | L1: 12 | M1: 13 | N1: 14 | O1: 15 | P1: 16 | Q1: 17 | R1: 18 | S1: 19 | T1: 20 | U1: 21 | V1: 24 | W1: 25 | X1: 26 | Y1: 27 | Z1: 28 | AA1: 29 | AB1: 30 | AC1: 31 | AD1: 32 | AE1: 33 | AF1: 34 | AG1: 35 | AH1: 36 | AI1: 37 | AJ1: 38 | AK1: 39 | AL1: 40 | AM1: 41 | AN1: 42
B2: GENERALES
B4: GENERALES
B5: Variables | D5: Valores | E5: Fuente
B7: 1 MWh = 3,600MJ | D7: 3600 | E7: CFE
B8: Equivalencia CH4-CO2 | D8: 21 | E8: IPCC
B9: Equivalencia N2O-CO2 | D9: 310 | E9: IPCC
B10: Horas al año | D10: 8760 | E10: NA
B11: Horas por segundo | D11: 0.0002777777778 | E11: NA
B12: Año de inicio de operaciones | D12: =Principal!C16 -> 2019 | E12: NA
B13: Inflación (tma %) | D13: 0.04 | E13: INEGI
B14: Tasa de descuento ( tmca %) | D14: 0.05 | E14: CFE
B15: Tasa de crecimiento poblacional 2010-2050 (tma %) | D15: 0.006668974792 | E15: CONAPO
B16: Tasa de deforestación (tma %) | D16: 0 | E16: NA
B17: Tasa de cambio en los precios del carbono | D17: 0.05 | E17: NA
B18: Tasa de cambio servicios ecosistémicos | D18: 0.05 | E18: NA
B20: VELOCIDAD DE DECAIMIENTO DE LOS CONTAMINANTES
B21: Contaminante | C21: Velocidad de decaimiento (m/s) | E21: Fuente
B22: PM10 | C22: =0.0067 -> 0.0067 | E22: OIEA
B23: PM2.5 | C23: 0.0067 | E23: OIEA
B24: SO2 | C24: =0.0073 -> 0.0073 | E24: OIEA
B25: NOx | C25: =0.0147 -> 0.0147 | E25: OIEA
B26: Sulfatos | C26: =0.0173 -> 0.0173 | E26: OIEA
B27: Nitratos | C27: =0.0071 -> 0.0071 | E27: OIEA
B29: CARACTERÍSTICAS OPERATIVAS POR TECNOLOGÍA
B30: Datos de la planta | D30: Vida útil | E30: Capacidad (Mw) | F30: Autoconsumo (%) | G30: Factor de planta (%) | H30: Altura de la chimenea (m) | I30: Generación neta (Mwh) | L30: Factor de emisión teórico (t/Mwh) | Q30: Factor de emisión propio (t/Mwh) | V30: Factor de emisión (µg/s) | Z30: Fuente
D31: (años) | I31: Anual | J31: Hora | K31: Segundo | L31: CO2e | M31: SO2 | N31: NOX | O31: PM10 | P31: PM2.5 | Q31: CO2e | R31: SO2 | S31: NOX | T31: PM10 | U31: PM2.5 | V31: SO2 | W31: NOX | X31: PM10 | Y31: PM2.5
B32: Termoeléctrica convencional (plantas existentes) | D32: =Principal!$I$16 -> 40 | E32: =Principal!$I$13 -> 500 | F32: 0.047 | G32: 0.75 | H32: 50 | I32: =E32*G32*$D$10*(1-F32) -> 3130605 | J32: =E32*G32*(1-F32) -> 357.375 | K32: =E32*G32*$D$11*(1-F32) -> 0.09927083333 | L32: 0.739 | M32: 0.01347 | N32: 0.00116 | O32: 0.000437 | P32: 0.000437 | Q32: =Principal!$C$20 -> 0.752 | R32: =Principal!$I$20 -> 0.00255 | S32: =Principal!$C$26 -> 0 | T32: =Principal!$I$23 -> 5e-06 | U32: =Principal!$C$23 -> 5e-06 | V32: =IF(Principal!$I$26="Propios",'Cálculos&Supuestos'!$K32*R32*10^12,'Cálculos&Supuestos'!$K32*M32*10^12) -> 1337178125 | W32: =IF(Principal!$I$26="Propios",'Cálculos&Supuestos'!$K32*S32*10^12,'Cálculos&Supuestos'!$K32*N32*10^12) -> 115154166.7 | X32: =IF(Principal!$I$26="Propios",'Cálculos&Supuestos'!$K32*T32*10^12,'Cálculos&Supuestos'!$K32*O32*10^12) -> 43381354.17 | Y32: =IF(Principal!$I$26="Propios",'Cálculos&Supuestos'!$K32*U32*10^12,'Cálculos&Supuestos'!$K32*P32*10^12) -> 43381354.17 | Z32: CFE
B33: Termoeléctrica con desulfurador y equipo para control de partículas (modelo Thermoflow 25) | D33: =Principal!$I$16 -> 40 | E33: =Principal!$I$13 -> 500 | F33: 0.01911111111 | G33: 0.2638888889 | H33: 50 | I33: 1133744.074 | J33: 129.4228395 | K33: 0.03595078875 | L33: 0.68 | M33: 0.001163 | N33: 0 | O33: 0 | P33: 0 | Q33: =Principal!$C$20 -> 0.752 | R33: =Principal!$I$20 -> 0.00255 | S33: =Principal!$C$26 -> 0 | T33: =Principal!$I$23 -> 5e-06 | U33: =Principal!$C$23 -> 5e-06 | V33: =IF(Principal!$I$26="Propios",'Cálculos&Supuestos'!$K33*R33*10^12,'Cálculos&Supuestos'!$K33*M33*10^12) -> 41810767.32 | W33: =IF(Principal!$I$26="Propios",'Cálculos&Supuestos'!$K33*S33*10^12,'Cálculos&Supuestos'!$K33*N33*10^12) -> 0 | X33: =IF(Principal!$I$26="Propios",'Cálculos&Supuestos'!$K33*T33*10^12,'Cálculos&Supuestos'!$K33*O33*10^12) -> 0 | Y33: =IF(Principal!$I$26="Propios",'Cálculos&Supuestos'!$K33*U33*10^12,'Cálculos&Supuestos'!$K33*P33*10^12) -> 0 | Z33: CFE
B34: Turbogas aeroderivada gas (plantas existentes) | D34: =Principal!$I$16 -> 40 | E34: =Principal!$I$13 -> 500 | F34: 0.0265 | G34: 0.125 | H34: 50 | I34: 532991.25 | J34: 60.84375 | K34: 0.01690104167 | L34: 0.493 | M34: 0 | N34: 0.00167 | O34: 1.5e-05 | P34: 1.5e-05 | Q34: =Principal!$C$20 -> 0.752 | R34: =Principal!$I$20 -> 0.00255 | S34: =Principal!$C$26 -> 0 | T34: =Principal!$I$23 -> 5e-06 | U34: =Principal!$C$23 -> 5e-06 | V34: =IF(Principal!$I$26="Propios",'Cálculos&Supuestos'!$K34*R34*10^12,'Cálculos&Supuestos'!$K34*M34*10^12) -> 0 | W34: =IF(Principal!$I$26="Propios",'Cálculos&Supuestos'!$K34*S34*10^12,'Cálculos&Supuestos'!$K34*N34*10^12) -> 28224739.58 | X34: =IF(Principal!$I$26="Propios",'Cálculos&Supuestos'!$K34*T34*10^12,'Cálculos&Supuestos'!$K34*O34*10^12) -> 253515.625 | Y34: =IF(Principal!$I$26="Propios",'Cálculos&Supuestos'!$K34*U34*10^12,'Cálculos&Supuestos'!$K34*P34*10^12) -> 253515.625 | Z34: CFE
B35: Turbogas aeroderivada gas (modelo Thermoflow 25) | D35: =Principal!$I$16 -> 40 | E35: =Principal!$I$13 -> 500 | F35: 0.0265 | G35: 0.125 | H35: 50 | I35: 532991.25 | J35: 60.84375 | K35: 0.01690104167 | L35: 0.476 | M35: 0 | N35: 0 | O35: 0 | P35: 0 | Q35: =Principal!$C$20 -> 0.752 | R35: =Principal!$I$20 -> 0.00255 | S35: =Principal!$C$26 -> 0 | T35: =Principal!$I$23 -> 5e-06 | U35: =Principal!$C$23 -> 5e-06 | V35: =IF(Principal!$I$26="Propios",'Cálculos&Supuestos'!$K35*R35*10^12,'Cálculos&Supuestos'!$K35*M35*10^12) -> 0 | W35: =IF(Principal!$I$26="Propios",'Cálculos&Supuestos'!$K35*S35*10^12,'Cálculos&Supuestos'!$K35*N35*10^12) -> 0 | X35: =IF(Principal!$I$26="Propios",'Cálculos&Supuestos'!$K35*T35*10^12,'Cálculos&Supuestos'!$K35*O35*10^12) -> 0 | Y35: =IF(Principal!$I$26="Propios",'Cálculos&Supuestos'!$K35*U35*10^12,'Cálculos&Supuestos'!$K35*P35*10^12) -> 0 | Z35: CFE
B36: Turbogás aeroderivada diesel (plantas existentes) | D36: =Principal!$I$16 -> 40 | E36: =Principal!$I$13 -> 500 | F36: 0.016 | G36: 0.125 | H36: 50 | I36: 538740 | J36: 61.5 | K36: 0.01708333333 | L36: 1.31 | M36: 0.04061 | N36: 0.00765 | O36: 5e-05 | P36: 5e-05 | Q36: =Principal!$C$20 -> 0.752 | R36: =Principal!$I$20 -> 0.00255 | S36: =Principal!$C$26 -> 0 | T36: =Principal!$I$23 -> 5e-06 | U36: =Principal!$C$23 -> 5e-06 | V36: =IF(Principal!$I$26="Propios",'Cálculos&Supuestos'!$K36*R36*10^12,'Cálculos&Supuestos'!$K36*M36*10^12) -> 693754166.7 | W36: =IF(Principal!$I$26="Propios",'Cálculos&Supuestos'!$K36*S36*10^12,'Cálculos&Supuestos'!$K36*N36*10^12) -> 130687500 | X36: =IF(Principal!$I$26="Propios",'Cálculos&Supuestos'!$K36*T36*10^12,'Cálculos&Supuestos'!$K36*O36*10^12) -> 854166.6667 | Y36: =IF(Principal!$I$26="Propios",'Cálculos&Supuestos'!$K36*U36*10^12,'Cálculos&Supuestos'!$K36*P36*10^12) -> 854166.6667 | Z36: CFE
B37: Turbogás aeroderivada diesel (modelo Thermoflow 25) | D37: =Principal!$I$16 -> 40 | E37: =Principal!$I$13 -> 500 | F37: 0.016 | G37: 0.125 | H37: 50 | I37: 538740 | J37: 61.5 | K37: 0.01708333333 | L37: 0.661 | M37: 0.00208 | N37: 0 | O37: 0 | P37: 0 | Q37: =Principal!$C$20 -> 0.752 | R37: =Principal!$I$20 -> 0.00255 | S37: =Principal!$C$26 -> 0 | T37: =Principal!$I$23 -> 5e-06 | U37: =Principal!$C$23 -> 5e-06 | V37: =IF(Principal!$I$26="Propios",'Cálculos&Supuestos'!$K37*R37*10^12,'Cálculos&Supuestos'!$K37*M37*10^12) -> 35533333.33 | W37: =IF(Principal!$I$26="Propios",'Cálculos&Supuestos'!$K37*S37*10^12,'Cálculos&Supuestos'!$K37*N37*10^12) -> 0 | X37: =IF(Principal!$I$26="Propios",'Cálculos&Supuestos'!$K37*T37*10^12,'Cálculos&Supuestos'!$K37*O37*10^12) -> 0 | Y37: =IF(Principal!$I$26="Propios",'Cálculos&Supuestos'!$K37*U37*10^12,'Cálculos&Supuestos'!$K37*P37*10^12) -> 0 | Z37: CFE
B38: Ciclo combinado (plantas existentes) | D38: =Principal!$I$16 -> 40 | E38: =Principal!$I$13 -> 500 | F38: 0.0286 | G38: 0.8 | H38: 50 | I38: 3403785.6 | J38: 388.56 | K38: 0.1079333333 | L38: 0.393 | M38: 0 | N38: 0.00133 | O38: 1.5e-05 | P38: 1.5e-05 | Q38: =Principal!$C$20 -> 0.752 | R38: =Principal!$I$20 -> 0.00255 | S38: =Principal!$C$26 -> 0 | T38: =Principal!$I$23 -> 5e-06 | U38: =Principal!$C$23 -> 5e-06 | V38: =IF(Principal!$I$26="Propios",'Cálculos&Supuestos'!$K38*R38*10^12,'Cálculos&Supuestos'!$K38*M38*10^12) -> 0 | W38: =IF(Principal!$I$26="Propios",'Cálculos&Supuestos'!$K38*S38*10^12,'Cálculos&Supuestos'!$K38*N38*10^12) -> 143551333.3 | X38: =IF(Principal!$I$26="Propios",'Cálculos&Supuestos'!$K38*T38*10^12,'Cálculos&Supuestos'!$K38*O38*10^12) -> 1619000 | Y38: =IF(Principal!$I$26="Propios",'Cálculos&Supuestos'!$K38*U38*10^12,'Cálculos&Supuestos'!$K38*P38*10^12) -> 1619000 | Z38: CFE
B39: Ciclo combinado (modelo Thermoflow 25) | D39: =Principal!$I$16 -> 40 | E39: =Principal!$I$13 -> 500 | F39: 0.0286 | G39: 0.8 | H39: 50 | I39: 3403785.6 | J39: 388.56 | K39: 0.1079333333 | L39: 0.342 | M39: 0 | N39: 0 | O39: 0 | P39: 0 | Q39: =Principal!$C$20 -> 0.752 | R39: =Principal!$I$20 -> 0.00255 | S39: =Principal!$C$26 -> 0 | T39: =Principal!$I$23 -> 5e-06 | U39: =Principal!$C$23 -> 5e-06 | V39: =IF(Principal!$I$26="Propios",'Cálculos&Supuestos'!$K39*R39*10^12,'Cálculos&Supuestos'!$K39*M39*10^12) -> 0 | W39: =IF(Principal!$I$26="Propios",'Cálculos&Supuestos'!$K39*S39*10^12,'Cálculos&Supuestos'!$K39*N39*10^12) -> 0 | X39: =IF(Principal!$I$26="Propios",'Cálculos&Supuestos'!$K39*T39*10^12,'Cálculos&Supuestos'!$K39*O39*10^12) -> 0 | Y39: =IF(Principal!$I$26="Propios",'Cálculos&Supuestos'!$K39*U39*10^12,'Cálculos&Supuestos'!$K39*P39*10^12) -> 0 | Z39: CFE
B40: Combustión interna (plantas existentes) | D40: =Principal!$I$16 -> 40 | E40: =Principal!$I$13 -> 500 | F40: 0.0605 | G40: 0.675 | H40: 50 | I40: 2777631.75 | J40: 317.08125 | K40: 0.088078125 | L40: 0.691 | M40: 0.01488 | N40: 0.01391 | O40: 0.000125 | P40: 0.000125 | Q40: =Principal!$C$20 -> 0.752 | R40: =Principal!$I$20 -> 0.00255 | S40: =Principal!$C$26 -> 0 | T40: =Principal!$I$23 -> 5e-06 | U40: =Principal!$C$23 -> 5e-06 | V40: =IF(Principal!$I$26="Propios",'Cálculos&Supuestos'!$K40*R40*10^12,'Cálculos&Supuestos'!$K40*M40*10^12) -> 1310602500 | W40: =IF(Principal!$I$26="Propios",'Cálculos&Supuestos'!$K40*S40*10^12,'Cálculos&Supuestos'!$K40*N40*10^12) -> 1225166719 | X40: =IF(Principal!$I$26="Propios",'Cálculos&Supuestos'!$K40*T40*10^12,'Cálculos&Supuestos'!$K40*O40*10^12) -> 11009765.63 | Y40: =IF(Principal!$I$26="Propios",'Cálculos&Supuestos'!$K40*U40*10^12,'Cálculos&Supuestos'!$K40*P40*10^12) -> 11009765.63 | Z40: CFE
B41: Carboeléctrica (plantas existentes) | D41: =Principal!$I$16 -> 40 | E41: =Principal!$I$13 -> 500 | F41: 0.05 | G41: 0.8 | H41: 50 | I41: 3328800 | J41: 380 | K41: 0.1055555556 | L41: 0.791 | M41: 0.00952 | N41: 0.00586 | O41: 0.00024 | P41: 0.00024 | Q41: =Principal!$C$20 -> 0.752 | R41: =Principal!$I$20 -> 0.00255 | S41: =Principal!$C$26 -> 0 | T41: =Principal!$I$23 -> 5e-06 | U41: =Principal!$C$23 -> 5e-06 | V41: =IF(Principal!$I$26="Propios",'Cálculos&Supuestos'!$K41*R41*10^12,'Cálculos&Supuestos'!$K41*M41*10^12) -> 1004888889 | W41: =IF(Principal!$I$26="Propios",'Cálculos&Supuestos'!$K41*S41*10^12,'Cálculos&Supuestos'!$K41*N41*10^12) -> 618555555.6 | X41: =IF(Principal!$I$26="Propios",'Cálculos&Supuestos'!$K41*T41*10^12,'Cálculos&Supuestos'!$K41*O41*10^12) -> 25333333.33 | Y41: =IF(Principal!$I$26="Propios",'Cálculos&Supuestos'!$K41*U41*10^12,'Cálculos&Supuestos'!$K41*P41*10^12) -> 25333333.33 | Z41: CFE
B42: Carboeléctrica supercrítica (plantas existentes) | D42: =Principal!$I$16 -> 40 | E42: =Principal!$I$13 -> 500 | F42: 0.043 | G42: 0.8 | H42: 50 | I42: 3353328 | J42: 382.8 | K42: 0.1063333333 | L42: 0.548 | M42: 0.00301 | N42: 0.00407 | O42: 0.000165 | P42: 0.000165 | Q42: =Principal!$C$20 -> 0.752 | R42: =Principal!$I$20 -> 0.00255 | S42: =Principal!$C$26 -> 0 | T42: =Principal!$I$23 -> 5e-06 | U42: =Principal!$C$23 -> 5e-06 | V42: =IF(Principal!$I$26="Propios",'Cálculos&Supuestos'!$K42*R42*10^12,'Cálculos&Supuestos'!$K42*M42*10^12) -> 320063333.3 | W42: =IF(Principal!$I$26="Propios",'Cálculos&Supuestos'!$K42*S42*10^12,'Cálculos&Supuestos'!$K42*N42*10^12) -> 432776666.7 | X42: =IF(Principal!$I$26="Propios",'Cálculos&Supuestos'!$K42*T42*10^12,'Cálculos&Supuestos'!$K42*O42*10^12) -> 17545000 | Y42: =IF(Principal!$I$26="Propios",'Cálculos&Supuestos'!$K42*U42*10^12,'Cálculos&Supuestos'!$K42*P42*10^12) -> 17545000 | Z42: CFE
B43: Carboeléctrica sin desulfurador (modelo Thermoflow 25) | D43: =Principal!$I$16 -> 40 | E43: =Principal!$I$13 -> 500 | F43: 0.05 | G43: 0.8 | H43: 50 | I43: 3328800 | J43: 380 | K43: 0.1055555556 | L43: 0.773 | M43: 0.0083 | N43: 0 | O43: 5e-05 | P43: 5e-05 | Q43: =Principal!$C$20 -> 0.752 | R43: =Principal!$I$20 -> 0.00255 | S43: =Principal!$C$26 -> 0 | T43: =Principal!$I$23 -> 5e-06 | U43: =Principal!$C$23 -> 5e-06 | V43: =IF(Principal!$I$26="Propios",'Cálculos&Supuestos'!$K43*R43*10^12,'Cálculos&Supuestos'!$K43*M43*10^12) -> 876111111.1 | W43: =IF(Principal!$I$26="Propios",'Cálculos&Supuestos'!$K43*S43*10^12,'Cálculos&Supuestos'!$K43*N43*10^12) -> 0 | X43: =IF(Principal!$I$26="Propios",'Cálculos&Supuestos'!$K43*T43*10^12,'Cálculos&Supuestos'!$K43*O43*10^12) -> 5277777.778 | Y43: =IF(Principal!$I$26="Propios",'Cálculos&Supuestos'!$K43*U43*10^12,'Cálculos&Supuestos'!$K43*P43*10^12) -> 5277777.778 | Z43: CFE
B44: Carboeléctrica supercrítica sin desulfurador (modelo Thermoflow 25) | D44: =Principal!$I$16 -> 40 | E44: =Principal!$I$13 -> 500 | F44: 0.043 | G44: 0.8 | H44: 50 | I44: 3353328 | J44: 382.8 | K44: 0.1063333333 | L44: 0.794 | M44: 0.00176 | N44: 0 | O44: 5e-06 | P44: 5e-06 | Q44: =Principal!$C$20 -> 0.752 | R44: =Principal!$I$20 -> 0.00255 | S44: =Principal!$C$26 -> 0 | T44: =Principal!$I$23 -> 5e-06 | U44: =Principal!$C$23 -> 5e-06 | V44: =IF(Principal!$I$26="Propios",'Cálculos&Supuestos'!$K44*R44*10^12,'Cálculos&Supuestos'!$K44*M44*10^12) -> 187146666.7 | W44: =IF(Principal!$I$26="Propios",'Cálculos&Supuestos'!$K44*S44*10^12,'Cálculos&Supuestos'!$K44*N44*10^12) -> 0 | X44: =IF(Principal!$I$26="Propios",'Cálculos&Supuestos'!$K44*T44*10^12,'Cálculos&Supuestos'!$K44*O44*10^12) -> 531666.6667 | Y44: =IF(Principal!$I$26="Propios",'Cálculos&Supuestos'!$K44*U44*10^12,'Cálculos&Supuestos'!$K44*P44*10^12) -> 531666.6667 | Z44: CFE
B45: Carboeléctrica supercrítica con desulfurador (modelo Thermoflow 25) | D45: =Principal!$I$16 -> 40 | E45: =Principal!$I$13 -> 500 | F45: 0.058 | G45: 0.8 | H45: 50 | I45: 3300768 | J45: 376.8 | K45: 0.1046666667 | L45: 0.752 | M45: 0.00255 | N45: 0 | O45: 5e-06 | P45: 5e-06 | Q45: =Principal!$C$20 -> 0.752 | R45: =Principal!$I$20 -> 0.00255 | S45: =Principal!$C$26 -> 0 | T45: =Principal!$I$23 -> 5e-06 | U45: =Principal!$C$23 -> 5e-06 | V45: =IF(Principal!$I$26="Propios",'Cálculos&Supuestos'!$K45*R45*10^12,'Cálculos&Supuestos'!$K45*M45*10^12) -> 266900000 | W45: =IF(Principal!$I$26="Propios",'Cálculos&Supuestos'!$K45*S45*10^12,'Cálculos&Supuestos'!$K45*N45*10^12) -> 0 | X45: =IF(Principal!$I$26="Propios",'Cálculos&Supuestos'!$K45*T45*10^12,'Cálculos&Supuestos'!$K45*O45*10^12) -> 523333.3333 | Y45: =IF(Principal!$I$26="Propios",'Cálculos&Supuestos'!$K45*U45*10^12,'Cálculos&Supuestos'!$K45*P45*10^12) -> 523333.3333 | Z45: CFE
B46: Cogeneración eficiente con gas | D46: =Principal!$I$16 -> 40 | E46: =Principal!$I$13 -> 500 | F46: 0.04 | G46: 0.5626109856 | H46: 50 | I46: 2365666.672 | J46: 270.0532731 | K46: 0.07501479808 | L46: 0.3413714288 | M46: 2.266536509e-05 | N46: 0.0002950877632 | O46: 0 | P46: 0 | Q46: =Principal!$C$20 -> 0.752 | R46: =Principal!$I$20 -> 0.00255 | S46: =Principal!$C$26 -> 0 | T46: =Principal!$I$23 -> 5e-06 | U46: =Principal!$C$23 -> 5e-06 | V46: =IF(Principal!$I$26="Propios",'Cálculos&Supuestos'!$K46*R46*10^12,'Cálculos&Supuestos'!$K46*M46*10^12) -> 1700237.785 | W46: =IF(Principal!$I$26="Propios",'Cálculos&Supuestos'!$K46*S46*10^12,'Cálculos&Supuestos'!$K46*N46*10^12) -> 22135948.97 | X46: =IF(Principal!$I$26="Propios",'Cálculos&Supuestos'!$K46*T46*10^12,'Cálculos&Supuestos'!$K46*O46*10^12) -> 0 | Y46: =IF(Principal!$I$26="Propios",'Cálculos&Supuestos'!$K46*U46*10^12,'Cálculos&Supuestos'!$K46*P46*10^12) -> 0 | Z46: EPA
B47: Cogeneración eficiente con biomasa | D47: =Principal!$I$16 -> 40 | E47: =Principal!$I$13 -> 500 | F47: 0.04 | G47: 0.5596572824 | H47: 50 | I47: 2353246.941 | J47: 268.6354956 | K47: 0.07462097099 | L47: 0.1511885073 | M47: 0.0009037678602 | N47: 0.0008188189391 | O47: 0 | P47: 0 | Q47: =Principal!$C$20 -> 0.752 | R47: =Principal!$I$20 -> 0.00255 | S47: =Principal!$C$26 -> 0 | T47: =Principal!$I$23 -> 5e-06 | U47: =Principal!$C$23 -> 5e-06 | V47: =IF(Principal!$I$26="Propios",'Cálculos&Supuestos'!$K47*R47*10^12,'Cálculos&Supuestos'!$K47*M47*10^12) -> 67440035.28 | W47: =IF(Principal!$I$26="Propios",'Cálculos&Supuestos'!$K47*S47*10^12,'Cálculos&Supuestos'!$K47*N47*10^12) -> 61101064.3 | X47: =IF(Principal!$I$26="Propios",'Cálculos&Supuestos'!$K47*T47*10^12,'Cálculos&Supuestos'!$K47*O47*10^12) -> 0 | Y47: =IF(Principal!$I$26="Propios",'Cálculos&Supuestos'!$K47*U47*10^12,'Cálculos&Supuestos'!$K47*P47*10^12) -> 0 | Z47: EPA
B48: Rellenos sanitarios | D48: =Principal!$I$16 -> 40 | E48: =Principal!$I$13 -> 500 | F48: 0.04 | G48: 0.6535395789 | H48: 50 | I48: 2748003.222 | J48: 313.6989979 | K48: 0.08713861052 | L48: 0.005564775725 | M48: 0.0001812603352 | N48: 0.005256716701 | O48: 0 | P48: 0 | Q48: =Principal!$C$20 -> 0.752 | R48: =Principal!$I$20 -> 0.00255 | S48: =Principal!$C$26 -> 0 | T48: =Principal!$I$23 -> 5e-06 | U48: =Principal!$C$23 -> 5e-06 | V48: =IF(Principal!$I$26="Propios",'Cálculos&Supuestos'!$K48*R48*10^12,'Cálculos&Supuestos'!$K48*M48*10^12) -> 15794773.75 | W48: =IF(Principal!$I$26="Propios",'Cálculos&Supuestos'!$K48*S48*10^12,'Cálculos&Supuestos'!$K48*N48*10^12) -> 458062989.2 | X48: =IF(Principal!$I$26="Propios",'Cálculos&Supuestos'!$K48*T48*10^12,'Cálculos&Supuestos'!$K48*O48*10^12) -> 0 | Y48: =IF(Principal!$I$26="Propios",'Cálculos&Supuestos'!$K48*U48*10^12,'Cálculos&Supuestos'!$K48*P48*10^12) -> 0 | Z48: EPA
B49: Incineración de residuos sólidos urbanos | D49: =Principal!$I$16 -> 40 | E49: =Principal!$I$13 -> 500 | F49: 0.04 | G49: 0.6415368802 | H49: 50 | I49: 2697534.274 | J49: 307.9377025 | K49: 0.0855382507 | L49: 0.8573693709 | M49: 0.0004009459237 | N49: 0.002075141121 | O49: 0 | P49: 0 | Q49: =Principal!$C$20 -> 0.752 | R49: =Principal!$I$20 -> 0.00255 | S49: =Principal!$C$26 -> 0 | T49: =Principal!$I$23 -> 5e-06 | U49: =Principal!$C$23 -> 5e-06 | V49: =IF(Principal!$I$26="Propios",'Cálculos&Supuestos'!$K49*R49*10^12,'Cálculos&Supuestos'!$K49*M49*10^12) -> 34296212.94 | W49: =IF(Principal!$I$26="Propios",'Cálculos&Supuestos'!$K49*S49*10^12,'Cálculos&Supuestos'!$K49*N49*10^12) -> 177503941.4 | X49: =IF(Principal!$I$26="Propios",'Cálculos&Supuestos'!$K49*T49*10^12,'Cálculos&Supuestos'!$K49*O49*10^12) -> 0 | Y49: =IF(Principal!$I$26="Propios",'Cálculos&Supuestos'!$K49*U49*10^12,'Cálculos&Supuestos'!$K49*P49*10^12) -> 0 | Z49: EPA
B50: Biodigestores | D50: =Principal!$I$16 -> 40 | E50: =Principal!$I$13 -> 500 | F50: 0.04 | G50: 0.4590616365 | H50: 50 | I50: 1930262.369 | J50: 220.3495855 | K50: 0.06120821821 | L50: 0.02094340007 | M50: 4.983198817e-05 | N50: 0.01057901912 | O50: 0 | P50: 0 | Q50: =Principal!$C$20 -> 0.752 | R50: =Principal!$I$20 -> 0.00255 | S50: =Principal!$C$26 -> 0 | T50: =Principal!$I$23 -> 5e-06 | U50: =Principal!$C$23 -> 5e-06 | V50: =IF(Principal!$I$26="Propios",'Cálculos&Supuestos'!$K50*R50*10^12,'Cálculos&Supuestos'!$K50*M50*10^12) -> 3050127.206 | W50: =IF(Principal!$I$26="Propios",'Cálculos&Supuestos'!$K50*S50*10^12,'Cálculos&Supuestos'!$K50*N50*10^12) -> 647522910.7 | X50: =IF(Principal!$I$26="Propios",'Cálculos&Supuestos'!$K50*T50*10^12,'Cálculos&Supuestos'!$K50*O50*10^12) -> 0 | Y50: =IF(Principal!$I$26="Propios",'Cálculos&Supuestos'!$K50*U50*10^12,'Cálculos&Supuestos'!$K50*P50*10^12) -> 0 | Z50: EPA
B51: Biocombustibles agrícolas | D51: =Principal!$I$16 -> 40 | E51: =Principal!$I$13 -> 500 | F51: 0.04 | G51: 0.4687164205 | H51: 50 | I51: 1970858.805 | J51: 224.9838818 | K51: 0.06249552273 | L51: 0.03463241116 | M51: 0.0001103520201 | N51: 0.000328963018 | O51: 0 | P51: 0 | Q51: =Principal!$C$20 -> 0.752 | R51: =Principal!$I$20 -> 0.00255 | S51: =Principal!$C$26 -> 0 | T51: =Principal!$I$23 -> 5e-06 | U51: =Principal!$C$23 -> 5e-06 | V51: =IF(Principal!$I$26="Propios",'Cálculos&Supuestos'!$K51*R51*10^12,'Cálculos&Supuestos'!$K51*M51*10^12) -> 6896507.181 | W51: =IF(Principal!$I$26="Propios",'Cálculos&Supuestos'!$K51*S51*10^12,'Cálculos&Supuestos'!$K51*N51*10^12) -> 20558715.77 | X51: =IF(Principal!$I$26="Propios",'Cálculos&Supuestos'!$K51*T51*10^12,'Cálculos&Supuestos'!$K51*O51*10^12) -> 0 | Y51: =IF(Principal!$I$26="Propios",'Cálculos&Supuestos'!$K51*U51*10^12,'Cálculos&Supuestos'!$K51*P51*10^12) -> 0 | Z51: EPA
B52: Quema de residuos forestales y agrícolas | D52: =Principal!$I$16 -> 40 | E52: =Principal!$I$13 -> 500 | F52: 0.04 | G52: 0.5742883341 | H52: 50 | I52: 2414767.587 | J52: 275.6584004 | K52: 0.07657177788 | L52: 0.09669344376 | M52: 0.0008709919775 | N52: 0.0004765930046 | O52: 0 | P52: 0 | Q52: =Principal!$C$20 -> 0.752 | R52: =Principal!$I$20 -> 0.00255 | S52: =Principal!$C$26 -> 0 | T52: =Principal!$I$23 -> 5e-06 | U52: =Principal!$C$23 -> 5e-06 | V52: =IF(Principal!$I$26="Propios",'Cálculos&Supuestos'!$K52*R52*10^12,'Cálculos&Supuestos'!$K52*M52*10^12) -> 66693404.23 | W52: =IF(Principal!$I$26="Propios",'Cálculos&Supuestos'!$K52*S52*10^12,'Cálculos&Supuestos'!$K52*N52*10^12) -> 36493573.68 | X52: =IF(Principal!$I$26="Propios",'Cálculos&Supuestos'!$K52*T52*10^12,'Cálculos&Supuestos'!$K52*O52*10^12) -> 0 | Y52: =IF(Principal!$I$26="Propios",'Cálculos&Supuestos'!$K52*U52*10^12,'Cálculos&Supuestos'!$K52*P52*10^12) -> 0 | Z52: EPA
B53: =Principal!C13 -> Carboeléctrica supercrítica con desulfurador (modelo Thermoflow 25) | D53: =Principal!I16 -> 40 | E53: =Principal!I13 -> 500 | F53: =IF($B$53=$B32,F32,IF($B$53=$B33,F33,IF($B$53=$B34,F34,IF($B$53=$B35,F35,IF($B$53=$B36,F36,IF($B$53=$B37,F37,IF($B$53=$B38,F38,IF($B$53=$B39,F39,IF($B$53=$B40,F40,IF($B$53=$B41,F41,IF($B$53=$B42,F42,IF($B$53=$B43,F43,IF($B$53=$B44,F44,IF($B$53=$B45,F45,IF($B$53=$B46,F46,IF($B$53=$B47,F47,IF($B$53=$B48,F48,IF($B$53=$B49,F49,IF($B$53=$B50,F50,IF($B$53=$B51,F51,IF($B$53=$B52,F52))))))))))))))))))))) -> 0.058 | G53: =IF($B$53=$B32,G32,IF($B$53=$B33,G33,IF($B$53=$B34,G34,IF($B$53=$B35,G35,IF($B$53=$B36,G36,IF($B$53=$B37,G37,IF($B$53=$B38,G38,IF($B$53=$B39,G39,IF($B$53=$B40,G40,IF($B$53=$B41,G41,IF($B$53=$B42,G42,IF($B$53=$B43,G43,IF($B$53=$B44,G44,IF($B$53=$B45,G45,IF($B$53=$B46,G46,IF($B$53=$B47,G47,IF($B$53=$B48,G48,IF($B$53=$B49,G49,IF($B$53=$B50,G50,IF($B$53=$B51,G51,IF($B$53=$B52,G52))))))))))))))))))))) -> 0.8 | H53: =IF($B$53=$B32,H32,IF($B$53=$B33,H33,IF($B$53=$B34,H34,IF($B$53=$B35,H35,IF($B$53=$B36,H36,IF($B$53=$B37,H37,IF($B$53=$B38,H38,IF($B$53=$B39,H39,IF($B$53=$B40,H40,IF($B$53=$B41,H41,IF($B$53=$B42,H42,IF($B$53=$B43,H43,IF($B$53=$B44,H44,IF($B$53=$B45,H45,IF($B$53=$B46,H46,IF($B$53=$B47,H47,IF($B$53=$B48,H48,IF($B$53=$B49,H49,IF($B$53=$B50,H50,IF($B$53=$B51,H51,IF($B$53=$B52,H52))))))))))))))))))))) -> 50 | I53: =IF($B$53=$B32,I32,IF($B$53=$B33,I33,IF($B$53=$B34,I34,IF($B$53=$B35,I35,IF($B$53=$B36,I36,IF($B$53=$B37,I37,IF($B$53=$B38,I38,IF($B$53=$B39,I39,IF($B$53=$B40,I40,IF($B$53=$B41,I41,IF($B$53=$B42,I42,IF($B$53=$B43,I43,IF($B$53=$B44,I44,IF($B$53=$B45,I45,IF($B$53=$B46,I46,IF($B$53=$B47,I47,IF($B$53=$B48,I48,IF($B$53=$B49,I49,IF($B$53=$B50,I50,IF($B$53=$B51,I51,IF($B$53=$B52,I52))))))))))))))))))))) -> 3300768 | J53: =IF($B$53=$B32,J32,IF($B$53=$B33,J33,IF($B$53=$B34,J34,IF($B$53=$B35,J35,IF($B$53=$B36,J36,IF($B$53=$B37,J37,IF($B$53=$B38,J38,IF($B$53=$B39,J39,IF($B$53=$B40,J40,IF($B$53=$B41,J41,IF($B$53=$B42,J42,IF($B$53=$B43,J43,IF($B$53=$B44,J44,IF($B$53=$B45,J45,IF($B$53=$B46,J46,IF($B$53=$B47,J47,IF($B$53=$B48,J48,IF($B$53=$B49,J49,IF($B$53=$B50,J50,IF($B$53=$B51,J51,IF($B$53=$B52,J52))))))))))))))))))))) -> 376.8 | K53: 0.1046666667 | L53: =IF($B$53=$B32,L32,IF($B$53=$B33,L33,IF($B$53=$B34,L34,IF($B$53=$B35,L35,IF($B$53=$B36,L36,IF($B$53=$B37,L37,IF($B$53=$B38,L38,IF($B$53=$B39,L39,IF($B$53=$B40,L40,IF($B$53=$B41,L41,IF($B$53=$B42,L42,IF($B$53=$B43,L43,IF($B$53=$B44,L44,IF($B$53=$B45,L45,IF($B$53=$B46,L46,IF($B$53=$B47,L47,IF($B$53=$B48,L48,IF($B$53=$B49,L49,IF($B$53=$B50,L50,IF($B$53=$B51,L51,IF($B$53=$B52,L52))))))))))))))))))))) -> 0.752 | M53: =IF($B$53=$B32,M32,IF($B$53=$B33,M33,IF($B$53=$B34,M34,IF($B$53=$B35,M35,IF($B$53=$B36,M36,IF($B$53=$B37,M37,IF($B$53=$B38,M38,IF($B$53=$B39,M39,IF($B$53=$B40,M40,IF($B$53=$B41,M41,IF($B$53=$B42,M42,IF($B$53=$B43,M43,IF($B$53=$B44,M44,IF($B$53=$B45,M45,IF($B$53=$B46,M46,IF($B$53=$B47,M47,IF($B$53=$B48,M48,IF($B$53=$B49,M49,IF($B$53=$B50,M50,IF($B$53=$B51,M51,IF($B$53=$B52,M52))))))))))))))))))))) -> 0.00255 | N53: 0 | O53: 5e-06 | P53: =IF($B$53=$B32,P32,IF($B$53=$B33,P33,IF($B$53=$B34,P34,IF($B$53=$B35,P35,IF($B$53=$B36,P36,IF($B$53=$B37,P37,IF($B$53=$B38,P38,IF($B$53=$B39,P39,IF($B$53=$B40,P40,IF($B$53=$B41,P41,IF($B$53=$B42,P42,IF($B$53=$B43,P43,IF($B$53=$B44,P44,IF($B$53=$B45,P45,IF($B$53=$B46,P46,IF($B$53=$B47,P47,IF($B$53=$B48,P48,IF($B$53=$B49,P49,IF($B$53=$B50,P50,IF($B$53=$B51,P51,IF($B$53=$B52,P52))))))))))))))))))))) -> 5e-06 | Q53: =IF($B$53=$B32,Q32,IF($B$53=$B33,Q33,IF($B$53=$B34,Q34,IF($B$53=$B35,Q35,IF($B$53=$B36,Q36,IF($B$53=$B37,Q37,IF($B$53=$B38,Q38,IF($B$53=$B39,Q39,IF($B$53=$B40,Q40,IF($B$53=$B41,Q41,IF($B$53=$B42,Q42,IF($B$53=$B43,Q43,IF($B$53=$B44,Q44,IF($B$53=$B45,Q45,IF($B$53=$B46,Q46,IF($B$53=$B47,Q47,IF($B$53=$B48,Q48,IF($B$53=$B49,Q49,IF($B$53=$B50,Q50,IF($B$53=$B51,Q51,IF($B$53=$B52,Q52))))))))))))))))))))) -> 0.752 | R53: =IF($B$53=$B32,R32,IF($B$53=$B33,R33,IF($B$53=$B34,R34,IF($B$53=$B35,R35,IF($B$53=$B36,R36,IF($B$53=$B37,R37,IF($B$53=$B38,R38,IF($B$53=$B39,R39,IF($B$53=$B40,R40,IF($B$53=$B41,R41,IF($B$53=$B42,R42,IF($B$53=$B43,R43,IF($B$53=$B44,R44,IF($B$53=$B45,R45,IF($B$53=$B46,R46,IF($B$53=$B47,R47,IF($B$53=$B48,R48,IF($B$53=$B49,R49,IF($B$53=$B50,R50,IF($B$53=$B51,R51,IF($B$53=$B52,R52))))))))))))))))))))) -> 0.00255 | S53: 0 | T53: 5e-06 | U53: 5e-06 | V53: =IF($B$53=$B32,V32,IF($B$53=$B33,V33,IF($B$53=$B34,V34,IF($B$53=$B35,V35,IF($B$53=$B36,V36,IF($B$53=$B37,V37,IF($B$53=$B38,V38,IF($B$53=$B39,V39,IF($B$53=$B40,V40,IF($B$53=$B41,V41,IF($B$53=$B42,V42,IF($B$53=$B43,V43,IF($B$53=$B44,V44,IF($B$53=$B45,V45,IF($B$53=$B46,V46,IF($B$53=$B47,V47,IF($B$53=$B48,V48,IF($B$53=$B49,V49,IF($B$53=$B50,V50,IF($B$53=$B51,V51,IF($B$53=$B52,V52,))))))))))))))))))))) -> 266900000 | W53: =IF($B$53=$B32,W32,IF($B$53=$B33,W33,IF($B$53=$B34,W34,IF($B$53=$B35,W35,IF($B$53=$B36,W36,IF($B$53=$B37,W37,IF($B$53=$B38,W38,IF($B$53=$B39,W39,IF($B$53=$B40,W40,IF($B$53=$B41,W41,IF($B$53=$B42,W42,IF($B$53=$B43,W43,IF($B$53=$B44,W44,IF($B$53=$B45,W45,IF($B$53=$B46,W46,IF($B$53=$B47,W47,IF($B$53=$B48,W48,IF($B$53=$B49,W49,IF($B$53=$B50,W50,IF($B$53=$B51,W51,IF($B$53=$B52,W52,))))))))))))))))))))) -> 0 | X53: 523333.3333 | Y53: 523333.3333 | Z53: NA
B55: OPERACIÓN DE LA TECNOLOGÍA SELECCIONADO
B56: Tecnología | D56: Variable | F56: Unidades | G56: Valores | H56: Año
I57: 0 | J57: 1 | K57: 2 | L57: 3 | M57: 4 | N57: 5 | O57: 6 | P57: 7 | Q57: 8 | R57: 9 | S57: 10 | T57: 11 | U57: 12 | V57: 13 | W57: 14 | X57: 15 | Y57: 16 | Z57: 17 | AA57: 18 | AB57: 19 | AC57: 20 | AD57: 21 | AE57: 22 | AF57: 23 | AG57: 24 | AH57: 25 | AI57: 26 | AJ57: 27 | AK57: 28 | AL57: 29 | AM57: 30 | AN57: 31 | AO57: 32 | AP57: 33 | AQ57: 34 | AR57: 35 | AS57: 36 | AT57: 37 | AU57: 38 | AV57: 39 | AW57: 40
H58: 2015 | I58: =D12 -> 2019 | J58: =I58+1 -> 2020 | K58: =J58+1 -> 2021 | L58: 2022 | M58: 2023 | N58: 2024 | O58: 2025 | P58: 2026 | Q58: 2027 | R58: 2028 | S58: 2029 | T58: 2030 | U58: 2031 | V58: 2032 | W58: 2033 | X58: 2034 | Y58: 2035 | Z58: 2036 | AA58: 2037 | AB58: 2038 | AC58: 2039 | AD58: 2040 | AE58: 2041 | AF58: 2042 | AG58: 2043 | AH58: 2044 | AI58: 2045 | AJ58: 2046 | AK58: 2047 | AL58: 2048 | AM58: 2049 | AN58: 2050 | AO58: 2051 | AP58: 2052 | AQ58: 2053 | AR58: 2054 | AS58: 2055 | AT58: 2056 | AU58: 2057 | AV58: 2058 | AW58: 2059
B59: =B53 -> Carboeléctrica supercrítica con desulfurador (modelo Thermoflow 25) | D59: Generación neta anual | F59: Mwh | G59: =I53 -> 3300768
D60: Generación neta total | F60: Mwh | G60: =G59*D53 -> 132030720
B62: SALUD
B64: FUNCIONES EXPOSICIÓN - RESPUESTA
B65: Enfermedad | E65: Pendiente para costo de tratamiento (casos/(año-receptor-μg/m3) | J65: Fuente
E66: PM10 | F66: PM2.5 | G66: SO2 | H66: Nitratos | I66: Sulfatos
B67: Bronquitis crónica | E67: =1.03*10^(-5) -> 1.03e-05 | F67: =3.9*10^(-5) -> 3.9e-05 | G67: 0 | H67: =5.16*10^(-6) -> 5.16e-06 | I67: =1.03*10^(-5) -> 1.03e-05 | J67: CEPAL-SEMARNAT
B68: Días de actividad restringida | E68: =2.7*10^(-2) -> 0.027 | F68: =4.2*10^(-2) -> 0.042 | G68: 0 | H68: =1.35*10^(-2) -> 0.0135 | I68: =2.7*10^(-2) -> 0.027 | J68: CEPAL-SEMARNAT
B69: Ingresos hospitalarios (respiratorios) | E69: =3.61*10^(-6) -> 3.61e-06 | F69: =3.46*10^(-6) -> 3.46e-06 | G69: =1.04*10^(-6) -> 1.04e-06 | H69: =1.81*10^(-6) -> 1.81e-06 | I69: =3.61*10^(-6) -> 3.61e-06 | J69: CEPAL-SEMARNAT
B70: Ingresos hospitalarios (vasculares) | E70: =6.3*10^(-8) -> 6.3e-08 | F70: =8.42*10^(-6) -> 8.42e-06 | G70: 0 | H70: =3.15*10^(-8) -> 3.15e-08 | I70: =6.3*10^(-8) -> 6.3e-08 | J70: CEPAL-SEMARNAT
B71: Visitas a urgencias | E71: =9.95*10^(-5) -> 9.95e-05 | F71: 0 | G71: 0 | H71: =4.98*10^(-5) -> 4.98e-05 | I71: =9.95*10^(-5) -> 9.95e-05 | J71: CEPAL-SEMARNAT
B72: Crisis aguda de asma | E72: =5.5*10^(-5) -> 5.5e-05 | F72: 0 | G72: 0 | H72: =2.75*10^(-5) -> 2.75e-05 | I72: =5.5*10^(-5) -> 5.5e-05 | J72: CEPAL-SEMARNAT
B73: Mortalidad por exposición aguda | E73: 0 | F73: 0 | G73: =7.62*10^(-7) -> 7.62e-07 | H73: 0 | I73: 0 | J73: CEPAL-SEMARNAT
B74: Mortalidad por exposición crónica | E74: =2.46*10^(-4) -> 0.000246 | F74: =2.6*10^(-4) -> 0.00026 | G74: 0 | H74: =1.23*10^(-4) -> 0.000123 | I74: =2.46*10^(-4) -> 0.000246 | J74: CEPAL-SEMARNAT
B76: COSTO DEL TRATAMIENTO
B77: Enfermedad | E77: Año | F77: Unidades | G77: Fuente | H77: Año
H78: 0 | I78: 1 | J78: 2 | K78: 3 | L78: 4 | M78: 5 | N78: 6 | O78: 7 | P78: 8 | Q78: 9 | R78: 10 | S78: 11 | T78: 12 | U78: 13 | V78: 14 | W78: 15 | X78: 16 | Y78: 17 | Z78: 18 | AA78: 19 | AB78: 20 | AC78: 21 | AD78: 22 | AE78: 23 | AF78: 24 | AG78: 25 | AH78: 26 | AI78: 27 | AJ78: 28 | AK78: 29 | AL78: 30 | AM78: 31 | AN78: 32 | AO78: 33 | AP78: 34 | AQ78: 35 | AR78: 36 | AS78: 37 | AT78: 38 | AU78: 39 | AV78: 40
E79: 2004 | H79: =D12 -> 2019 | I79: =H79+1 -> 2020 | J79: =I79+1 -> 2021 | K79: =J79+1 -> 2022 | L79: =K79+1 -> 2023 | M79: =L79+1 -> 2024 | N79: =M79+1 -> 2025 | O79: =N79+1 -> 2026 | P79: =O79+1 -> 2027 | Q79: =P79+1 -> 2028 | R79: =Q79+1 -> 2029 | S79: =R79+1 -> 2030 | T79: =S79+1 -> 2031 | U79: =T79+1 -> 2032 | V79: =U79+1 -> 2033 | W79: =V79+1 -> 2034 | X79: =W79+1 -> 2035 | Y79: =X79+1 -> 2036 | Z79: =Y79+1 -> 2037 | AA79: =Z79+1 -> 2038 | AB79: =AA79+1 -> 2039 | AC79: =AB79+1 -> 2040 | AD79: =AC79+1 -> 2041 | AE79: =AD79+1 -> 2042 | AF79: =AE79+1 -> 2043 | AG79: =AF79+1 -> 2044 | AH79: =AG79+1 -> 2045 | AI79: =AH79+1 -> 2046 | AJ79: =AI79+1 -> 2047 | AK79: =AJ79+1 -> 2048 | AL79: =AK79+1 -> 2049 | AM79: =AL79+1 -> 2050 | AN79: =AM79+1 -> 2051 | AO79: =AN79+1 -> 2052 | AP79: =AO79+1 -> 2053 | AQ79: =AP79+1 -> 2054 | AR79: =AQ79+1 -> 2055 | AS79: =AR79+1 -> 2056 | AT79: =AS79+1 -> 2057 | AU79: =AT79+1 -> 2058 | AV79: 2059
B80: Bronquitis crónica | E80: =18941*10.777777777 -> 204141.8889 | F80: pesos/caso | G80: CEPAL-SEMARNAT | H80: =E80*(1+$D$13)^(H79-E79) -> 367648.009 | I80: =IF(I78<=$D$53,H80*(1+$D$13),"") -> 382353.9293 | J80: 397648.0865 | K80: 413554.01 | L80: 430096.1704 | M80: 447300.0172 | N80: 465192.0179 | O80: 483799.6986 | P80: 503151.6865 | Q80: 523277.754 | R80: 544208.8641 | S80: 565977.2187 | T80: 588616.3075 | U80: 612160.9598 | V80: 636647.3981 | W80: 662113.2941 | X80: 688597.8258 | Y80: 716141.7389 | Z80: 744787.4084 | AA80: 774578.9048 | AB80: 805562.0609 | AC80: 837784.5434 | AD80: 871295.9251 | AE80: 906147.7621 | AF80: 942393.6726 | AG80: 980089.4195 | AH80: 1019292.996 | AI80: 1060064.716 | AJ80: 1102467.305 | AK80: 1146565.997 | AL80: 1192428.637 | AM80: 1240125.782 | AN80: 1289730.814 | AO80: 1341320.046 | AP80: 1394972.848 | AQ80: 1450771.762 | AR80: 1508802.632 | AS80: 1569154.738 | AT80: 1631920.927 | AU80: 1697197.764 | AV80: 1765085.675
B81: Ingresos hospitalarios (respiratorios) | E81: =2336*10.777777777 -> 25176.88889 | F81: pesos/caso | G81: CEPAL-SEMARNAT | H81: =E81*(1+$D$13)^(H79-E79) -> 45342.15453 | I81: =IF(I78<=$D$53,H81*(1+$D$13),"") -> 47155.84071 | J81: 49042.07434 | K81: 51003.75731 | L81: 53043.90761 | M81: 55165.66391 | N81: 57372.29047 | O81: 59667.18209 | P81: 62053.86937 | Q81: 64536.02414 | R81: 67117.46511 | S81: 69802.16371 | T81: 72594.25026 | U81: 75498.02027 | V81: 78517.94108 | W81: 81658.65873 | X81: 84925.00508 | Y81: 88322.00528 | Z81: 91854.88549 | AA81: 95529.08091 | AB81: 99350.24415 | AC81: 103324.2539 | AD81: 107457.2241 | AE81: 111755.513 | AF81: 116225.7336 | AG81: 120874.7629 | AH81: 125709.7534 | AI81: 130738.1435 | AJ81: 135967.6693 | AK81: 141406.3761 | AL81: 147062.6311 | AM81: 152945.1363 | AN81: 159062.9418 | AO81: 165425.4595 | AP81: 172042.4779 | AQ81: 178924.177 | AR81: 186081.144 | AS81: 193524.3898 | AT81: 201265.3654 | AU81: 209315.98 | AV81: 217688.6192
B82: Ingresos hospitalarios (vasculares) | E82: =11621*10.777777777 -> 125248.5555 | F82: pesos/caso | G82: CEPAL-SEMARNAT | H82: =E82*(1+$D$13)^(H79-E79) -> 225565.5727 | I82: =IF(I78<=$D$53,H82*(1+$D$13),"") -> 234588.1956 | J82: =IF(J78<=$D$53,I82*(1+$D$13),"") -> 243971.7234 | K82: 253730.5924 | L82: 263879.816 | M82: 274435.0087 | N82: 285412.409 | O82: 296828.9054 | P82: 308702.0616 | Q82: 321050.1441 | R82: 333892.1498 | S82: 347247.8358 | T82: 361137.7493 | U82: 375583.2592 | V82: 390606.5896 | W82: 406230.8532 | X82: 422480.0873 | Y82: 439379.2908 | Z82: 456954.4624 | AA82: 475232.6409 | AB82: 494241.9466 | AC82: 514011.6244 | AD82: 534572.0894 | AE82: 555954.973 | AF82: 578193.1719 | AG82: 601320.8988 | AH82: 625373.7348 | AI82: 650388.6841 | AJ82: 676404.2315 | AK82: 703460.4008 | AL82: 731598.8168 | AM82: 760862.7695 | AN82: 791297.2802 | AO82: 822949.1715 | AP82: 855867.1383 | AQ82: 890101.8238 | AR82: 925705.8968 | AS82: 962734.1327 | AT82: 1001243.498 | AU82: 1041293.238 | AV82: 1082944.967
B83: Visitas a urgencias | E83: =288*10.77777 -> 3103.99776 | F83: pesos/caso | G83: CEPAL-SEMARNAT | H83: =E83*(1+$D$13)^(H79-E79) -> 5590.124607 | I83: =IF(I78<=$D$53,H83*(1+$D$13),"") -> 5813.729591 | J83: =IF(J78<=$D$53,I83*(1+$D$13),"") -> 6046.278775 | K83: 6288.129926 | L83: 6539.655123 | M83: 6801.241328 | N83: 7073.290981 | O83: 7356.22262 | P83: 7650.471525 | Q83: 7956.490386 | R83: 8274.750001 | S83: 8605.740002 | T83: 8949.969602 | U83: 9307.968386 | V83: 9680.287121 | W83: 10067.49861 | X83: 10470.19855 | Y83: 10889.00649 | Z83: 11324.56675 | AA83: 11777.54942 | AB83: 12248.6514 | AC83: 12738.59745 | AD83: 13248.14135 | AE83: 13778.06701 | AF83: 14329.18969 | AG83: 14902.35727 | AH83: 15498.45157 | AI83: 16118.38963 | AJ83: 16763.12521 | AK83: 17433.65022 | AL83: 18130.99623 | AM83: 18856.23608 | AN83: 19610.48552 | AO83: 20394.90494 | AP83: 21210.70114 | AQ83: 22059.12919 | AR83: 22941.49436 | AS83: 23859.15413 | AT83: 24813.52029 | AU83: 25806.06111 | AV83: 26838.30355
B84: Crisis aguda de asma | E84: =338*10.77 -> 3640.26 | F84: pesos/caso | G84: CEPAL-SEMARNAT | H84: =E84*(1+$D$13)^(H79-E79) -> 6555.902605 | I84: =IF(I78<=$D$53,H84*(1+$D$13),"") -> 6818.13871 | J84: =IF(J78<=$D$53,I84*(1+$D$13),"") -> 7090.864258 | K84: 7374.498828 | L84: 7669.478781 | M84: 7976.257933 | N84: 8295.30825 | O84: 8627.12058 | P84: 8972.205403 | Q84: 9331.093619 | R84: 9704.337364 | S84: 10092.51086 | T84: 10496.21129 | U84: 10916.05974 | V84: 11352.70213 | W84: 11806.81022 | X84: 12279.08263 | Y84: 12770.24593 | Z84: 13281.05577 | AA84: 13812.298 | AB84: 14364.78992 | AC84: 14939.38152 | AD84: 15536.95678 | AE84: 16158.43505 | AF84: 16804.77245 | AG84: 17476.96335 | AH84: 18176.04189 | AI84: 18903.08356 | AJ84: 19659.2069 | AK84: 20445.57518 | AL84: 21263.39819 | AM84: 22113.93411 | AN84: 22998.49148 | AO84: 23918.43114 | AP84: 24875.16838 | AQ84: 25870.17512 | AR84: 26904.98212 | AS84: 27981.18141 | AT84: 29100.42866 | AU84: 30264.44581 | AV84: 31475.02364
B86: PÉRDIDA DE PRODUCTIVIDAD
B87: Enfermedad | E87: Días | F87: Fuente | G87: Unidades | H87: Año
H88: 0 | I88: 1 | J88: 2 | K88: 3 | L88: 4 | M88: 5 | N88: 6 | O88: 7 | P88: 8 | Q88: 9 | R88: 10 | S88: 11 | T88: 12 | U88: 13 | V88: 14 | W88: 15 | X88: 16 | Y88: 17 | Z88: 18 | AA88: 19 | AB88: 20 | AC88: 21 | AD88: 22 | AE88: 23 | AF88: 24 | AG88: 25 | AH88: 26 | AI88: 27 | AJ88: 28 | AK88: 29 | AL88: 30 | AM88: 31 | AN88: 32 | AO88: 33 | AP88: 34 | AQ88: 35 | AR88: 36 | AS88: 37 | AT88: 38 | AU88: 39 | AV88: 40
H89: =D12 -> 2019 | I89: =H89+1 -> 2020 | J89: =I89+1 -> 2021 | K89: =J89+1 -> 2022 | L89: =K89+1 -> 2023 | M89: =L89+1 -> 2024 | N89: =M89+1 -> 2025 | O89: =N89+1 -> 2026 | P89: =O89+1 -> 2027 | Q89: =P89+1 -> 2028 | R89: =Q89+1 -> 2029 | S89: =R89+1 -> 2030 | T89: =S89+1 -> 2031 | U89: =T89+1 -> 2032 | V89: =U89+1 -> 2033 | W89: =V89+1 -> 2034 | X89: =W89+1 -> 2035 | Y89: =X89+1 -> 2036 | Z89: =Y89+1 -> 2037 | AA89: =Z89+1 -> 2038 | AB89: =AA89+1 -> 2039 | AC89: =AB89+1 -> 2040 | AD89: =AC89+1 -> 2041 | AE89: =AD89+1 -> 2042 | AF89: =AE89+1 -> 2043 | AG89: =AF89+1 -> 2044 | AH89: =AG89+1 -> 2045 | AI89: =AH89+1 -> 2046 | AJ89: =AI89+1 -> 2047 | AK89: =AJ89+1 -> 2048 | AL89: =AK89+1 -> 2049 | AM89: =AL89+1 -> 2050 | AN89: =AM89+1 -> 2051 | AO89: =AN89+1 -> 2052 | AP89: =AO89+1 -> 2053 | AQ89: =AP89+1 -> 2054 | AR89: =AQ89+1 -> 2055 | AS89: =AR89+1 -> 2056 | AT89: =AS89+1 -> 2057 | AU89: =AT89+1 -> 2058 | AV89: =AU89+1 -> 2059
B90: Bronquitis crónica | E90: 7 | F90: CEPAL-SEMARNAT | G90: pesos/caso | H90: =E90*D99*(1+D13)^(H89-D98) -> 2533.44 | I90: =IF(I88<=$D$53,H90*(1+$D$13),"") -> 2634.7776 | J90: 2740.168704 | K90: 2849.775452 | L90: 2963.76647 | M90: 3082.317129 | N90: 3205.609814 | O90: 3333.834207 | P90: 3467.187575 | Q90: 3605.875078 | R90: 3750.110081 | S90: 3900.114484 | T90: 4056.119064 | U90: 4218.363826 | V90: 4387.098379 | W90: 4562.582315 | X90: 4745.085607 | Y90: 4934.889031 | Z90: 5132.284593 | AA90: 5337.575976 | AB90: 5551.079015 | AC90: 5773.122176 | AD90: 6004.047063 | AE90: 6244.208946 | AF90: 6493.977304 | AG90: 6753.736396 | AH90: 7023.885851 | AI90: 7304.841286 | AJ90: 7597.034937 | AK90: 7900.916334 | AL90: 8216.952988 | AM90: 8545.631107 | AN90: 8887.456352 | AO90: 9242.954606 | AP90: 9612.67279 | AQ90: 9997.179701 | AR90: 10397.06689 | AS90: 10812.94957 | AT90: 11245.46755 | AU90: 11695.28625 | AV90: 12163.0977
B91: Días de actividad restringida | E91: 1 | F91: CEPAL-SEMARNAT | G91: pesos/caso | H91: =E91*D99*(1+D13)^(H89-D98) -> 361.92 | I91: =IF(I88<=$D$53,H91*(1+$D$13),"") -> 376.3968 | J91: 391.452672 | K91: 407.1107789 | L91: 423.39521 | M91: 440.3310184 | N91: 457.9442592 | O91: 476.2620295 | P91: 495.3125107 | Q91: 515.1250112 | R91: 535.7300116 | S91: 557.1592121 | T91: 579.4455805 | U91: 602.6234038 | V91: 626.7283399 | W91: 651.7974735 | X91: 677.8693725 | Y91: 704.9841474 | Z91: 733.1835132 | AA91: 762.5108538 | AB91: 793.0112879 | AC91: 824.7317394 | AD91: 857.721009 | AE91: 892.0298494 | AF91: 927.7110434 | AG91: 964.8194851 | AH91: 1003.412264 | AI91: 1043.548755 | AJ91: 1085.290705 | AK91: 1128.702333 | AL91: 1173.850427 | AM91: 1220.804444 | AN91: 1269.636622 | AO91: 1320.422087 | AP91: 1373.23897 | AQ91: 1428.168529 | AR91: 1485.29527 | AS91: 1544.707081 | AT91: 1606.495364 | AU91: 1670.755179 | AV91: 1737.585386
B92: Ingresos hospitalarios (respiratorios) | E92: 8 | F92: CEPAL-SEMARNAT | G92: pesos/caso | H92: =E92*D99*(1+D13)^(H89-D98) -> 2895.36 | I92: =IF(I88<=$D$53,H92*(1+$D$13),"") -> 3011.1744 | J92: 3131.621376 | K92: 3256.886231 | L92: 3387.16168 | M92: 3522.648147 | N92: 3663.554073 | O92: 3810.096236 | P92: 3962.500086 | Q92: 4121.000089 | R92: 4285.840093 | S92: 4457.273696 | T92: 4635.564644 | U92: 4820.98723 | V92: 5013.826719 | W92: 5214.379788 | X92: 5422.95498 | Y92: 5639.873179 | Z92: 5865.468106 | AA92: 6100.08683 | AB92: 6344.090303 | AC92: 6597.853916 | AD92: 6861.768072 | AE92: 7136.238795 | AF92: 7421.688347 | AG92: 7718.555881 | AH92: 8027.298116 | AI92: 8348.390041 | AJ92: 8682.325642 | AK92: 9029.618668 | AL92: 9390.803415 | AM92: 9766.435551 | AN92: 10157.09297 | AO92: 10563.37669 | AP92: 10985.91176 | AQ92: 11425.34823 | AR92: 11882.36216 | AS92: 12357.65665 | AT92: 12851.96291 | AU92: 13366.04143 | AV92: 13900.68309
B93: Ingresos hospitalarios (vasculares) | E93: 8 | F93: CEPAL-SEMARNAT | G93: pesos/caso | H93: =E93*D99*(1+D13)^(H89-D98) -> 2895.36 | I93: =IF(I88<=$D$53,H93*(1+$D$13),"") -> 3011.1744 | J93: =IF(J88<=$D$53,I93*(1+$D$13),"") -> 3131.621376 | K93: 3256.886231 | L93: 3387.16168 | M93: 3522.648147 | N93: 3663.554073 | O93: 3810.096236 | P93: 3962.500086 | Q93: 4121.000089 | R93: 4285.840093 | S93: 4457.273696 | T93: 4635.564644 | U93: 4820.98723 | V93: 5013.826719 | W93: 5214.379788 | X93: 5422.95498 | Y93: 5639.873179 | Z93: 5865.468106 | AA93: 6100.08683 | AB93: 6344.090303 | AC93: 6597.853916 | AD93: 6861.768072 | AE93: 7136.238795 | AF93: 7421.688347 | AG93: 7718.555881 | AH93: 8027.298116 | AI93: 8348.390041 | AJ93: 8682.325642 | AK93: 9029.618668 | AL93: 9390.803415 | AM93: 9766.435551 | AN93: 10157.09297 | AO93: 10563.37669 | AP93: 10985.91176 | AQ93: 11425.34823 | AR93: 11882.36216 | AS93: 12357.65665 | AT93: 12851.96291 | AU93: 13366.04143 | AV93: 13900.68309
B94: Visitas a urgencias | E94: 5 | F94: CEPAL-SEMARNAT | G94: pesos/caso | H94: =E94*D99*(1+D13)^(H89-D98) -> 1809.6 | I94: =IF(I88<=$D$53,H94*(1+$D$13),"") -> 1881.984 | J94: =IF(J88<=$D$53,I94*(1+$D$13),"") -> 1957.26336 | K94: 2035.553894 | L94: 2116.97605 | M94: 2201.655092 | N94: 2289.721296 | O94: 2381.310148 | P94: 2476.562554 | Q94: 2575.625056 | R94: 2678.650058 | S94: 2785.79606 | T94: 2897.227903 | U94: 3013.117019 | V94: 3133.6417 | W94: 3258.987368 | X94: 3389.346862 | Y94: 3524.920737 | Z94: 3665.917566 | AA94: 3812.554269 | AB94: 3965.05644 | AC94: 4123.658697 | AD94: 4288.605045 | AE94: 4460.149247 | AF94: 4638.555217 | AG94: 4824.097425 | AH94: 5017.061322 | AI94: 5217.743775 | AJ94: 5426.453526 | AK94: 5643.511667 | AL94: 5869.252134 | AM94: 6104.02222 | AN94: 6348.183108 | AO94: 6602.110433 | AP94: 6866.19485 | AQ94: 7140.842644 | AR94: 7426.47635 | AS94: 7723.535404 | AT94: 8032.47682 | AU94: 8353.775893 | AV94: 8687.926928
B95: Crisis de asma | E95: 1 | F95: CEPAL-SEMARNAT | G95: pesos/caso | H95: =E95*D99*(1+D13)^(H89-D98) -> 361.92 | I95: =IF(I88<=$D$53,H95*(1+$D$13),"") -> 376.3968 | J95: =IF(J88<=$D$53,I95*(1+$D$13),"") -> 391.452672 | K95: 407.1107789 | L95: 423.39521 | M95: 440.3310184 | N95: 457.9442592 | O95: 476.2620295 | P95: 495.3125107 | Q95: 515.1250112 | R95: 535.7300116 | S95: 557.1592121 | T95: 579.4455805 | U95: 602.6234038 | V95: 626.7283399 | W95: 651.7974735 | X95: 677.8693725 | Y95: 704.9841474 | Z95: 733.1835132 | AA95: 762.5108538 | AB95: 793.0112879 | AC95: 824.7317394 | AD95: 857.721009 | AE95: 892.0298494 | AF95: 927.7110434 | AG95: 964.8194851 | AH95: 1003.412264 | AI95: 1043.548755 | AJ95: 1085.290705 | AK95: 1128.702333 | AL95: 1173.850427 | AM95: 1220.804444 | AN95: 1269.636622 | AO95: 1320.422087 | AP95: 1373.23897 | AQ95: 1428.168529 | AR95: 1485.29527 | AS95: 1544.707081 | AT95: 1606.495364 | AU95: 1670.755179 | AV95: 1737.585386
B97: Variable | D97: Año | E97: Unidades | F97: Fuente
D98: 2018
B99: Ingreso diario promedio | D99: 348 | E99: pesos/día | F99: IMSS
B101: VOLUNTAD A PAGAR
B102: Enfermedad | E102: Año | F102: Unidades | G102: Fuente | H102: Año
H103: 0 | I103: 1 | J103: 2 | K103: 3 | L103: 4 | M103: 5 | N103: 6 | O103: 7 | P103: 8 | Q103: 9 | R103: 10 | S103: 11 | T103: 12 | U103: 13 | V103: 14 | W103: 15 | X103: 16 | Y103: 17 | Z103: 18 | AA103: 19 | AB103: 20 | AC103: 21 | AD103: 22 | AE103: 23 | AF103: 24 | AG103: 25 | AH103: 26 | AI103: 27 | AJ103: 28 | AK103: 29 | AL103: 30 | AM103: 31 | AN103: 32 | AO103: 33 | AP103: 34 | AQ103: 35 | AR103: 36 | AS103: 37 | AT103: 38 | AU103: 39 | AV103: 40
E104: 2004 | H104: =D12 -> 2019 | I104: =H104+1 -> 2020 | J104: =I104+1 -> 2021 | K104: =J104+1 -> 2022 | L104: =K104+1 -> 2023 | M104: =L104+1 -> 2024 | N104: =M104+1 -> 2025 | O104: =N104+1 -> 2026 | P104: =O104+1 -> 2027 | Q104: =P104+1 -> 2028 | R104: =Q104+1 -> 2029 | S104: =R104+1 -> 2030 | T104: =S104+1 -> 2031 | U104: =T104+1 -> 2032 | V104: =U104+1 -> 2033 | W104: =V104+1 -> 2034 | X104: =W104+1 -> 2035 | Y104: =X104+1 -> 2036 | Z104: =Y104+1 -> 2037 | AA104: =Z104+1 -> 2038 | AB104: =AA104+1 -> 2039 | AC104: =AB104+1 -> 2040 | AD104: =AC104+1 -> 2041 | AE104: =AD104+1 -> 2042 | AF104: =AE104+1 -> 2043 | AG104: =AF104+1 -> 2044 | AH104: =AG104+1 -> 2045 | AI104: =AH104+1 -> 2046 | AJ104: =AI104+1 -> 2047 | AK104: =AJ104+1 -> 2048 | AL104: =AK104+1 -> 2049 | AM104: =AL104+1 -> 2050 | AN104: =AM104+1 -> 2051 | AO104: =AN104+1 -> 2052 | AP104: =AO104+1 -> 2053 | AQ104: =AP104+1 -> 2054 | AR104: =AQ104+1 -> 2055 | AS104: =AR104+1 -> 2056 | AT104: =AS104+1 -> 2057 | AU104: =AT104+1 -> 2058 | AV104: =AU104+1 -> 2059
B105: Bronquitis crónica | E105: =80188*10.777777777 -> 864248.4444 | F105: pesos/caso | G105: CEPAL-SEMARNAT | H105: =E105*(1+$D$13)^(H104-E104) -> 1556462.623 | I105: =IF(I103<=$D$53,H105*(1+$D$13),"") -> 1618721.128 | J105: 1683469.973 | K105: 1750808.772 | L105: 1820841.123 | M105: 1893674.768 | N105: 1969421.759 | O105: 2048198.629 | P105: 2130126.574 | Q105: 2215331.637 | R105: 2303944.902 | S105: 2396102.699 | T105: 2491946.807 | U105: 2591624.679 | V105: 2695289.666 | W105: 2803101.253 | X105: 2915225.303 | Y105: 3031834.315 | Z105: 3153107.687 | AA105: 3279231.995 | AB105: 3410401.275 | AC105: 3546817.326 | AD105: 3688690.019 | AE105: 3836237.619 | AF105: 3989687.124 | AG105: 4149274.609 | AH105: 4315245.594 | AI105: 4487855.417 | AJ105: 4667369.634 | AK105: 4854064.419 | AL105: 5048226.996 | AM105: 5250156.076 | AN105: 5460162.319 | AO105: 5678568.812 | AP105: 5905711.564 | AQ105: 6141940.027 | AR105: 6387617.628 | AS105: 6643122.333 | AT105: 6908847.226 | AU105: 7185201.115 | AV105: 7472609.16
B106: Días de actividad restringida | E106: =20*10.777777 -> 215.55554 | F106: pesos/caso | G106: CEPAL-SEMARNAT | H106: =E106*(1+$D$13)^(H104-E104) -> 388.2033498 | I106: =IF(I103<=$D$53,H106*(1+$D$13),"") -> 403.7314838 | J106: 419.8807432 | K106: 436.6759729 | L106: 454.1430118 | M106: 472.3087323 | N106: 491.2010816 | O106: 510.8491249 | P106: 531.2830899 | Q106: 552.5344134 | R106: 574.63579 | S106: 597.6212216 | T106: 621.5260704 | U106: 646.3871133 | V106: 672.2425978 | W106: 699.1323017 | X106: 727.0975938 | Y106: 756.1814975 | Z106: 786.4287574 | AA106: 817.8859077 | AB106: 850.601344 | AC106: 884.6253978 | AD106: 920.0104137 | AE106: 956.8108303 | AF106: 995.0832635 | AG106: 1034.886594 | AH106: 1076.282058 | AI106: 1119.33334 | AJ106: 1164.106674 | AK106: 1210.670941 | AL106: 1259.097778 | AM106: 1309.461689 | AN106: 1361.840157 | AO106: 1416.313763 | AP106: 1472.966314 | AQ106: 1531.884966 | AR106: 1593.160365 | AS106: 1656.88678 | AT106: 1723.162251 | AU106: 1792.088741 | AV106: 1863.77229
B107: Ingresos hospitalarios (respiratorios) | E107: =188*10.777777777 -> 2026.222222 | F107: pesos/caso | G107: CEPAL-SEMARNAT | H107: =E107*(1+$D$13)^(H104-E104) -> 3649.111752 | I107: =IF(I103<=$D$53,H107*(1+$D$13),"") -> 3795.076222 | J107: 3946.87927 | K107: 4104.754441 | L107: 4268.944619 | M107: 4439.702404 | N107: 4617.2905 | O107: 4801.98212 | P107: 4994.061405 | Q107: 5193.823861 | R107: 5401.576815 | S107: 5617.639888 | T107: 5842.345483 | U107: 6076.039303 | V107: 6319.080875 | W107: 6571.84411 | X107: 6834.717874 | Y107: 7108.106589 | Z107: 7392.430853 | AA107: 7688.128087 | AB107: 7995.65321 | AC107: 8315.479339 | AD107: 8648.098512 | AE107: 8994.022453 | AF107: 9353.783351 | AG107: 9727.934685 | AH107: 10117.05207 | AI107: 10521.73416 | AJ107: 10942.60352 | AK107: 11380.30766 | AL107: 11835.51997 | AM107: 12308.94077 | AN107: 12801.2984 | AO107: 13313.35033 | AP107: 13845.88435 | AQ107: 14399.71972 | AR107: 14975.70851 | AS107: 15574.73685 | AT107: 16197.72632 | AU107: 16845.63538 | AV107: 17519.46079
B108: Ingresos hospitalarios (vasculares) | E108: =188*10.777777777 -> 2026.222222 | F108: pesos/caso | G108: CEPAL-SEMARNAT | H108: =E108*(1+$D$13)^(H104-E104) -> 3649.111752 | I108: =IF(I103<=$D$53,H108*(1+$D$13),"") -> 3795.076222 | J108: =IF(J103<=$D$53,I108*(1+$D$13),"") -> 3946.87927 | K108: 4104.754441 | L108: 4268.944619 | M108: 4439.702404 | N108: 4617.2905 | O108: 4801.98212 | P108: 4994.061405 | Q108: 5193.823861 | R108: 5401.576815 | S108: 5617.639888 | T108: 5842.345483 | U108: 6076.039303 | V108: 6319.080875 | W108: 6571.84411 | X108: 6834.717874 | Y108: 7108.106589 | Z108: 7392.430853 | AA108: 7688.128087 | AB108: 7995.65321 | AC108: 8315.479339 | AD108: 8648.098512 | AE108: 8994.022453 | AF108: 9353.783351 | AG108: 9727.934685 | AH108: 10117.05207 | AI108: 10521.73416 | AJ108: 10942.60352 | AK108: 11380.30766 | AL108: 11835.51997 | AM108: 12308.94077 | AN108: 12801.2984 | AO108: 13313.35033 | AP108: 13845.88435 | AQ108: 14399.71972 | AR108: 14975.70851 | AS108: 15574.73685 | AT108: 16197.72632 | AU108: 16845.63538 | AV108: 17519.46079
B109: Visitas a urgencias | E109: =97*10.77777 -> 1045.44369 | F109: pesos/caso | G109: CEPAL-SEMARNAT | H109: =E109*(1+$D$13)^(H104-E104) -> 1882.785024 | I109: =IF(I103<=$D$53,H109*(1+$D$13),"") -> 1958.096425 | J109: =IF(J103<=$D$53,I109*(1+$D$13),"") -> 2036.420282 | K109: 2117.877093 | L109: 2202.592177 | M109: 2290.695864 | N109: 2382.323698 | O109: 2477.616646 | P109: 2576.721312 | Q109: 2679.790165 | R109: 2786.981771 | S109: 2898.461042 | T109: 3014.399484 | U109: 3134.975463 | V109: 3260.374482 | W109: 3390.789461 | X109: 3526.421039 | Y109: 3667.477881 | Z109: 3814.176996 | AA109: 3966.744076 | AB109: 4125.413839 | AC109: 4290.430393 | AD109: 4462.047608 | AE109: 4640.529513 | AF109: 4826.150693 | AG109: 5019.196721 | AH109: 5219.96459 | AI109: 5428.763173 | AJ109: 5645.9137 | AK109: 5871.750248 | AL109: 6106.620258 | AM109: 6350.885069 | AN109: 6604.920471 | AO109: 6869.11729 | AP109: 7143.881982 | AQ109: 7429.637261 | AR109: 7726.822752 | AS109: 8035.895662 | AT109: 8357.331488 | AU109: 8691.624748 | AV109: 9039.289738
B110: Crisis de asma | E110: =87*10.77777 -> 937.66599 | F110: pesos/caso | G110: CEPAL-SEMARNAT | H110: =E110*(1+$D$13)^(H104-E104) -> 1688.683475 | I110: =IF(I103<=$D$53,H110*(1+$D$13),"") -> 1756.230814 | J110: =IF(J103<=$D$53,I110*(1+$D$13),"") -> 1826.480047 | K110: 1899.539248 | L110: 1975.520818 | M110: 2054.541651 | N110: 2136.723317 | O110: 2222.19225 | P110: 2311.07994 | Q110: 2403.523137 | R110: 2499.664063 | S110: 2599.650625 | T110: 2703.63665 | U110: 2811.782116 | V110: 2924.253401 | W110: 3041.223537 | X110: 3162.872479 | Y110: 3289.387378 | Z110: 3420.962873 | AA110: 3557.801388 | AB110: 3700.113443 | AC110: 3848.117981 | AD110: 4002.0427 | AE110: 4162.124408 | AF110: 4328.609385 | AG110: 4501.75376 | AH110: 4681.823911 | AI110: 4869.096867 | AJ110: 5063.860742 | AK110: 5266.415171 | AL110: 5477.071778 | AM110: 5696.154649 | AN110: 5924.000835 | AO110: 6160.960869 | AP110: 6407.399303 | AQ110: 6663.695276 | AR110: 6930.243087 | AS110: 7207.45281 | AT110: 7495.750922 | AU110: 7795.580959 | AV110: 8107.404198
B112: MORTALIDAD POR EXPOSICIÓN
B113: Enfermedad | E113: Valor año de vida perdido | F113: Unidades | G113: Años de vida perdidos | H113: Fuente | I113: Año
E114: Año | I114: 0 | J114: 1 | K114: 2 | L114: 3 | M114: 4 | N114: 5 | O114: 6 | P114: 7 | Q114: 8 | R114: 9 | S114: 10 | T114: 11 | U114: 12 | V114: 13 | W114: 14 | X114: 15 | Y114: 16 | Z114: 17 | AA114: 18 | AB114: 19 | AC114: 20 | AD114: 21 | AE114: 22 | AF114: 23 | AG114: 24 | AH114: 25 | AI114: 26 | AJ114: 27 | AK114: 28 | AL114: 29 | AM114: 30 | AN114: 31 | AO114: 32 | AP114: 33 | AQ114: 34 | AR114: 35 | AS114: 36 | AT114: 37 | AU114: 38 | AV114: 39 | AW114: 40
E115: 2004 | I115: =D12 -> 2019 | J115: =I115+1 -> 2020 | K115: =J115+1 -> 2021 | L115: =K115+1 -> 2022 | M115: =L115+1 -> 2023 | N115: =M115+1 -> 2024 | O115: =N115+1 -> 2025 | P115: =O115+1 -> 2026 | Q115: =P115+1 -> 2027 | R115: =Q115+1 -> 2028 | S115: =R115+1 -> 2029 | T115: =S115+1 -> 2030 | U115: =T115+1 -> 2031 | V115: =U115+1 -> 2032 | W115: =V115+1 -> 2033 | X115: =W115+1 -> 2034 | Y115: =X115+1 -> 2035 | Z115: =Y115+1 -> 2036 | AA115: =Z115+1 -> 2037 | AB115: =AA115+1 -> 2038 | AC115: =AB115+1 -> 2039 | AD115: =AC115+1 -> 2040 | AE115: =AD115+1 -> 2041 | AF115: =AE115+1 -> 2042 | AG115: =AF115+1 -> 2043 | AH115: =AG115+1 -> 2044 | AI115: =AH115+1 -> 2045 | AJ115: =AI115+1 -> 2046 | AK115: =AJ115+1 -> 2047 | AL115: =AK115+1 -> 2048 | AM115: =AL115+1 -> 2049 | AN115: =AM115+1 -> 2050 | AO115: =AN115+1 -> 2051 | AP115: =AO115+1 -> 2052 | AQ115: =AP115+1 -> 2053 | AR115: =AQ115+1 -> 2054 | AS115: =AR115+1 -> 2055 | AT115: =AS115+1 -> 2056 | AU115: =AT115+1 -> 2057 | AV115: =AU115+1 -> 2058 | AW115: =AV115+1 -> 2059
B116: Mortalidad por exposición aguda | E116: =22917*10.7777 -> 246992.5509 | F116: pesos/caso | G116: 0.5 | H116: CEPAL-SEMARNAT | I116: =(E116*G116)*(1+$D$13)^(I115-E115) -> 222409.8152 | J116: =IF(J114<=$D$53,I116*(1+$D$13),"") -> 231306.2078 | K116: 240558.4561 | L116: 250180.7944 | M116: 260188.0262 | N116: 270595.5472 | O116: 281419.3691 | P116: 292676.1439 | Q116: 304383.1896 | R116: 316558.5172 | S116: 329220.8579 | T116: 342389.6922 | U116: 356085.2799 | V116: 370328.6911 | W116: 385141.8387 | X116: 400547.5123 | Y116: 416569.4128 | Z116: 433232.1893 | AA116: 450561.4769 | AB116: 468583.9359 | AC116: 487327.2934 | AD116: 506820.3851 | AE116: 527093.2005 | AF116: 548176.9285 | AG116: 570104.0057 | AH116: 592908.1659 | AI116: 616624.4925 | AJ116: 641289.4722 | AK116: 666941.0511 | AL116: 693618.6932 | AM116: 721363.4409 | AN116: 750217.9785 | AO116: 780226.6977 | AP116: 811435.7656 | AQ116: 843893.1962 | AR116: 877648.9241 | AS116: 912754.881 | AT116: 949265.0763 | AU116: 987235.6793 | AV116: 1026725.106 | AW116: 1067794.111
B117: Mortalidad por exposición crónica | E117: =13327*10.777 -> 143625.079 | F117: pesos/caso | G117: 10 | H117: CEPAL-SEMARNAT | I117: =(E117*G117)*(1+$D$13)^(I115-E115) -> 2586606.533 | J117: =IF(J114<=$D$53,I117*(1+$D$13),"") -> 2690070.794 | K117: 2797673.626 | L117: 2909580.571 | M117: 3025963.793 | N117: 3147002.345 | O117: 3272882.439 | P117: 3403797.737 | Q117: 3539949.646 | R117: 3681547.632 | S117: 3828809.537 | T117: 3981961.919 | U117: 4141240.395 | V117: 4306890.011 | W117: 4479165.612 | X117: 4658332.236 | Y117: 4844665.526 | Z117: 5038452.147 | AA117: 5239990.232 | AB117: 5449589.842 | AC117: 5667573.435 | AD117: 5894276.373 | AE117: 6130047.428 | AF117: 6375249.325 | AG117: 6630259.298 | AH117: 6895469.67 | AI117: 7171288.456 | AJ117: 7458139.995 | AK117: 7756465.595 | AL117: 8066724.218 | AM117: 8389393.187 | AN117: 8724968.915 | AO117: 9073967.671 | AP117: 9436926.378 | AQ117: 9814403.433 | AR117: 10206979.57 | AS117: 10615258.75 | AT117: 11039869.1 | AU117: 11481463.87 | AV117: 11940722.42 | AW117: 12418351.32
B119: COSTOS TOTALES POR CASO
B120: Enfermedad | E120: Costo total | F120: Año
F121: 0 | G121: 1 | H121: 2 | I121: 3 | J121: 4 | K121: 5 | L121: 6 | M121: 7 | N121: 8 | O121: 9 | P121: 10 | Q121: 11 | R121: 12 | S121: 13 | T121: 14 | U121: 15 | V121: 16 | W121: 17 | X121: 18 | Y121: 19 | Z121: 20 | AA121: 21 | AB121: 22 | AC121: 23 | AD121: 24 | AE121: 25 | AF121: 26 | AG121: 27 | AH121: 28 | AI121: 29 | AJ121: 30 | AK121: 31 | AL121: 32 | AM121: 33 | AN121: 34 | AO121: 35 | AP121: 36 | AQ121: 37 | AR121: 38 | AS121: 39 | AT121: 40
E122: Unidades | F122: =D12 -> 2019 | G122: =F122+1 -> 2020 | H122: =G122+1 -> 2021 | I122: =H122+1 -> 2022 | J122: =I122+1 -> 2023 | K122: =J122+1 -> 2024 | L122: =K122+1 -> 2025 | M122: =L122+1 -> 2026 | N122: =M122+1 -> 2027 | O122: =N122+1 -> 2028 | P122: =O122+1 -> 2029 | Q122: =P122+1 -> 2030 | R122: =Q122+1 -> 2031 | S122: =R122+1 -> 2032 | T122: =S122+1 -> 2033 | U122: =T122+1 -> 2034 | V122: =U122+1 -> 2035 | W122: =V122+1 -> 2036 | X122: =W122+1 -> 2037 | Y122: =X122+1 -> 2038 | Z122: =Y122+1 -> 2039 | AA122: =Z122+1 -> 2040 | AB122: =AA122+1 -> 2041 | AC122: =AB122+1 -> 2042 | AD122: =AC122+1 -> 2043 | AE122: =AD122+1 -> 2044 | AF122: =AE122+1 -> 2045 | AG122: =AF122+1 -> 2046 | AH122: =AG122+1 -> 2047 | AI122: =AH122+1 -> 2048 | AJ122: =AI122+1 -> 2049 | AK122: =AJ122+1 -> 2050 | AL122: =AK122+1 -> 2051 | AM122: =AL122+1 -> 2052 | AN122: =AM122+1 -> 2053 | AO122: =AN122+1 -> 2054 | AP122: =AO122+1 -> 2055 | AQ122: =AP122+1 -> 2056 | AR122: =AQ122+1 -> 2057 | AS122: =AR122+1 -> 2058 | AT122: =AS122+1 -> 2059
B123: Bronquitis crónica | E123: pesos/caso | F123: =H80+H90+H105 -> 1926644.072 | G123: =IF(G121<=$D$53,F123*(1+$D$13),"") -> 2003709.835 | H123: 2083858.228 | I123: 2167212.557 | J123: 2253901.06 | K123: 2344057.102 | L123: 2437819.386 | M123: 2535332.162 | N123: 2636745.448 | O123: 2742215.266 | P123: 2851903.877 | Q123: 2965980.032 | R123: 3084619.233 | S123: 3208004.002 | T123: 3336324.162 | U123: 3469777.129 | V123: 3608568.214 | W123: 3752910.943 | X123: 3903027.38 | Y123: 4059148.476 | Z123: 4221514.415 | AA123: 4390374.991 | AB123: 4565989.991 | AC123: 4748629.59 | AD123: 4938574.774 | AE123: 5136117.765 | AF123: 5341562.476 | AG123: 5555224.975 | AH123: 5777433.974 | AI123: 6008531.333 | AJ123: 6248872.586 | AK123: 6498827.489 | AL123: 6758780.589 | AM123: 7029131.812 | AN123: 7310297.085 | AO123: 7602708.968 | AP123: 7906817.327 | AQ123: 8223090.02 | AR123: 8552013.621 | AS123: 8894094.166 | AT123: 9249857.932
B124: Días de actividad restringida | E124: pesos/caso | F124: =H91+H106 -> 750.1233498 | G124: =IF(G121<=$D$53,F124*(1+$D$13),"") -> 780.1282838 | H124: 811.3334152 | I124: 843.7867518 | J124: 877.5382219 | K124: 912.6397507 | L124: 949.1453408 | M124: 987.1111544 | N124: 1026.595601 | O124: 1067.659425 | P124: 1110.365802 | Q124: 1154.780434 | R124: 1200.971651 | S124: 1249.010517 | T124: 1298.970938 | U124: 1350.929775 | V124: 1404.966966 | W124: 1461.165645 | X124: 1519.612271 | Y124: 1580.396762 | Z124: 1643.612632 | AA124: 1709.357137 | AB124: 1777.731423 | AC124: 1848.84068 | AD124: 1922.794307 | AE124: 1999.706079 | AF124: 2079.694322 | AG124: 2162.882095 | AH124: 2249.397379 | AI124: 2339.373274 | AJ124: 2432.948205 | AK124: 2530.266133 | AL124: 2631.476779 | AM124: 2736.73585 | AN124: 2846.205284 | AO124: 2960.053495 | AP124: 3078.455635 | AQ124: 3201.59386 | AR124: 3329.657615 | AS124: 3462.843919 | AT124: 3601.357676
B125: Ingresos hospitalarios (respiratorios) | E125: pesos/caso | F125: =H81+H92+H107 -> 51886.62628 | G125: =IF(G121<=$D$53,F125*(1+$D$13),"") -> 53962.09133 | H125: 56120.57499 | I125: 58365.39799 | J125: 60700.01391 | K125: 63128.01446 | L125: 65653.13504 | M125: 68279.26044 | N125: 71010.43086 | O125: 73850.84809 | P125: 76804.88202 | Q125: 79877.0773 | R125: 83072.16039 | S125: 86395.04681 | T125: 89850.84868 | U125: 93444.88262 | V125: 97182.67793 | W125: 101069.985 | X125: 105112.7844 | Y125: 109317.2958 | Z125: 113689.9877 | AA125: 118237.5872 | AB125: 122967.0907 | AC125: 127885.7743 | AD125: 133001.2052 | AE125: 138321.2535 | AF125: 143854.1036 | AG125: 149608.2677 | AH125: 155592.5985 | AI125: 161816.3024 | AJ125: 168288.9545 | AK125: 175020.5127 | AL125: 182021.3332 | AM125: 189302.1865 | AN125: 196874.274 | AO125: 204749.2449 | AP125: 212939.2147 | AQ125: 221456.7833 | AR125: 230315.0546 | AS125: 239527.6568 | AT125: 249108.7631
B126: Ingresos hospitalarios (vasculares) | E126: pesos/caso | F126: =H82+H93+H108 -> 232110.0444 | G126: =IF(G121<=$D$53,F126*(1+$D$13),"") -> 241394.4462 | H126: =IF(H121<=$D$53,G126*(1+$D$13),"") -> 251050.2241 | I126: 261092.233 | J126: 271535.9223 | K126: 282397.3592 | L126: 293693.2536 | M126: 305440.9838 | N126: 317658.6231 | O126: 330364.968 | P126: 343579.5668 | Q126: 357322.7494 | R126: 371615.6594 | S126: 386480.2858 | T126: 401939.4972 | U126: 418017.0771 | V126: 434737.7602 | W126: 452127.2706 | X126: 470212.3614 | Y126: 489020.8559 | Z126: 508581.6901 | AA126: 528924.9577 | AB126: 550081.956 | AC126: 572085.2342 | AD126: 594968.6436 | AE126: 618767.3894 | AF126: 643518.0849 | AG126: 669258.8083 | AH126: 696029.1607 | AI126: 723870.3271 | AJ126: 752825.1402 | AK126: 782938.1458 | AL126: 814255.6716 | AM126: 846825.8985 | AN126: 880698.9344 | AO126: 915926.8918 | AP126: 952563.9675 | AQ126: 990666.5262 | AR126: 1030293.187 | AS126: 1071504.915 | AT126: 1114365.111
B127: Visitas a urgencias | E127: pesos/caso | F127: =H83+H94+H109 -> 9282.509631 | G127: =IF(G121<=$D$53,F127*(1+$D$13),"") -> 9653.810016 | H127: =IF(H121<=$D$53,G127*(1+$D$13),"") -> 10039.96242 | I127: 10441.56091 | J127: 10859.22335 | K127: 11293.59228 | L127: 11745.33598 | M127: 12215.14941 | N127: 12703.75539 | O127: 13211.90561 | P127: 13740.38183 | Q127: 14289.9971 | R127: 14861.59699 | S127: 15456.06087 | T127: 16074.3033 | U127: 16717.27543 | V127: 17385.96645 | W127: 18081.40511 | X127: 18804.66131 | Y127: 19556.84777 | Z127: 20339.12168 | AA127: 21152.68654 | AB127: 21998.79401 | AC127: 22878.74577 | AD127: 23793.8956 | AE127: 24745.65142 | AF127: 25735.47748 | AG127: 26764.89658 | AH127: 27835.49244 | AI127: 28948.91214 | AJ127: 30106.86862 | AK127: 31311.14337 | AL127: 32563.5891 | AM127: 33866.13267 | AN127: 35220.77797 | AO127: 36629.60909 | AP127: 38094.79346 | AQ127: 39618.58519 | AR127: 41203.3286 | AS127: 42851.46175 | AT127: 44565.52022
B128: Crisis aguda de asma | E128: pesos/caso | F128: =H84+H95+H110 -> 8606.50608 | G128: =IF(G121<=$D$53,F128*(1+$D$13),"") -> 8950.766324 | H128: =IF(H121<=$D$53,G128*(1+$D$13),"") -> 9308.796977 | I128: 9681.148856 | J128: 10068.39481 | K128: 10471.1306 | L128: 10889.97583 | M128: 11325.57486 | N128: 11778.59785 | O128: 12249.74177 | P128: 12739.73144 | Q128: 13249.3207 | R128: 13779.29352 | S128: 14330.46526 | T128: 14903.68388 | U128: 15499.83123 | V128: 16119.82448 | W128: 16764.61746 | X128: 17435.20216 | Y128: 18132.61024 | Z128: 18857.91465 | AA128: 19612.23124 | AB128: 20396.72049 | AC128: 21212.58931 | AD128: 22061.09288 | AE128: 22943.5366 | AF128: 23861.27806 | AG128: 24815.72918 | AH128: 25808.35835 | AI128: 26840.69268 | AJ128: 27914.32039 | AK128: 29030.89321 | AL128: 30192.12894 | AM128: 31399.81409 | AN128: 32655.80666 | AO128: 33962.03892 | AP128: 35320.52048 | AQ128: 36733.3413 | AR128: 38202.67495 | AS128: 39730.78195 | AT128: 41320.01323
B129: Mortalidad por exposición aguda | E129: pesos/caso | F129: =I116 -> 222409.8152 | G129: =IF(G121<=$D$53,F129*(1+$D$13),"") -> 231306.2078 | H129: 240558.4561 | I129: 250180.7944 | J129: 260188.0262 | K129: 270595.5472 | L129: 281419.3691 | M129: 292676.1439 | N129: 304383.1896 | O129: 316558.5172 | P129: 329220.8579 | Q129: 342389.6922 | R129: 356085.2799 | S129: 370328.6911 | T129: 385141.8387 | U129: 400547.5123 | V129: 416569.4128 | W129: 433232.1893 | X129: 450561.4769 | Y129: 468583.9359 | Z129: 487327.2934 | AA129: 506820.3851 | AB129: 527093.2005 | AC129: 548176.9285 | AD129: 570104.0057 | AE129: 592908.1659 | AF129: 616624.4925 | AG129: 641289.4722 | AH129: 666941.0511 | AI129: 693618.6932 | AJ129: 721363.4409 | AK129: 750217.9785 | AL129: 780226.6977 | AM129: 811435.7656 | AN129: 843893.1962 | AO129: 877648.9241 | AP129: 912754.881 | AQ129: 949265.0763 | AR129: 987235.6793 | AS129: 1026725.106 | AT129: 1067794.111
B130: Mortalidad por exposición crónica | E130: pesos/caso | F130: =I117 -> 2586606.533 | G130: =IF(G121<=$D$53,F130*(1+$D$13),"") -> 2690070.794 | H130: 2797673.626 | I130: 2909580.571 | J130: 3025963.793 | K130: 3147002.345 | L130: 3272882.439 | M130: 3403797.737 | N130: 3539949.646 | O130: 3681547.632 | P130: 3828809.537 | Q130: 3981961.919 | R130: 4141240.395 | S130: 4306890.011 | T130: 4479165.612 | U130: 4658332.236 | V130: 4844665.526 | W130: 5038452.147 | X130: 5239990.232 | Y130: 5449589.842 | Z130: 5667573.435 | AA130: 5894276.373 | AB130: 6130047.428 | AC130: 6375249.325 | AD130: 6630259.298 | AE130: 6895469.67 | AF130: 7171288.456 | AG130: 7458139.995 | AH130: 7756465.595 | AI130: 8066724.218 | AJ130: 8389393.187 | AK130: 8724968.915 | AL130: 9073967.671 | AM130: 9436926.378 | AN130: 9814403.433 | AO130: 10206979.57 | AP130: 10615258.75 | AQ130: 11039869.1 | AR130: 11481463.87 | AS130: 11940722.42 | AT130: 12418351.32
B132: COEFICIENTES DE AJUSTE
B133: Factores de ajuste | K133: Fuente
B134: Símbolo | C134: Significado | H134: Valor | J134: Unidades
B135: ρREG | C135: Densidad poblacional regional | H135: ='Base Localidades'!I2207 -> 2.59598519e-05 | J135: personas/m2 | K135: INEGI
B136: ρREG_REF | C136: Tomado del promedio nacional | H136: ='Base Localidades'!AG2208 -> 8e-05 | J136: personas/m2 | K136: OIEA
B137: ρLOCAL | C137: Densidad poblacional local | H137: ='Base Localidades'!G2207 -> 1.993418339e-07 | J137: personas/m2 | K137: INEGI
B138: ρLOCAL_REF | C138: Tomado del promedio nacional | H138: ='Base Localidades'!AG2207 -> 5.6e-05 | J138: personas/m2 | K138: OIEA
B139: γLOCAL | C139: Fracción del impacto total correspondiente al dominio local | H139: =IF((H137/H135)>1,0.85,0.2574*(H137/H135)^0.4715) -> 0.02591347878 | K139: INEGI
B140: γLOCAL_REF | C140: Tomado del promedio nacional local y regional | H140: =IF((H138/H136)>1,0.85,0.2574*(H138/H136)^0.4715) -> 0.2175566027 | K140: OIEA
B141: kSO2 | C141: Velocidad de decaimiento del SO2 | H141: =C24 -> 0.0073 | J141: m/s | K141: OIEA
B142: kNOx | C142: Velocidad de decaimiento del NOx | H142: =C25 -> 0.0147 | J142: m/s | K142: OIEA
B143: kPM10 | C143: Velocidad de decaimiento del PM10 | H143: =C22 -> 0.0067 | J143: m/s | K143: OIEA
B144: kREF | C144: Velocidad de decaimiento de referencia | H144: 0.0064 | J144: m/s | K144: OIEA
B145: FGASES | C145: Flujo de los gases estimado | H145: 61.126 | J145: Nm3/s | K145: OIEA
B146: FREF | C146: Flujo de los gases de referencia | H146: 61.126 | J146: Nm3/s | K146: OIEA
B147: TGASES | C147: Temperatura de los gases estimada | H147: 413 | J147: K | K147: OIEA
B148: TREF | C148: Temperatura de los gases referencia | H148: 413 | J148: K | K148: OIEA
B149: hS | C149: Altura de la chimenea | H149: =H53 -> 50 | J149: m | K149: OIEA
B150: CST | C150: Relación entre la población referencia local y regional y la real | H150: =(H139*H137+(1-H139)*H135)/(H140*H138+(1-H140)*H136) -> 0.338229031 | K150: OIEA
B151: bCF | C151: Constante por facgtor de ajuste CF | H151: ='Base Localidades'!N2207 -> -0.0568 | K151: OIEA
B152: aCT | C152: Constante por facgtor de ajuste CT | H152: ='Base Localidades'!O2207 -> 1.02 | K152: OIEA
B153: bCT | C153: Constante por facgtor de ajuste CT | H153: ='Base Localidades'!P2207 -> -0.2446 | K153: OIEA
B154: aFs | C154: Constantes por factor de ajuste FS | H154: ='Base Localidades'!Q2207 -> 2.94 | K154: OIEA
B155: bFs | C155: Constantes por factor de ajuste FS | H155: ='Base Localidades'!R2207 -> -0.206 | K155: OIEA
B156: aFp | C156: Constantes por factor de ajuste Fρ | H156: ='Base Localidades'!S2207 -> 4.35 | K156: OIEA
B157: bFp | C157: Constantes por factor de ajuste Fρ | H157: ='Base Localidades'!T2207 -> -0.153 | K157: OIEA
B158: CP | C158: Factor de ajuste por diferencia en las densidades regionales | H158: =(H136/H135)*(H139+(1-H139)*H135/H136) -> 1.053943614 | K158: OIEA
B159: CKSO2 | C159: Factor de ajuste para las velocidades de decaimiento del SO2 | H159: =(H141/$H$144)*($H$139+(1-$H$139)*$H$144/H141) -> 1.003644083 | K159: OIEA
B160: CKNOx | C160: Factor de ajuste para las velocidades de decaimiento del NOx | H160: =(H142/$H$144)*($H$139+(1-$H$139)*H144/$H$142) -> 1.033606543 | K160: OIEA
B161: CKPM10 | C161: Factor de ajuste para las velocidades de decaimiento del PM10 | H161: =(H143/$H$144)*($H$139+(1-$H$139)*H144/$H$143) -> 1.001214694 | K161: OIEA
B162: CF | C162: Factor de ajuste por diferencia en los flujos de los gases | H162: =(H145/H146)^(H151) -> 1 | K162: OIEA
B163: CT | C163: Factor de ajuste por diferencia en las temperaturas de los gases | H163: =H152*(H147/H148)^(H153) -> 1.02 | K163: OIEA
B164: FS | C164: Factor de ajuste por la altura de la chimenea | H164: =H154*H149^H155 -> 1.313286589 | K164: OIEA
B165: Fρ | C165: Factor de ajuste para la densidad poblacional y localización geográfica | H165: =H156*H149^H157*H150 -> 0.8086446688 | K165: OIEA
B167: CONSTANTES USADAS DE ACUERDO A LA DENSIDAD
B168: Constantes usadas de acuerdo a la clasificación por densidad poblacional | O168: Fuente
B169: Símbolo | C169: Clasificación | G169: Valores para el factor CF | I169: Valores para el factor CT | K169: Valores para el factor FS | M169: Valores para el factor Fρ
G170: b | I170: a | J170: b | K170: a | L170: b | M170: a | N170: b
B171: 1 | C171: Corresponde a zonas rurales | G171: -0.0568 | I171: 1.02 | J171: -0.2446 | K171: 2.94 | L171: -0.206 | M171: 4.35 | N171: -0.153 | O171: OIEA
B172: 2 | C172: Corresponde a ciudades pequeñas | G172: -0.1034 | I172: 1.035 | J172: -0.4288 | K172: 1.52 | L172: -0.076 | M172: 4.35 | N172: -0.153 | O172: OIEA
B173: 3 | C173: Corresponde a ciudades medianas | G173: -0.1034 | I173: 1.035 | J173: -0.4288 | K173: 1.38 | L173: -0.56 | M173: 4.35 | N173: -0.153 | O173: OIEA
B174: 4 | C174: Corresponde a ciudades grandes (a menos de 15 Km) | G174: -0.1507 | I174: 1.05 | J174: -0.6 | K174: 1.47 | L174: -0.071 | M174: 30.4 | N174: -0.374 | O174: OIEA
B175: 5 | C175: Corresponde a ciudades grandes (a menos de 25 Km) | G175: -0.1034 | I175: 1.035 | J175: -0.4288 | K175: 1.4 | L175: -0.06 | M175: 11.9 | N175: -0.248 | O175: OIEA
B176: 6 | C176: Corresponde a ciudades grandes (a menos de 40 Km) | G176: -0.1034 | I176: 1.035 | J176: -0.4288 | K176: 1.5 | L176: -0.074 | M176: 3.93 | N176: -0.141 | O176: OIEA
B177: 7 | C177: Corresponde a ciudades grandes (a más de 40 Km) | G177: -0.1034 | I177: 1.035 | J177: -0.4288 | K177: 1.52 | L177: -0.076 | M177: 4.35 | N177: -0.153 | O177: OIEA
B179: EXTERNALIDADES POR SALUD
B180: Tecnología | D180: Costos de salud por contaminante | E180: Unidades | F180: Valor Presente de los costos de salud por contaminante | G180: Año
G181: 0 | H181: 1 | I181: 2 | J181: 3 | K181: 4 | L181: 5 | M181: 6 | N181: 7 | O181: 8 | P181: 9 | Q181: 10 | R181: 11 | S181: 12 | T181: 13 | U181: 14 | V181: 15 | W181: 16 | X181: 17 | Y181: 18 | Z181: 19 | AA181: 20 | AB181: 21 | AC181: 22 | AD181: 23 | AE181: 24 | AF181: 25 | AG181: 26 | AH181: 27 | AI181: 28 | AJ181: 29 | AK181: 30 | AL181: 31 | AM181: 32 | AN181: 33 | AO181: 34 | AP181: 35 | AQ181: 36 | AR181: 37 | AS181: 38 | AT181: 39 | AU181: 40
G182: =D12 -> 2019 | H182: =G182+1 -> 2020 | I182: =H182+1 -> 2021 | J182: =I182+1 -> 2022 | K182: =J182+1 -> 2023 | L182: =K182+1 -> 2024 | M182: =L182+1 -> 2025 | N182: =M182+1 -> 2026 | O182: =N182+1 -> 2027 | P182: =O182+1 -> 2028 | Q182: =P182+1 -> 2029 | R182: =Q182+1 -> 2030 | S182: =R182+1 -> 2031 | T182: =S182+1 -> 2032 | U182: =T182+1 -> 2033 | V182: =U182+1 -> 2034 | W182: =V182+1 -> 2035 | X182: =W182+1 -> 2036 | Y182: =X182+1 -> 2037 | Z182: =Y182+1 -> 2038 | AA182: =Z182+1 -> 2039 | AB182: =AA182+1 -> 2040 | AC182: =AB182+1 -> 2041 | AD182: =AC182+1 -> 2042 | AE182: =AD182+1 -> 2043 | AF182: =AE182+1 -> 2044 | AG182: =AF182+1 -> 2045 | AH182: =AG182+1 -> 2046 | AI182: =AH182+1 -> 2047 | AJ182: =AI182+1 -> 2048 | AK182: =AJ182+1 -> 2049 | AL182: =AK182+1 -> 2050 | AM182: =AL182+1 -> 2051 | AN182: =AM182+1 -> 2052 | AO182: =AN182+1 -> 2053 | AP182: =AO182+1 -> 2054 | AQ182: =AP182+1 -> 2055 | AR182: =AQ182+1 -> 2056 | AS182: =AR182+1 -> 2057 | AT182: =AS182+1 -> 2058 | AU182: =AT182+1 -> 2059
B183: =B53 -> Carboeléctrica supercrítica con desulfurador (modelo Thermoflow 25) | D183: PM10 | E183: pesos | F183: =NPV($D$14,G183:AU183) -> 61481936.64 | G183: =$H$135*$X$53/$C$22*(SUMPRODUCT($E$67:$E$74,F$123:F$130))*$H$158*$H$161*$H$162*$H$163*$H$164*$H$165*((1+D15)^(G182-'Base Localidades'!K1)) -> 1668318.076 | H183: =IF(H$181<=$D$53,G183*(1+$D$13)*(1+$D$15),"") -> 1746621.81 | I183: 1828600.786 | J183: 1914427.505 | K183: 2004282.565 | L183: 2098355.038 | M183: 2196842.872 | N183: 2299953.304 | O183: 2407903.3 | P183: 2520920.008 | Q183: 2639241.238 | R183: 2763115.963 | S183: 2892804.838 | T183: 3028580.756 | U183: 3170729.416 | V183: 3319549.927 | W183: 3475355.439 | X183: 3638473.797 | Y183: 3809248.234 | Z183: 3988038.095 | AA183: 4175219.59 | AB183: 4371186.585 | AC183: 4576351.435 | AD183: 4791145.847 | AE183: 5016021.793 | AF183: 5251452.457 | AG183: 5497933.231 | AH183: 5755982.762 | AI183: 6026144.036 | AJ183: 6308985.529 | AK183: 6605102.394 | AL183: 6915117.721 | AM183: 7239683.846 | AN183: 7579483.719 | AO183: 7935232.35 | AP183: 8307678.303 | AQ183: 8697605.28 | AR183: 9105833.766 | AS183: 9533222.755 | AT183: 9980671.561 | AU183: 10449121.7
D184: PM2.5 | E184: pesos | F184: =NPV($D$14,G184:AU184) -> 70848749.08 | G184: =$H$135*$Y$53/$C$23*(SUMPRODUCT($F$67:$F$74,F$123:F$130))*$H$158*$H$161*$H$162*$H$163*$H$164*$H$165*((1+D15)^(G182-'Base Localidades'!K1)) -> 1922487.404 | H184: =IF(H$181<=$D$53,G184*(1+$D$13)*(1+$D$15),"") -> 2012720.761 | I184: 2107189.287 | J184: 2206091.762 | K184: 2309636.298 | L184: 2418040.773 | M184: 2531533.291 | N184: 2650352.663 | O184: 2774748.91 | P184: 2904983.786 | Q184: 3041331.332 | R184: 3184078.45 | S184: 3333525.508 | T184: 3489986.974 | U184: 3653792.074 | V184: 3825285.486 | W184: 4004828.067 | X184: 4192797.611 | Y184: 4389589.643 | Z184: 4595618.254 | AA184: 4811316.969 | AB184: 5037139.662 | AC184: 5273561.508 | AD184: 5521079.987 | AE184: 5780215.927 | AF184: 6051514.603 | AG184: 6335546.882 | AH184: 6632910.423 | AI184: 6944230.941 | AJ184: 7270163.516 | AK184: 7611393.975 | AL184: 7968640.337 | AM184: 8342654.318 | AN184: 8734222.92 | AO184: 9144170.082 | AP184: 9573358.415 | AQ184: 10022691.02 | AR184: 10493113.37 | AS184: 10985615.35 | AT184: 11501233.27 | AU184: 12041052.09
D185: SO2 | E185: pesos | F185: 9484108.634 | G185: =$H$135*$V$53/$C$24*(SUMPRODUCT($G$67:$G$74,F$123:F$130))*$H$158*$H$161*$H$162*$H$163*$H$164*$H$165*((1+D15)^(G182-'Base Localidades'!K1)) -> 257352.171 | H185: =IF(H$181<=$D$53,G185*(1+$D$13)*(1+$D$15),"") -> 269431.184 | I185: 282077.1343 | J185: 295316.6316 | K185: 309177.5344 | L185: 323689.0089 | M185: 338881.59 | N185: 354787.2461 | O185: 371439.4458 | P185: 388873.2288 | Q185: 407125.2791 | R185: 426234.0029 | S185: 446239.6085 | T185: 467184.192 | U185: 489111.8249 | V185: 512068.6473 | W185: 536102.965 | X185: 561265.351 | Y185: 587608.7521 | Z185: 615188.6001 | AA185: 644062.9284 | AB185: 674292.4946 | AC185: 705940.9076 | AD185: 739074.7621 | AE185: 773763.7784 | AF185: 810080.9491 | AG185: 848102.6929 | AH185: 887909.0151 | AI185: 929583.6763 | AJ185: 973214.3682 | AK185: 1018892.899 | AL185: 1066715.385 | AM185: 1116782.454 | AN185: 1169199.458 | AO185: 1224076.692 | AP185: 1281529.63 | AQ185: 1341679.164 | AR185: 1404651.86 | AS185: 1470580.225 | AT185: 1539602.987 | AU185: 1611865.383
D186: Nitratos | E186: pesos | F186: 0 | G186: =$H$135*$W$53/$C$27*(SUMPRODUCT($H$67:$H$74,F$123:F$130))*$H$158*$H$161*$H$162*$H$163*$H$164*$H$165*((1+D15)^(G182-'Base Localidades'!K1)) -> 0 | H186: =IF(H$181<=$D$53,G186*(1+$D$13)*(1+$D$15),"") -> 0 | I186: 0 | J186: 0 | K186: 0 | L186: 0 | M186: 0 | N186: 0 | O186: 0 | P186: 0 | Q186: 0 | R186: 0 | S186: 0 | T186: 0 | U186: 0 | V186: 0 | W186: 0 | X186: 0 | Y186: 0 | Z186: 0 | AA186: 0 | AB186: 0 | AC186: 0 | AD186: 0 | AE186: 0 | AF186: 0 | AG186: 0 | AH186: 0 | AI186: 0 | AJ186: 0 | AK186: 0 | AL186: 0 | AM186: 0 | AN186: 0 | AO186: 0 | AP186: 0 | AQ186: 0 | AR186: 0 | AS186: 0 | AT186: 0 | AU186: 0
D187: Sulfatos | E187: pesos | F187: 1.214357095e+10 | G187: =$H$135*$V$53/$C$26*(SUMPRODUCT($I$67:$I$74,F$123:F$130))*$H$158*$H$161*$H$162*$H$163*$H$164*$H$165*((1+D15)^(G182-'Base Localidades'!K1)) -> 329516928.7 | H187: =IF(H$181<=$D$53,G187*(1+$D$13)*(1+$D$15),"") -> 344983047.6 | I187: 361175080.1 | J187: 378127097.5 | K187: 395874770.3 | L187: 414455443.1 | M187: 433908213.4 | N187: 454274013.8 | O187: 475595698 | P187: 497918131.1 | Q187: 521288283.9 | R187: 545755332 | S187: 571370759 | T187: 598188464.8 | U187: 626264879.4 | V187: 655659081 | W187: 686432921.1 | X187: 718651154 | Y187: 752381573.2 | Z187: 787695154.4 | AA187: 824666204.5 | AB187: 863372517.9 | AC187: 903895540.6 | AD187: 946320541 | AE187: 990736790 | AF187: 1037237748 | AG187: 1085921263 | AH187: 1136889774 | AI187: 1190250530 | AJ187: 1246115812 | AK187: 1304603172 | AL187: 1365835679 | AM187: 1429942179 | AN187: 1497057565 | AO187: 1567323060 | AP187: 1640886518 | AQ187: 1717902731 | AR187: 1798533756 | AS187: 1882949257 | AT187: 1971326863 | AU187: 2063852535
D188: Totales | E188: pesos | F188: 1.228538575e+10 | G188: =SUM(G183:G187) -> 333365086.4 | H188: =IF(H$181<=$D$53,G188*(1+$D$13)*(1+$D$15),"") -> 349011821.3 | I188: 365392947.3 | J188: 382542933.4 | K188: 400497866.7 | L188: 419295527.9 | M188: 438975471.2 | N188: 459579107 | O188: 481149789.6 | P188: 503732908.1 | Q188: 527375981.8 | R188: 552128760.4 | S188: 578043329 | T188: 605174216.8 | U188: 633578512.7 | V188: 663315985.1 | W188: 694449207.6 | X188: 727043690.7 | Y188: 761168019.8 | Z188: 796893999.4 | AA188: 834296804 | AB188: 873455136.7 | AC188: 914451394.4 | AD188: 957371841.6 | AE188: 1002306792 | AF188: 1049350796 | AG188: 1098602846 | AH188: 1150166577 | AI188: 1204150489 | AJ188: 1260668176 | AK188: 1319838561 | AL188: 1381786153 | AM188: 1446641300 | AN188: 1514540471 | AO188: 1585626539 | AP188: 1660049084 | AQ188: 1737964706 | AR188: 1819537355 | AS188: 1904938676 | AT188: 1994348370 | AU188: 2087954575
D189: PM10 | E189: pesos/Mwh | F189: NA | G189: =G183/$G$59 -> 0.5054333041 | H189: =IF(H$181<=$D$53,G189*(1+$D$13)*(1+$D$15),"") -> 0.5291561871 | I189: 0.5539925211 | J189: 0.5799945666 | K189: 0.6072170371 | L189: 0.6357172143 | M189: 0.6655550683 | N189: 0.6967933838 | O189: 0.7294978925 | P189: 0.7637374114 | Q189: 0.7995839872 | R189: 0.8371130484 | S189: 0.8764035636 | T189: 0.9175382079 | U189: 0.960603537 | V189: 1.005690169 | W189: 1.052892975 | X189: 1.102311279 | Y189: 1.154049068 | Z189: 1.208215208 | AA189: 1.264923675 | AB189: 1.324293796 | AC189: 1.386450497 | AD189: 1.451524569 | AE189: 1.519652939 | AF189: 1.590978965 | AG189: 1.66565273 | AH189: 1.743831363 | AI189: 1.825679368 | AJ189: 1.911368969 | AK189: 2.001080474 | AL189: 2.095002654 | AM189: 2.193333141 | AN189: 2.296278842 | AO189: 2.404056374 | AP189: 2.516892524 | AQ189: 2.635024721 | AR189: 2.75870154 | AS189: 2.888183221 | AT189: 3.02374222 | AU189: 3.16566378
D190: PM2.5 | E190: pesos/Mwh | F190: NA | G190: =G184/$G$59 -> 0.5824363918 | H190: =IF(H$181<=$D$53,G190*(1+$D$13)*(1+$D$15),"") -> 0.6097734713 | I190: 0.6383936366 | J190: 0.6683571104 | K190: 0.6997269418 | L190: 0.7325691392 | M190: 0.7669528093 | N190: 0.8029503022 | O190: 0.8406373638 | P190: 0.8800932954 | Q190: 0.92140112 | R190: 0.9646477577 | S190: 1.009924208 | T190: 1.057325742 | U190: 1.106952101 | V190: 1.15890771 | W190: 1.213301894 | X190: 1.270249109 | Y190: 1.329869183 | Z190: 1.392287569 | AA190: 1.457635608 | AB190: 1.526050804 | AC190: 1.597677119 | AD190: 1.672665267 | AE190: 1.751173038 | AF190: 1.83336563 | AG190: 1.919415991 | AH190: 2.009505189 | AI190: 2.103822789 | AJ190: 2.202567256 | AK190: 2.305946366 | AL190: 2.414177651 | AM190: 2.527488851 | AN190: 2.646118394 | AO190: 2.770315903 | AP190: 2.900342713 | AQ190: 3.036472426 | AR190: 3.178991487 | AS190: 3.328199786 | AT190: 3.484411285 | AU190: 3.647954685
D191: SO2 | E191: pesos/Mwh | F191: NA | G191: 0.07796736124 | H191: =IF(H$181<=$D$53,G191*(1+$D$13)*(1+$D$15),"") -> 0.08162681655 | I191: 0.08545803108 | J191: 0.08946906648 | K191: 0.09366836276 | L191: 0.0980647561 | M191: 0.1026674974 | N191: 0.1074862717 | O191: 0.1125312187 | P191: 0.1178129541 | Q191: 0.1233425915 | R191: 0.1291317666 | S191: 0.1351926608 | T191: 0.1415380275 | U191: 0.1481812187 | V191: 0.1551362129 | W191: 0.1624176449 | X191: 0.1700408363 | Y191: 0.1780218277 | Z191: 0.1863774128 | AA191: 0.1951251734 | AB191: 0.2042835166 | AC191: 0.2138717134 | AD191: 0.2239099392 | AE191: 0.2344193165 | AF191: 0.2454219591 | AG191: 0.2569410188 | AH191: 0.2690007341 | AI191: 0.2816264809 | AJ191: 0.2948448265 | AK191: 0.3086835848 | AL191: 0.3231718753 | AM191: 0.3383401844 | AN191: 0.3542204293 | AO191: 0.370846025 | AP191: 0.3882519553 | AQ191: 0.4064748457 | AR191: 0.4255530409 | AS191: 0.4455266851 | AT191: 0.466437807 | AU191: 0.4883304078
D192: Nitratos | E192: pesos/Mwh | F192: NA | G192: 0 | H192: =IF(H$181<=$D$53,G192*(1+$D$13)*(1+$D$15),"") -> 0 | I192: 0 | J192: 0 | K192: 0 | L192: 0 | M192: 0 | N192: 0 | O192: 0 | P192: 0 | Q192: 0 | R192: 0 | S192: 0 | T192: 0 | U192: 0 | V192: 0 | W192: 0 | X192: 0 | Y192: 0 | Z192: 0 | AA192: 0 | AB192: 0 | AC192: 0 | AD192: 0 | AE192: 0 | AF192: 0 | AG192: 0 | AH192: 0 | AI192: 0 | AJ192: 0 | AK192: 0 | AL192: 0 | AM192: 0 | AN192: 0 | AO192: 0 | AP192: 0 | AQ192: 0 | AR192: 0 | AS192: 0 | AT192: 0 | AU192: 0
D193: Sulfatos | E193: pesos/Mwh | F193: NA | G193: 99.83038152 | H193: =IF(H$181<=$D$53,G193*(1+$D$13)*(1+$D$15),"") -> 104.5159937 | I193: 109.4215286 | J193: 114.5573083 | K193: 119.9341396 | L193: 125.5633365 | M193: 131.4567438 | N193: 137.6267626 | O193: 144.0863757 | P193: 150.8491754 | Q193: 157.9293922 | R193: 165.3419241 | S193: 173.1023686 | T193: 181.2270553 | U193: 189.7330801 | V193: 198.6383414 | W193: 207.9615778 | X193: 217.722407 | Y193: 227.9413679 | Z193: 238.6399633 | AA193: 249.8407051 | AB193: 261.5671619 | AC193: 273.8440086 | AD193: 286.6970781 | AE193: 300.1534158 | AF193: 314.2413366 | AG193: 328.9904844 | AH193: 344.4318942 | AI193: 360.5980578 | AJ193: 377.5229923 | AK193: 395.242311 | AL193: 413.7932988 | AM193: 433.214991 | AN193: 453.5482544 | AO193: 474.8358746 | AP193: 497.1226448 | AQ193: 520.4554609 | AR193: 544.8834198 | AS193: 570.457923 | AT193: 597.2327842 | AU193: 625.2643431
D194: Totales | E194: pesos/Mwh | F194: NA | G194: =G188/$G$59 -> 100.9962186 | H194: =IF(H$181<=$D$53,G194*(1+$D$13)*(1+$D$15),"") -> 105.7365502 | I194: 110.6993728 | J194: 115.8951291 | K194: 121.334752 | L194: 127.0296876 | M194: 132.9919192 | N194: 139.2339925 | O194: 145.7690421 | P194: 152.6108191 | Q194: 159.7737199 | R194: 167.2728166 | S194: 175.123889 | T194: 183.3434573 | U194: 191.948817 | V194: 200.9580755 | W194: 210.3901903 | X194: 220.2650082 | Y194: 230.603308 | Z194: 241.4268435 | AA194: 252.7583896 | AB194: 264.62179 | AC194: 277.0420079 | AD194: 290.0451779 | AE194: 303.6586611 | AF194: 317.9111032 | AG194: 332.8324941 | AH194: 348.4542314 | AI194: 364.8091865 | AJ194: 381.9317733 | AK194: 399.8580214 | AL194: 418.625651 | AM194: 438.2741531 | AN194: 458.8448721 | AO194: 480.3810929 | AP194: 502.928132 | AQ194: 526.5334329 | AR194: 551.2466659 | AS194: 577.1198327 | AT194: 604.2073755 | AU194: 632.566292
B196: CAMBIO CLIMATICO
B198: PRECIO DEL CARBONO
B199: Combustible | C199: 2018 | D199: Fuente
C200: pesos/tCO2e
B201: Carbón nacional | C201: 210 | D201: SHCP
B202: Combustóleo | C202: 170 | D202: SHCP
B203: Gas natural | C203: 240 | D203: SHCP
B204: Diesel | C204: 170 | D204: SHCP
B205: Residuos sólidos urbanos | C205: 240 | D205: NA
B206: Biogás | C206: 240 | D206: NA
B207: Biocombustibles líquidos | C207: 240 | D207: NA
B208: Biomasa | C208: 240 | D208: NA
B210: EXTERNALIDADES POR CAMBIO CLIMÁTICO
B211: Tecnología | D211: Factor de emisión (tCO2e/Mwh) | E211: Valor del carbono (pesos/tCO2e) | F211: Costos por cambio climático por contaminante | G211: Costos por cambio climático por contaminante | H211: Valor Presente de los costos de salud por contaminante | I211: Año
I212: 0 | J212: 1 | K212: 2 | L212: 3 | M212: 4 | N212: 5 | O212: 6 | P212: 7 | Q212: 8 | R212: 9 | S212: 10 | T212: 11 | U212: 12 | V212: 13 | W212: 14 | X212: 15 | Y212: 16 | Z212: 17 | AA212: 18 | AB212: 19 | AC212: 20 | AD212: 21 | AE212: 22 | AF212: 23 | AG212: 24 | AH212: 25 | AI212: 26 | AJ212: 27 | AK212: 28 | AL212: 29 | AM212: 30 | AN212: 31 | AO212: 32 | AP212: 33 | AQ212: 34 | AR212: 35 | AS212: 36 | AT212: 37 | AU212: 38 | AV212: 39 | AW212: 40
I213: =D12 -> 2019 | J213: =I213+1 -> 2020 | K213: =J213+1 -> 2021 | L213: =K213+1 -> 2022 | M213: =L213+1 -> 2023 | N213: =M213+1 -> 2024 | O213: =N213+1 -> 2025 | P213: =O213+1 -> 2026 | Q213: =P213+1 -> 2027 | R213: =Q213+1 -> 2028 | S213: =R213+1 -> 2029 | T213: =S213+1 -> 2030 | U213: =T213+1 -> 2031 | V213: =U213+1 -> 2032 | W213: =V213+1 -> 2033 | X213: =W213+1 -> 2034 | Y213: =X213+1 -> 2035 | Z213: =Y213+1 -> 2036 | AA213: =Z213+1 -> 2037 | AB213: =AA213+1 -> 2038 | AC213: =AB213+1 -> 2039 | AD213: =AC213+1 -> 2040 | AE213: =AD213+1 -> 2041 | AF213: =AE213+1 -> 2042 | AG213: =AF213+1 -> 2043 | AH213: =AG213+1 -> 2044 | AI213: =AH213+1 -> 2045 | AJ213: =AI213+1 -> 2046 | AK213: =AJ213+1 -> 2047 | AL213: =AK213+1 -> 2048 | AM213: =AL213+1 -> 2049 | AN213: =AM213+1 -> 2050 | AO213: =AN213+1 -> 2051 | AP213: =AO213+1 -> 2052 | AQ213: =AP213+1 -> 2053 | AR213: =AQ213+1 -> 2054 | AS213: =AR213+1 -> 2055 | AT213: =AS213+1 -> 2056 | AU213: =AT213+1 -> 2057 | AV213: =AU213+1 -> 2058 | AW213: =AV213+1 -> 2059
B214: =Principal!C13 -> Carboeléctrica supercrítica con desulfurador (modelo Thermoflow 25) | D214: =IF(Principal!I26="Propios",'Cálculos&Supuestos'!Q53,'Cálculos&Supuestos'!L53) -> 0.752 | E214: =IF(B53=B32,C202,IF(B53=B33,C202,IF(B53=B34,C203,IF(B53=B35,C203,IF(B53=B36,C204,IF(B53=B37,C204,IF(B53=B38,C203,IF(B53=B39,C203,IF(B53=B40,C203,IF(B53=B41,C201,IF(B53=B42,C201,IF(B53=B43,C201,IF(B53=B44,C201,IF(B53=B45,C201,IF(B53=B46,C203,IF(B53=B47,C208,IF(B53=B48,C206,IF(B53=B49,C205,IF(B53=B50,C206,IF(B53=B51,C207,IF(B53=B52,C208))))))))))))))))))))) -> 210 | F214: CO2e | G214: pesos | H214: =NPV($D$14,I214:AW214) -> 2.137154858e+10 | I214: =I215*$G$59 -> 547320146.7 | J214: =IF(J$212<=$D$53,J215*$G$59,"") -> 574686154 | K214: 603420461.7 | L214: 633591484.8 | M214: 665271059.1 | N214: 698534612 | O214: 733461342.6 | P214: 770134409.7 | Q214: 808641130.2 | R214: 849073186.7 | S214: 891526846.1 | T214: 936103188.4 | U214: 982908347.8 | V214: 1032053765 | W214: 1083656453 | X214: 1137839276 | Y214: 1194731240 | Z214: 1254467802 | AA214: 1317191192 | AB214: 1383050752 | AC214: 1452203289 | AD214: 1524813454 | AE214: 1601054126 | AF214: 1681106833 | AG214: 1765162174 | AH214: 1853420283 | AI214: 1946091297 | AJ214: 2043395862 | AK214: 2145565655 | AL214: 2252843938 | AM214: 2365486135 | AN214: 2483760441 | AO214: 2607948464 | AP214: 2738345887 | AQ214: 2875263181 | AR214: 3019026340 | AS214: 3169977657 | AT214: 3328476540 | AU214: 3494900367 | AV214: 3669645385 | AW214: 3853127655
G215: pesos/Mwh | H215: NA | I215: =D214*E214*(1+$D$17)^(I213-C199) -> 165.816 | J215: =IF(J$212<=$D$53,I215*(1+$D$17),"") -> 174.1068 | K215: 182.81214 | L215: 191.952747 | M215: 201.5503844 | N215: 211.6279036 | O215: 222.2092987 | P215: 233.3197637 | Q215: 244.9857519 | R215: 257.2350395 | S215: 270.0967914 | T215: 283.601631 | U215: 297.7817126 | V215: 312.6707982 | W215: 328.3043381 | X215: 344.719555 | Y215: 361.9555327 | Z215: 380.0533094 | AA215: 399.0559749 | AB215: 419.0087736 | AC215: 439.9592123 | AD215: 461.9571729 | AE215: 485.0550315 | AF215: 509.3077831 | AG215: 534.7731723 | AH215: 561.5118309 | AI215: 589.5874224 | AJ215: 619.0667935 | AK215: 650.0201332 | AL215: 682.5211399 | AM215: 716.6471969 | AN215: 752.4795567 | AO215: 790.1035346 | AP215: 829.6087113 | AQ215: 871.0891469 | AR215: 914.6436042 | AS215: 960.3757844 | AT215: 1008.394574 | AU215: 1058.814302 | AV215: 1111.755017 | AW215: 1167.342768
B217: BIODIVERSIDAD
B219: CONCENTRACIÓN BASE Y LÍMIETE DE SO2
B220: Tipo de lugar | F220: Concentración SO2 (µg/m3) | H220: Fuente
F221: Base | G221: Límite
... 54 more rows

Sheet Imágenes
B2: ORIENTACION
A15: 1 | B15: AGUASCALIENTES
A29: 2 | B29: BAJA CALIFORNIA
A54: 3 | B54: BAJA CALIFORNIA SUR
A79: 4 | B79: CAMPECHE
A97: 5 | B97: COAHUILA
A123: 6 | B123: COLIMA
A138: 7 | B138: CHIAPAS
A159: 8 | B159: CHIHUAHUA
A192: 9 | B192: DISTRITO FEDERAL
A210: 10 | B210: DURANGO
A237: 11 | B237: ESTADO DE MEXICO
A256: 12 | B256: GUANAJUATO
A272: 13 | B272: GUERRERO
A288: 14 | B288: HIDALGO
A305: 15 | B305: JALISCO
A327: 16 | B327: MICHOACAN
A343: 17 | B343: MORELOS
A356: 18 | B356: NAYARIT
A374: 19 | B374: NUEVO LEON
A396: 20 | B396: OAXACA
A411: 21 | B411: PUEBLA
A432: 22 | B432: QUERETARO
A449: 23 | B449: QUINTANA ROO
A472: 24 | B472: SAN LUIS POTOSI
A491: 25 | B491: SINALOA
A512: 26 | B512: SONORA
A545: 27 | B545: TABASCO
A560: 28 | B560: TAMAULIPAS
A587: 29 | B587: TLAXCALA
A603: 30 | B603: VERACRUZ
A628: 31 | B628: YUCATAN
A645: 32 | B645: ZACATECAS

Sheet Formulario
B2: SALUD
B49: CAMBIO CLIMATICO
B62: BIODIVERSIDAD

Sheet Resultados
A1: 1 | B1: 2 | C1: 3 | D1: 4 | E1: 5 | F1: 6 | G1: 7 | H1: 8 | I1: 9 | J1: 10 | K1: 11 | L1: 12 | M1: 13 | N1: 14 | O1: 15 | P1: 16 | Q1: 17 | R1: 18 | S1: 19 | T1: 20 | U1: 21 | V1: 22 | W1: 23 | X1: 24 | Y1: 25
A2: RESULTADOS DE CONSULTAS PUNTUALES
B4: Datos ligados al lugar | C4: Cuadro Chico | D4: Cobertura Vegetal | E4: Densidad local | F4: Densidad regional | G4: Clasificación por población | H4: Concentración de SO2 base | I4: Externalidades | X4: Ext (pesos/Mwh)
I5: Cambio Climático | L5: Salud | R5: Servicios ecosistémicos | U5: TOTAL
I6: Total (pesos/Mwh) | J6: CO2e (pesos/Mwh) | K6: VPE (pesos) | L6: Total (pesos/Mwh) | M6: PM (pesos/Mwh) | N6: Sulfatos (pesos/Mwh) | O6: Nitratos (pesos/Mwh) | P6: SO2 (pesos/Mwh) | Q6: VPE (pesos) | R6: Total (pesos/Mwh) | S6: SO2 (pesos/Mwh) | T6: VPE (pesos) | U6: Total (pesos/Mwh) | V6: VPE (pesos)
B7: Celda en turno | C7: ='Base Localidades'!D2207 -> 2 | D7: ='Base Localidades'!F2207 -> 0.8974 | E7: ='Base Localidades'!G2207 -> 1.993418339e-07 | F7: ='Base Localidades'!I2207 -> 2.59598519e-05 | G7: ='Base Localidades'!K2207 -> 1 | H7: ='Base Localidades'!L2207 -> 10 | I7: =IFERROR('Cálculos&Supuestos'!I215,0) -> 165.816 | J7: =IFERROR('Cálculos&Supuestos'!I215,0) -> 165.816 | K7: =IFERROR('Cálculos&Supuestos'!H214,0) -> 2.137154858e+10 | L7: =IFERROR('Cálculos&Supuestos'!G194,0) -> 100.9962186 | M7: =IFERROR('Cálculos&Supuestos'!G189+'Cálculos&Supuestos'!G190,0) -> 1.087869696 | N7: =IFERROR('Cálculos&Supuestos'!G193,0) -> 99.83038152 | O7: =IFERROR('Cálculos&Supuestos'!G192,0) -> 0 | P7: =IFERROR('Cálculos&Supuestos'!G191,0) -> 0.07796736124 | Q7: =IFERROR('Cálculos&Supuestos'!F188,0) -> 1.228538575e+10 | R7: =IFERROR('Cálculos&Supuestos'!I243,0) -> 91.73182877 | S7: =IFERROR('Cálculos&Supuestos'!I243,0) -> 91.73182877 | T7: =IFERROR('Cálculos&Supuestos'!I242,0) -> 302785485 | U7: =(I7+L7+R7) -> 358.5440473 | V7: =(K7+Q7+T7) -> 3.395971982e+10 | X7: =+U7 -> 358.5440473
B8: =C8 -> 3 | C8: 3 | D8: 0.8974 | E8: 2.086389073e-07 | F8: 2.59598519e-05 | G8: 1 | H8: 10 | I8: 165.816 | J8: 165.816 | K8: 2.137154858e+10 | L8: 101.0542 | M8: 1.0885 | N8: 99.8877 | O8: 0 | P8: 0.078 | Q8: 1.229243805e+10 | R8: 91.7318 | S8: 91.7318 | T8: 302785485 | U8: =(I8+L8+R8) -> 358.602 | V8: =(K8+Q8+U8) -> 3.3663987e+10 | X8: =+U8 -> 358.602
B9: N | C9: 1 | D9: 0.8974 | E9: 2.772436766e-07 | F9: 2.59598519e-05 | G9: 1 | H9: 10 | I9: 165.816 | J9: 165.816 | K9: 2.137154858e+10 | L9: 101.4439 | M9: 1.0927 | N9: 100.2729 | O9: 0 | P9: 0.0783 | Q9: 1.233984076e+10 | R9: 91.7318 | S9: 91.7318 | T9: 302785485 | U9: 358.9917 | V9: 3.37113897e+10 | X9: 358.9917
B10: NE | C10: 0 | D10: 0 | E10: 0 | F10: 0 | G10: 0 | H10: 0 | I10: 0 | J10: 0 | K10: 0 | L10: 0 | M10: 0 | N10: 0 | O10: 0 | P10: 0 | Q10: 0 | R10: 0 | S10: 0 | T10: 0 | U10: 0 | V10: 0 | X10: 0
B11: E | C11: 4 | D11: 0.8318 | E11: 9.756222438e-08 | F11: 2.543883998e-05 | G11: 1 | H11: 10 | I11: 165.816 | J11: 165.816 | K11: 2.137154858e+10 | L11: 96.3712 | M11: 1.0381 | N11: 95.2587 | O11: 0 | P11: 0.0744 | Q11: 1.172278328e+10 | R11: 85.0262 | S11: 85.0262 | T11: 280651845.8 | U11: 347.2134 | V11: 3.309433221e+10 | X11: 347.2134
B12: SE | C12: 9 | D12: 0.8318 | E12: 1.913258612e-08 | F12: 2.543883998e-05 | G12: 1 | H12: 10 | I12: 165.816 | J12: 165.816 | K12: 2.137154858e+10 | L12: 95.2931 | M12: 1.0264 | N12: 94.1931 | O12: 0 | P12: 0.0736 | Q12: 1.159164267e+10 | R12: 85.0262 | S12: 85.0262 | T12: 280651845.8 | U12: 346.1353 | V12: 3.29631916e+10 | X12: 346.1353
B13: S | C13: 8 | D13: 0.8974 | E13: 2.071597256e-08 | F13: 2.59598519e-05 | G13: 1 | H13: 10 | I13: 165.816 | J13: 165.816 | K13: 2.137154858e+10 | L13: 99.2096 | M13: 1.0686 | N13: 98.0643 | O13: 0 | P13: 0.0766 | Q13: 1.206805202e+10 | R13: 91.7318 | S13: 91.7318 | T13: 302785485 | U13: 356.7574 | V13: 3.343960096e+10 | X13: 356.7574
B14: SO | C14: 7 | D14: 0.8974 | E14: 5.080031487e-08 | F14: 2.59598519e-05 | G14: 1 | H14: 10 | I14: 165.816 | J14: 165.816 | K14: 2.137154858e+10 | L14: 99.7105 | M14: 1.074 | N14: 98.5595 | O14: 0 | P14: 0.077 | Q14: 1.212898764e+10 | R14: 91.7318 | S14: 91.7318 | T14: 302785485 | U14: 357.2583 | V14: 3.350053658e+10 | X14: 357.2583
B15: O | C15: 2 | D15: 0.8974 | E15: 1.993418339e-07 | F15: 2.59598519e-05 | G15: 1 | H15: 10 | I15: 165.816 | J15: 165.816 | K15: 2.137154858e+10 | L15: 100.9962 | M15: 1.0879 | N15: 99.8304 | O15: 0 | P15: 0.078 | Q15: 1.228538575e+10 | R15: 91.7318 | S15: 91.7318 | T15: 302785485 | U15: 358.544 | V15: 3.365693469e+10 | X15: 358.544
B16: NO | C16: 0 | D16: 0 | E16: 0 | F16: 0 | G16: 0 | H16: 0 | I16: 0 | J16: 0 | K16: 0 | L16: 0 | M16: 0 | N16: 0 | O16: 0 | P16: 0 | Q16: 0 | R16: 0 | S16: 0 | T16: 0 | U16: 0 | V16: 0 | X16: 0
A36: RESULTADOS DE CONSULTAS A NIVEL ESTATAL
B38: =Principal!C35 -> Coahuila | C38: =Principal!C13 -> Carboeléctrica supercrítica con desulfurador (modelo Thermoflow 25)
B39: Cuadro | C39: Participación por tipo de impacto (%) | F39: Participación por contaminante (%) | K39: Externalidad (pesos/Mwh) | L39: Valor presente de la externalidad (pesos) | O39: Resumen de resultados
C40: Cambio Climático (CC) | D40: Salud (S) | E40: Servicios Ecosistémicos (SE) | F40: PM | G40: SO2 | H40: Nitratos | I40: Sulfatos | J40: CO2 | O40: Indicador | P40: Externalidad por Mwh (pesos/Mwh)
O42: Media Ext | P42: =AVERAGE(K42:K1000) -> 
O43: DS Ext | P43: =STDEV(K42:K1000) -> 
O44: Mínimo Ext | P44: =MIN(K42:K1000) -> 0
O45: Máximo Ext | P45: =MAX(K42:K1000) -> 0
O46: Media Ext CC | P46: =AVERAGE(C42:C1000) -> 
O47: Media Ext S | P47: =AVERAGE(D42:D1000) -> 
O48: Media Ext SE | P48: =AVERAGE(E42:E1000) -> 
O49: Media Ext PM | P49: =AVERAGE(F42:F1000) -> 
O50: Media Ext SO2 | P50: =AVERAGE(G42:G1000) -> 
O51: Media Ext Nitratos | P51: =AVERAGE(H42:H1000) -> 
O52: Media Ext Sulfatos | P52: =AVERAGE(I42:I1000) -> 
O53: Media Ext CO2e | P53: =AVERAGE(J42:J1000) -> 
I2199: 97323320.79
F2206: 32.94391256 | G2206: 59.4167
